Workbook

Sheet Master Data
B2: MASTER DATA | R2: L-1 | S2: CDEO
B3: कार्यालय का नाम ( पीईईओ या सीबीईओ ) : | C3: Mahatma Gandhi Government School (English Medium) Bar, (Beawar) | R3: L-2 | S3: DEEO
B4: कार्मिक का नाम : | C4: HEERALAL JAT | D4: Designation / पद : | E4: Sr. Teacher | R4: L-3 | S4: ADEO
B5: Gazetted / Non-Gazetted : | C5: Non-Gazetted | D5: Employee ID : | E5: RJPA200312345678 | R5: L-4 | S5: ADPC
B6: School/Office Name : | C6: MGGS BAR | D6: DDO Name : | E6: Usha Paliya | R6: L-5 | S6: APC
B7: PAN No. : | C7: ABCDE5555H | D7: बैंक खाता संख्या : | E7: 51XXXXXXXXX96 | R7: L-6 | S7: CBEO
B8: SI Number : | C8: 74XXX7 | D8: GPF / GPF - 2004 : | E8: GPF | R8: L-7 | S8: ACBEO-1
B9: GPF Number : | C9: 74XXX8 | D9: PRAN No. / GPF-2004 Number : | E9: 71XXX10
B10: SI Deducation Per Month : | C10: 7,000 | D10: जीपीएफ / जीपीएफ-2004 की मासिक कटौती : | E10: 7000 | F10: परम पूज्य गुरुदेव वासुदेव जी महाराज | R10: L-8 | S10: ACBEO-2
B11: 01 March 2025 Basic Pay (मूल वेतन) : | C11: 61,300 | D11: Rate of HRA : | E11: 10 % | R11: L-9 | S11: PEEO
B12: क्या आपने समर्पित वेतन उठाया है ? | C12: YES | D12: CCA लागु हो तो Select Yes / No : | E12: NO | R12: L-10 | S12: Principal
B13: अगर आपने Surrender उठाया है तो माह सलेक्ट करें : | C13: SEP | D13: CCA लागू हो तो CITY सलेक्ट करे : | F13: youtube Video Link | R13: L-11 | S13: PEEO
B14: आपको अभी कोनसा वेतन मिल रहा है :- | C14: Regular Pay | D14: विकलांग भत्ता : | F14: https://youtu.be/ULIKPcv3e-U
B15: Bonus : | C15: 6,774 | D15: Income Tax Ded. @ Per Month : | E15: 2000 | F15: https://youtu.be/GXryKE2B7fI
B16: Group Insurance Rate @ : | D16: L.I.C. (Per Month) : | E16: 1103 | F16: https://youtu.be/wU0JpB3heTQ
B17: जिस माह से आयकर गणना प्रपत्र बनाना है | C17: 2025-03-01 | D17: यदि वितीय वर्ष 2025-26 में मूल वेतन में परिवर्तन हुआ है तो लिखे : | F17: https://youtu.be/ULIKPcv3e-U
B18: जिस माह तक आयकर गणना प्रपत्र बनाना है | C18: 2026-02-01 | D18: इन्क्रीमेंट के अतिरिक्त वेतन परिवर्तित होने पर माह सलेक्ट करे : | R18: L-12 | S18: Principal
R19: L-13 | S19: Head Master
B20: You Tube Video Link | D20: Present By : | R20: L-14 | S20: Lecturer
B21: https://youtu.be/wU0JpB3heTQ | D21: HEERALAL JAT (Sr. Teacher) | F21: UPDATE ON | R21: L-15 | S21: Sr. Teacher
D22: MGGS BAR (Beawar) | F22: 2025-11-05 | R22: L-16 | S22: Teacher L-2
D23: V./P. - Chandawal Nagar, Sojat, Dist.- PALI | R23: L-17 | S23: Teacher L-1
D24: heeralaljatchandawal@gmail.com | R24: L-18 | S24: Prabodhak
R25: L-19 | S25: PTI - 1
R26: L-20 | S26: PTI - II
R27: L-21 | S27: PTI - III
R28: L-22 | S28: Librarian
R29: L-23 | S29: OA
R30: L-24 | S30: UDC
S31: LDC
S32: Lab Tec.
S33: Peon

Sheet Extra Ded.
A1: https://youtu.be/ULIKPcv3e-U
B2: अधिक जानकारी के लिए ऊपर Youtube video का लिंक दिया गया है।
C3: वेतन कटौती से अतिरिक्त कटौतिया जिसके तहत आप आयकर में छूट लेना चाहते है, तथा अतिरिक्त (अन्य) आय को यहाँ इन्द्राज करेंI
C6: 1. मकान किराया भत्ता (यदि रसीद के माध्यम से छूट लेनी हो तो राशि लिखे ) | E6: 0 | G6: 20. इक्विटी लिंक सेविंग स्कीम
C7: 2. स्टैण्डर्ड डीडेक्सन (Standard Deduction) 75,000 (अधिकतम ) | E7: 75000 | G7: 21. गृह किराया धारा 10 (13-A) के अंतर्गत व धारा 10(14) के अंतर्गत अन्य भत्ते जो कर मुक्त है
C8: 3. मनोरंजन भत्ता धारा 16 (ii) के अंतर्गत | G8: 22. स्थगत वार्षिकी (Defferred Annuty)
C9: 4. व्यवसाय कर धारा 16 (iii) के अंतर्गत | G9: 23. वेतन के अलावा जमा कराया गया आयकर (TDS)
C10: 5. गृह सम्पति से प्राप्त किराया - आय | G10: 24. अन्य व फिक्स डिपोजिट (5 वर्ष हेतु ) (धारा 80 सी के अंतर्गत )
C11: 6. गृहकर | G11: 25. पारिवारिक पेंशन की मानक कटोती धारा 57 के अन्तगर्त ( अधिकतम सीमा रू 25000 )
C12: 7. गृह ऋण की मूल किस्त यहाँ लिखनी है, जो छूट लेनी हैI | G12: 26. इन सभी के अतिरिक्त अन्य सभी प्रकार की कटोती जो धारा 80 सी के अंतर्गत आती है (Other)
C13: 8. गृह ऋण की किस्त पर ब्याज जो छूट लेना है, यहाँ लिखें I | G13: 27. म्यूच्यूअल फण्ड और अन्य कोई राशि (जो धारा 80 सी के अंतर्गत छुट प्राप्त हो)
C14: 9. जीवन बीमा प्रीमियम (जो वेतन से नहीं काटा गया है ) LIC | G14: 28. धारा 80CCD(1B) - नवीन पेंशन योजना में अतिरिक्त अंशदान (अधिकतम रुपये 50,000)
C15: 10. पी.एल.आई. (PLI) | G15: 29. धारा 80 D चिकित्सा बीमा प्रीमियम
C16: 11. टियुशन फ़ीस (Tution Fees) | G16: 30. धारा 80DD विकलांग आश्रितों के चिकित्सा उपचार
C17: 12. यू एल आई पी / वार्षिक प्लान | G17: 31. धारा 80DDB विशिष्ट रोगों के उपचार हेतु छुट
C18: 13. राष्ट्रीय बचत पत्र (NSC) | G18: 32. धारा 80E उच्च शिक्षा हेतु लिए गए ऋण का ब्याज
C19: 14. राष्ट्रीय बचत पत्र पर अदत ब्याज | G19: 33. धारा 80G धर्मार्थ संस्थाओ आदि को दिए दान ( क श्रेणी में 100 प्रतिशत एव ख श्रेणी में 50 प्रतिशत) | K19: =SUM(H20)+ ROUND(J20/2,0) -> 0
C20: 15. लोक भविष्य निधि (PPF) | G20: "क" श्रेणी में दान :- | I20: "ख" श्रेणी में दान :-
C21: 16. राष्ट्रीय बचत पत्र स्कीम (NSS) | G21: 34. धारा 80U स्थाई रूप से शारीरिक असमर्थता की दशा में
C22: 17. सुकन्या समृद्धि योजना में जमा राशि (SSY) | G22: 35. धारा 80 TTA बचत खाते पर अधिकतम ब्याज पर 10,000 तक छुट 194(IA)
C23: 18. Bonds से ब्याज | G23: 36. धारा 80 GGA अनुमोदित वैज्ञानिक, सामाजिक, ग्रामीण विकास आदि हेतु दिया गया दान
C24: 19. अन्य स्रोत से आय (शेयर मार्केट सहित सभी आय) : | G24: 37. राहत धारा 89 के तहत (अगर छुट लेनी है तो राशि लिखे ) | K24: 0
C25: US 80 EE & US 80EEA & Others | G25: 38. एफडी आदि अन्य जमा पर प्राप्त कुल ब्याज (पीपीएफ को छोड़कर)

Sheet GA55
B1: =IF(AND('Master Data'!C3=""),"",CONCATENATE("Office Name :- ",PROPER('Master Data'!C3))) -> Office Name :- Mahatma Gandhi Government School (English Medium) Bar, (Beawar)
A2: Employee Name :- | D2: =UPPER(IF('Master Data'!C4="","",'Master Data'!C4)) -> HEERALAL JAT | I2: Designation :- | M2: =UPPER(IF('Master Data'!E4="","",'Master Data'!E4)) -> SR. TEACHER | Q2: Posting Place :- | U2: =UPPER(IF('Master Data'!C6="","",'Master Data'!C6)) -> MGGS BAR | AB2: वेतन ड्रा मानचित्र
A3: PAN No. :- | C3: =UPPER(IF('Master Data'!C7="","",'Master Data'!C7)) -> ABCDE5555H | F3: SI No. | G3: =IF(AND('Master Data'!C8=""),"",'Master Data'!C8) -> 74XXX7 | J3: GPF | K3: =IF(AND('Master Data'!C9=""),"",'Master Data'!C9) -> 74XXX8 | O3: PRAN No. :- | R3: =IF(AND('Master Data'!E9=""),"",'Master Data'!E9) -> 71XXX10 | W3: Bank A/C. | AA3: =IF(AND('Master Data'!E7=""),"",'Master Data'!E7) -> 51XXXXXXXXX96 | AZ3: =AZ15-ROUNDUP(ROUND((AZ15*3%)-(AZ15*3%)*2.9%,-2),0) -> 59500
A4: Pay received | N4: Deducations | AA4: NET PAY | AB4: T.V. NO. | AC4: Enc. DATE
A5: S.N. | B5: Month | C5: Basic With Grade Pay | D5: DA | E5: HRA | F5: Wash All. | G5: Handi. All. | H5: CCA | I5: Other-1 | J5: Other-2 | K5: Bonus | L5: ROP | M5: TOTAL | N5: SI | O5: =IF('Master Data'!E8="","",'Master Data'!E8) -> GPF | P5: L.I.C. | Q5: RGHS | R5: SI Loan | S5: GPF Loan | T5: SI Int. | U5: Other-1 | V5: HITKARI NIDHI | W5: Other-2 | X5: Income Tax | Y5: Group Ins. | Z5: Total Ded. | AE5: https://youtu.be/GXryKE2B7fI | AM5: ='Master Data'!C12 -> YES | AN5: GPF | AO5: Yes | AP5: Regular Pay | AQ5: Under 60 | AS5: 1000
A6: 1 | B6: =IFERROR(IF(BO12="","",BO12),"") -> 2025-03-01 | C6: =IFERROR(IF(B6="","",IF(AND(BQ12=""),"",IF(B6=$AX$24,"",IF(AND('Master Data'!$C$14=$AP$6),VLOOKUP(B6,om,13,0),VLOOKUP(B6,om,4,0))))),"") -> 61300 | D6: =IFERROR(IF(B6="","",IF(AND(BQ12=""),"",IF(OR(B6=$AX$24),"",IF(AND('Master Data'!$C$14=$AP$5),VLOOKUP(B6,om,7,0),"")))),"") -> 32489 | E6: =IFERROR(IF(B6="","",IF(AND(BQ12=""),"",IF(OR(B6=$AX$24,B6=$AX$25,B6=$AX$26,B6=$AX$27,B6=$AX$28,B6=$AX$29),"",IF(AND('Master Data'!$C$14=$AP$5),VLOOKUP(B6,om,8,0),"")))),"") -> 6130 | F6: 0 | G6: =IFERROR(IF(B6="","",IF(AND(BQ12=""),"",IF(OR(B6=$AX$24,B6=$AX$25,B6=$AX$26,B6=$AX$27,B6=$AX$28,B6=$AX$29),"",IF(AND('Master Data'!$C$14=$AP$5),'Master Data'!$E$14,"")))),"") -> 0 | H6: =IFERROR(IF(B6="","",IF(AND(BQ13=""),"",IF('Master Data'!$E$12="NO","",IF(OR(B6=$AX$24,B6=$AX$25,B6=$AX$26,B6=$AX$27,B6=$AX$28,B6=$AX$29),"",IF(AND('Master Data'!$C$14=$AP$5),F6,IF(AND('Master Data'!$E$13=$AR$9),$AS$6,IF(AND('Master Data'!$E$13=$AR$10),$AS$6,IF(AND('Master Data'!$E$13=$AR$11),$AS$6,IF(AND('Master Data'!$E$13=$AR$12),$AS$6,$AS$5))))))))),"") ->  | I6: 0 | J6: 0 | K6: =IFERROR(IF(B6="","",IF(AND('Master Data'!$C$14=$AP$6),"",IF(AND('Master Data'!$C$15<>0),IF(AND(B6="Bonus"),VLOOKUP(B6,om,4,0),"")))),"") ->  | L6: 0 | M6: =IF(B6="","",SUM(C6:L6)) -> 99919 | N6: =IFERROR(IF(B6="","",IF(AND(BQ12=""),"",IF(OR(B6=$AX$24,B6=$AX$25,B6=$AX$26,B6=$AX$27,B6=$AX$28,B6=$AX$29),"",IF(AND('Master Data'!$C$14=$AP$5),VLOOKUP(B6,om,11,0),"")))),"") -> 7000 | O6: =IFERROR(IF(B6="","",IF(AND(BQ12=""),"",IF(OR(B6=$AX$25),"",IF(AND('Master Data'!$C$14=$AP$5),VLOOKUP(B6,om,12,0),"")))),"") -> 7000 | P6: =IFERROR(IF(B6="","",IF(AND(BQ12=""),"",IF(OR(B6=$AX$24,B6=$AX$25,B6=$AX$26,B6=$AX$27,B6=$AX$28,B6=$AX$29),"",IF(AND('Master Data'!$C$14=$AP$5),'Master Data'!$E$16,"")))),"") -> 1103 | Q6: =IFERROR(IF(B6="","",IF(AND(BQ12=""),"",IF(OR(B6=$AX$24,B6=$AX$25,B6=$AX$26,B6=$AX$27,B6=$AX$28,B6=$AX$29),"",IF(AND('Master Data'!$C$14=$AP$5),VLOOKUP(B6,om,10,0),"")))),"") -> 875 | R6: 0 | S6: 0 | T6: 0 | U6: 0 | V6: =IFERROR(IF(OR('Master Data'!$C$14=$AP$6,B6=""),"",IF(AND(C6=""),"",IF(AND(B6=$AT$17,'Master Data'!$C$5="Gazetted"),500,IF(AND(B6=$AT$17,'Master Data'!$C$5="Non-Gazetted"),250,"")))),"") ->  | W6: 0 | X6: =IFERROR(IF(B6="","",IF(AND(BQ12=""),"",IF(OR(B6=$AX$24,B6=$AX$25,B6=$AX$26,B6=$AX$27,B6=$AX$28,B6=$AX$29),"",IF(AND('Master Data'!$C$14=$AP$5),VLOOKUP(B6,om,9,0),"")))),"") -> 2000 | Y6: =IFERROR(IF(OR('Master Data'!$C$14=$AP$6,B6="",'Master Data'!$C$11=""),"",IF(AND(C6=""),"",IF(B6=$AT$9,'Master Data'!$C$16,""))),"") ->  | Z6: =IF(B6="","",SUM(N6:Y6)) -> 17978 | AA6: =IFERROR(IF(AND(B6="",M6="",Z6=""),"",SUM(M6-Z6)),"") -> 81941 | AE6: Youtube Video Link For Your Help | AN6: GPF-2004 | AO6: No | AP6: Fix Pay | AQ6: Above 60 | AS6: 620
A7: 2 | B7: =IFERROR(IF(BO13="","",BO13),"") -> 2025-04-01 | C7: =IFERROR(IF(B7="","",IF(AND(BQ13=""),"",IF(B7=$AX$24,"",IF(AND('Master Data'!$C$14=$AP$6),VLOOKUP(B7,om,13,0),VLOOKUP(B7,om,4,0))))),"") -> 61300 | D7: =IFERROR(IF(B7="","",IF(AND(BQ13=""),"",IF(OR(B7=$AX$24),"",IF(AND('Master Data'!$C$14=$AP$5),VLOOKUP(B7,om,7,0),"")))),"") -> 33715 | E7: =IFERROR(IF(B7="","",IF(AND(BQ13=""),"",IF(OR(B7=$AX$24,B7=$AX$25,B7=$AX$26,B7=$AX$27,B7=$AX$28,B7=$AX$29),"",IF(AND('Master Data'!$C$14=$AP$5),VLOOKUP(B7,om,8,0),"")))),"") -> 6130 | F7: =IFERROR(IF(B7="","",IF(AND(BQ13=""),"",IF(OR(B7=$AX$24,B7=$AX$25,B7=$AX$26,B7=$AX$27,B7=$AX$28,B7=$AX$29),"",IF(AND('Master Data'!$C$14=$AP$5),F6,"")))),"") -> 0 | G7: =IFERROR(IF(B7="","",IF(AND(BQ13=""),"",IF(OR(B7=$AX$24,B7=$AX$25,B7=$AX$26,B7=$AX$27,B7=$AX$28,B7=$AX$29),"",IF(AND('Master Data'!$C$14=$AP$5),G6,"")))),"") -> 0 | H7: =IFERROR(IF(B7="","",IF(AND(BQ14=""),"",IF('Master Data'!$E$12="NO","",IF(OR(B7=$AX$24,B7=$AX$25,B7=$AX$26,B7=$AX$27,B7=$AX$28,B7=$AX$29),"",IF(AND('Master Data'!$C$14=$AP$5),F7,IF(AND('Master Data'!$E$13=$AR$9),$AS$6,IF(AND('Master Data'!$E$13=$AR$10),$AS$6,IF(AND('Master Data'!$E$13=$AR$11),$AS$6,IF(AND('Master Data'!$E$13=$AR$12),$AS$6,$AS$5))))))))),"") ->  | I7: =IFERROR(IF(B7="","",IF(AND(BQ13=""),"",IF(OR(B7=$AX$24,B7=$AX$25,B7=$AX$26,B7=$AX$27,B7=$AX$28,B7=$AX$29),"",IF(AND('Master Data'!$C$14=$AP$5),I6,"")))),"") -> 0 | J7: =IFERROR(IF(B7="","",IF(AND(BQ13=""),"",IF(OR(B7=$AX$24,B7=$AX$25,B7=$AX$26,B7=$AX$27,B7=$AX$28,B7=$AX$29),"",IF(AND('Master Data'!$C$14=$AP$5),J6,"")))),"") -> 0 | K7: =IFERROR(IF(B7="","",IF(AND('Master Data'!$C$14=$AP$6),"",IF(AND('Master Data'!$C$15<>0),IF(AND(B7="Bonus"),VLOOKUP(B7,om,4,0),"")))),"") ->  | L7: =IFERROR(IF(B7="","",IF(AND(BQ13=""),"",IF(OR(B7=$AX$24,B7=$AX$25,B7=$AX$26,B7=$AX$27,B7=$AX$28,B7=$AX$29),"",IF(AND('Master Data'!$C$14=$AP$5),L6,"")))),"") -> 0 | M7: =IF(B7="","",SUM(C7:L7)) -> 101145 | N7: =IFERROR(IF(B7="","",IF(AND(BQ13=""),"",IF(OR(B7=$AX$24,B7=$AX$25,B7=$AX$26,B7=$AX$27,B7=$AX$28,B7=$AX$29),"",IF(AND('Master Data'!$C$14=$AP$5),VLOOKUP(B7,om,11,0),"")))),"") -> 7000 | O7: =IFERROR(IF(B7="","",IF(AND(BQ13=""),"",IF(OR(B7=$AX$25),"",IF(AND('Master Data'!$C$14=$AP$5),VLOOKUP(B7,om,12,0),"")))),"") -> 7000 | P7: =IFERROR(IF(B7="","",IF(AND(BQ13=""),"",IF(OR(B7=$AX$24,B7=$AX$25,B7=$AX$26,B7=$AX$27,B7=$AX$28,B7=$AX$29),"",IF(AND('Master Data'!$C$14=$AP$5),'Master Data'!$E$16,"")))),"") -> 1103 | Q7: =IFERROR(IF(B7="","",IF(AND(BQ13=""),"",IF(OR(B7=$AX$24,B7=$AX$25,B7=$AX$26,B7=$AX$27,B7=$AX$28,B7=$AX$29),"",IF(AND('Master Data'!$C$14=$AP$5),VLOOKUP(B7,om,10,0),"")))),"") -> 875 | R7: =IFERROR(IF(B7="","",IF(AND(BQ13=""),"",IF(OR(B7=$AX$24,B7=$AX$25,B7=$AX$26,B7=$AX$27,B7=$AX$28,B7=$AX$29),"",IF(AND('Master Data'!$C$14=$AP$5),R6,"")))),"") -> 0 | S7: =IFERROR(IF(B7="","",IF(AND(BQ13=""),"",IF(OR(B7=$AX$24,B7=$AX$25,B7=$AX$26,B7=$AX$27,B7=$AX$28,B7=$AX$29),"",IF(AND('Master Data'!$C$14=$AP$5),S6,"")))),"") -> 0 | T7: =IFERROR(IF(B7="","",IF(AND(BQ13=""),"",IF(OR(B7=$AX$24,B7=$AX$25,B7=$AX$26,B7=$AX$27,B7=$AX$28,B7=$AX$29),"",IF(AND('Master Data'!$C$14=$AP$5),T6,"")))),"") -> 0 | U7: =IFERROR(IF(B7="","",IF(AND(BQ13=""),"",IF(OR(B7=$AX$24,B7=$AX$25,B7=$AX$26,B7=$AX$27,B7=$AX$28,B7=$AX$29),"",IF(AND('Master Data'!$C$14=$AP$5),U6,"")))),"") -> 0 | V7: =IFERROR(IF(OR('Master Data'!$C$14=$AP$6,B7=""),"",IF(AND(C7=""),"",IF(AND(B7=$AT$17,'Master Data'!$C$5="Gazetted"),500,IF(AND(B7=$AT$17,'Master Data'!$C$5="Non-Gazetted"),250,"")))),"") ->  | W7: =IFERROR(IF(B7="","",IF(AND(BQ13=""),"",IF(OR(B7=$AX$24,B7=$AX$25,B7=$AX$26,B7=$AX$27,B7=$AX$28,B7=$AX$29),"",IF(AND('Master Data'!$C$14=$AP$5),W6,"")))),"") -> 0 | X7: =IFERROR(IF(B7="","",IF(AND(BQ13=""),"",IF(OR(B7=$AX$24,B7=$AX$25,B7=$AX$26,B7=$AX$27,B7=$AX$28,B7=$AX$29),"",IF(AND('Master Data'!$C$14=$AP$5),VLOOKUP(B7,om,9,0),"")))),"") -> 2000 | Y7: =IFERROR(IF(OR('Master Data'!$C$14=$AP$6,B7="",'Master Data'!$C$11=""),"",IF(AND(C7=""),"",IF(B7=$AT$9,'Master Data'!$C$16,""))),"") -> 0 | Z7: =IF(B7="","",SUM(N7:Y7)) -> 17978 | AA7: =IFERROR(IF(AND(B7="",M7="",Z7=""),"",SUM(M7-Z7)),"") -> 83167 | AQ7: Above 80
A8: 3 | B8: =IFERROR(IF(BO14="","",BO14),"") -> 2025-05-01 | C8: =IFERROR(IF(B8="","",IF(AND(BQ14=""),"",IF(B8=$AX$24,"",IF(AND('Master Data'!$C$14=$AP$6),VLOOKUP(B8,om,13,0),VLOOKUP(B8,om,4,0))))),"") -> 61300 | D8: =IFERROR(IF(B8="","",IF(AND(BQ14=""),"",IF(OR(B8=$AX$24),"",IF(AND('Master Data'!$C$14=$AP$5),VLOOKUP(B8,om,7,0),"")))),"") -> 33715 | E8: =IFERROR(IF(B8="","",IF(AND(BQ14=""),"",IF(OR(B8=$AX$24,B8=$AX$25,B8=$AX$26,B8=$AX$27,B8=$AX$28,B8=$AX$29),"",IF(AND('Master Data'!$C$14=$AP$5),VLOOKUP(B8,om,8,0),"")))),"") -> 6130 | F8: =IFERROR(IF(B8="","",IF(AND(BQ14=""),"",IF(OR(B8=$AX$24,B8=$AX$25,B8=$AX$26,B8=$AX$27,B8=$AX$28,B8=$AX$29),"",IF(AND('Master Data'!$C$14=$AP$5),F7,"")))),"") -> 0 | G8: =IFERROR(IF(B8="","",IF(AND(BQ14=""),"",IF(OR(B8=$AX$24,B8=$AX$25,B8=$AX$26,B8=$AX$27,B8=$AX$28,B8=$AX$29),"",IF(AND('Master Data'!$C$14=$AP$5),G7,"")))),"") -> 0 | H8: =IFERROR(IF(B8="","",IF(AND(BQ15=""),"",IF('Master Data'!$E$12="NO","",IF(OR(B8=$AX$24,B8=$AX$25,B8=$AX$26,B8=$AX$27,B8=$AX$28,B8=$AX$29),"",IF(AND('Master Data'!$C$14=$AP$5),F8,IF(AND('Master Data'!$E$13=$AR$9),$AS$6,IF(AND('Master Data'!$E$13=$AR$10),$AS$6,IF(AND('Master Data'!$E$13=$AR$11),$AS$6,IF(AND('Master Data'!$E$13=$AR$12),$AS$6,$AS$5))))))))),"") ->  | I8: =IFERROR(IF(B8="","",IF(AND(BQ14=""),"",IF(OR(B8=$AX$24,B8=$AX$25,B8=$AX$26,B8=$AX$27,B8=$AX$28,B8=$AX$29),"",IF(AND('Master Data'!$C$14=$AP$5),I7,"")))),"") -> 0 | J8: =IFERROR(IF(B8="","",IF(AND(BQ14=""),"",IF(OR(B8=$AX$24,B8=$AX$25,B8=$AX$26,B8=$AX$27,B8=$AX$28,B8=$AX$29),"",IF(AND('Master Data'!$C$14=$AP$5),J7,"")))),"") -> 0 | K8: =IFERROR(IF(B8="","",IF(AND('Master Data'!$C$14=$AP$6),"",IF(AND('Master Data'!$C$15<>0),IF(AND(B8="Bonus"),VLOOKUP(B8,om,4,0),"")))),"") ->  | L8: =IFERROR(IF(B8="","",IF(AND(BQ14=""),"",IF(OR(B8=$AX$24,B8=$AX$25,B8=$AX$26,B8=$AX$27,B8=$AX$28,B8=$AX$29),"",IF(AND('Master Data'!$C$14=$AP$5),L7,"")))),"") -> 0 | M8: 101145 | N8: =IFERROR(IF(B8="","",IF(AND(BQ14=""),"",IF(OR(B8=$AX$24,B8=$AX$25,B8=$AX$26,B8=$AX$27,B8=$AX$28,B8=$AX$29),"",IF(AND('Master Data'!$C$14=$AP$5),VLOOKUP(B8,om,11,0),"")))),"") -> 7000 | O8: =IFERROR(IF(B8="","",IF(AND(BQ14=""),"",IF(OR(B8=$AX$25),"",IF(AND('Master Data'!$C$14=$AP$5),VLOOKUP(B8,om,12,0),"")))),"") -> 7000 | P8: =IFERROR(IF(B8="","",IF(AND(BQ14=""),"",IF(OR(B8=$AX$24,B8=$AX$25,B8=$AX$26,B8=$AX$27,B8=$AX$28,B8=$AX$29),"",IF(AND('Master Data'!$C$14=$AP$5),'Master Data'!$E$16,"")))),"") -> 1103 | Q8: =IFERROR(IF(B8="","",IF(AND(BQ14=""),"",IF(OR(B8=$AX$24,B8=$AX$25,B8=$AX$26,B8=$AX$27,B8=$AX$28,B8=$AX$29),"",IF(AND('Master Data'!$C$14=$AP$5),VLOOKUP(B8,om,10,0),"")))),"") -> 875 | R8: =IFERROR(IF(B8="","",IF(AND(BQ14=""),"",IF(OR(B8=$AX$24,B8=$AX$25,B8=$AX$26,B8=$AX$27,B8=$AX$28,B8=$AX$29),"",IF(AND('Master Data'!$C$14=$AP$5),R7,"")))),"") -> 0 | S8: =IFERROR(IF(B8="","",IF(AND(BQ14=""),"",IF(OR(B8=$AX$24,B8=$AX$25,B8=$AX$26,B8=$AX$27,B8=$AX$28,B8=$AX$29),"",IF(AND('Master Data'!$C$14=$AP$5),S7,"")))),"") -> 0 | T8: =IFERROR(IF(B8="","",IF(AND(BQ14=""),"",IF(OR(B8=$AX$24,B8=$AX$25,B8=$AX$26,B8=$AX$27,B8=$AX$28,B8=$AX$29),"",IF(AND('Master Data'!$C$14=$AP$5),T7,"")))),"") -> 0 | U8: =IFERROR(IF(B8="","",IF(AND(BQ14=""),"",IF(OR(B8=$AX$24,B8=$AX$25,B8=$AX$26,B8=$AX$27,B8=$AX$28,B8=$AX$29),"",IF(AND('Master Data'!$C$14=$AP$5),U7,"")))),"") -> 0 | V8: =IFERROR(IF(OR('Master Data'!$C$14=$AP$6,B8=""),"",IF(AND(C8=""),"",IF(AND(B8=$AT$17,'Master Data'!$C$5="Gazetted"),500,IF(AND(B8=$AT$17,'Master Data'!$C$5="Non-Gazetted"),250,"")))),"") ->  | W8: =IFERROR(IF(B8="","",IF(AND(BQ14=""),"",IF(OR(B8=$AX$24,B8=$AX$25,B8=$AX$26,B8=$AX$27,B8=$AX$28,B8=$AX$29),"",IF(AND('Master Data'!$C$14=$AP$5),W7,"")))),"") -> 0 | X8: =IFERROR(IF(B8="","",IF(AND(BQ14=""),"",IF(OR(B8=$AX$24,B8=$AX$25,B8=$AX$26,B8=$AX$27,B8=$AX$28,B8=$AX$29),"",IF(AND('Master Data'!$C$14=$AP$5),VLOOKUP(B8,om,9,0),"")))),"") -> 2000 | Y8: =IFERROR(IF(OR('Master Data'!$C$14=$AP$6,B8="",'Master Data'!$C$11=""),"",IF(AND(C8=""),"",IF(B8=$AT$9,'Master Data'!$C$16,""))),"") ->  | Z8: 17978 | AA8: 83167 | AE8: https://youtu.be/wU0JpB3heTQ | AR8: Jaipur (U.A.) | AS8: JAN | AT8: 2025-03-01 | AU8: L-1 | AX8: 2024-03-01
A9: 4 | B9: 2025-06-01 | C9: =IFERROR(IF(B9="","",IF(AND(BQ15=""),"",IF(B9=$AX$24,"",IF(AND('Master Data'!$C$14=$AP$6),VLOOKUP(B9,om,13,0),VLOOKUP(B9,om,4,0))))),"") -> 61300 | D9: =IFERROR(IF(B9="","",IF(AND(BQ15=""),"",IF(OR(B9=$AX$24),"",IF(AND('Master Data'!$C$14=$AP$5),VLOOKUP(B9,om,7,0),"")))),"") -> 33715 | E9: =IFERROR(IF(B9="","",IF(AND(BQ15=""),"",IF(OR(B9=$AX$24,B9=$AX$25,B9=$AX$26,B9=$AX$27,B9=$AX$28,B9=$AX$29),"",IF(AND('Master Data'!$C$14=$AP$5),VLOOKUP(B9,om,8,0),"")))),"") -> 6130 | F9: =IFERROR(IF(B9="","",IF(AND(BQ15=""),"",IF(OR(B9=$AX$24,B9=$AX$25,B9=$AX$26,B9=$AX$27,B9=$AX$28,B9=$AX$29),"",IF(AND('Master Data'!$C$14=$AP$5),F8,"")))),"") -> 0 | G9: =IFERROR(IF(B9="","",IF(AND(BQ15=""),"",IF(OR(B9=$AX$24,B9=$AX$25,B9=$AX$26,B9=$AX$27,B9=$AX$28,B9=$AX$29),"",IF(AND('Master Data'!$C$14=$AP$5),G8,"")))),"") -> 0 | H9: =IFERROR(IF(B9="","",IF(AND(BQ16=""),"",IF('Master Data'!$E$12="NO","",IF(OR(B9=$AX$24,B9=$AX$25,B9=$AX$26,B9=$AX$27,B9=$AX$28,B9=$AX$29),"",IF(AND('Master Data'!$C$14=$AP$5),F9,IF(AND('Master Data'!$E$13=$AR$9),$AS$6,IF(AND('Master Data'!$E$13=$AR$10),$AS$6,IF(AND('Master Data'!$E$13=$AR$11),$AS$6,IF(AND('Master Data'!$E$13=$AR$12),$AS$6,$AS$5))))))))),"") ->  | I9: =IFERROR(IF(B9="","",IF(AND(BQ15=""),"",IF(OR(B9=$AX$24,B9=$AX$25,B9=$AX$26,B9=$AX$27,B9=$AX$28,B9=$AX$29),"",IF(AND('Master Data'!$C$14=$AP$5),I8,"")))),"") -> 0 | J9: =IFERROR(IF(B9="","",IF(AND(BQ15=""),"",IF(OR(B9=$AX$24,B9=$AX$25,B9=$AX$26,B9=$AX$27,B9=$AX$28,B9=$AX$29),"",IF(AND('Master Data'!$C$14=$AP$5),J8,"")))),"") -> 0 | K9: =IFERROR(IF(B9="","",IF(AND('Master Data'!$C$14=$AP$6),"",IF(AND('Master Data'!$C$15<>0),IF(AND(B9="Bonus"),VLOOKUP(B9,om,4,0),"")))),"") ->  | L9: =IFERROR(IF(B9="","",IF(AND(BQ15=""),"",IF(OR(B9=$AX$24,B9=$AX$25,B9=$AX$26,B9=$AX$27,B9=$AX$28,B9=$AX$29),"",IF(AND('Master Data'!$C$14=$AP$5),L8,"")))),"") -> 0 | M9: 101145 | N9: =IFERROR(IF(B9="","",IF(AND(BQ15=""),"",IF(OR(B9=$AX$24,B9=$AX$25,B9=$AX$26,B9=$AX$27,B9=$AX$28,B9=$AX$29),"",IF(AND('Master Data'!$C$14=$AP$5),VLOOKUP(B9,om,11,0),"")))),"") -> 7000 | O9: =IFERROR(IF(B9="","",IF(AND(BQ15=""),"",IF(OR(B9=$AX$25),"",IF(AND('Master Data'!$C$14=$AP$5),VLOOKUP(B9,om,12,0),"")))),"") -> 7000 | P9: =IFERROR(IF(B9="","",IF(AND(BQ15=""),"",IF(OR(B9=$AX$24,B9=$AX$25,B9=$AX$26,B9=$AX$27,B9=$AX$28,B9=$AX$29),"",IF(AND('Master Data'!$C$14=$AP$5),'Master Data'!$E$16,"")))),"") -> 1103 | Q9: =IFERROR(IF(B9="","",IF(AND(BQ15=""),"",IF(OR(B9=$AX$24,B9=$AX$25,B9=$AX$26,B9=$AX$27,B9=$AX$28,B9=$AX$29),"",IF(AND('Master Data'!$C$14=$AP$5),VLOOKUP(B9,om,10,0),"")))),"") -> 875 | R9: =IFERROR(IF(B9="","",IF(AND(BQ15=""),"",IF(OR(B9=$AX$24,B9=$AX$25,B9=$AX$26,B9=$AX$27,B9=$AX$28,B9=$AX$29),"",IF(AND('Master Data'!$C$14=$AP$5),R8,"")))),"") -> 0 | S9: =IFERROR(IF(B9="","",IF(AND(BQ15=""),"",IF(OR(B9=$AX$24,B9=$AX$25,B9=$AX$26,B9=$AX$27,B9=$AX$28,B9=$AX$29),"",IF(AND('Master Data'!$C$14=$AP$5),S8,"")))),"") -> 0 | T9: =IFERROR(IF(B9="","",IF(AND(BQ15=""),"",IF(OR(B9=$AX$24,B9=$AX$25,B9=$AX$26,B9=$AX$27,B9=$AX$28,B9=$AX$29),"",IF(AND('Master Data'!$C$14=$AP$5),T8,"")))),"") -> 0 | U9: =IFERROR(IF(B9="","",IF(AND(BQ15=""),"",IF(OR(B9=$AX$24,B9=$AX$25,B9=$AX$26,B9=$AX$27,B9=$AX$28,B9=$AX$29),"",IF(AND('Master Data'!$C$14=$AP$5),U8,"")))),"") -> 0 | V9: =IFERROR(IF(OR('Master Data'!$C$14=$AP$6,B9=""),"",IF(AND(C9=""),"",IF(AND(B9=$AT$17,'Master Data'!$C$5="Gazetted"),500,IF(AND(B9=$AT$17,'Master Data'!$C$5="Non-Gazetted"),250,"")))),"") ->  | W9: =IFERROR(IF(B9="","",IF(AND(BQ15=""),"",IF(OR(B9=$AX$24,B9=$AX$25,B9=$AX$26,B9=$AX$27,B9=$AX$28,B9=$AX$29),"",IF(AND('Master Data'!$C$14=$AP$5),W8,"")))),"") -> 0 | X9: =IFERROR(IF(B9="","",IF(AND(BQ15=""),"",IF(OR(B9=$AX$24,B9=$AX$25,B9=$AX$26,B9=$AX$27,B9=$AX$28,B9=$AX$29),"",IF(AND('Master Data'!$C$14=$AP$5),VLOOKUP(B9,om,9,0),"")))),"") -> 2000 | Y9: =IFERROR(IF(OR('Master Data'!$C$14=$AP$6,B9="",'Master Data'!$C$11=""),"",IF(AND(C9=""),"",IF(B9=$AT$9,'Master Data'!$C$16,""))),"") ->  | Z9: 17978 | AA9: 83167 | AR9: Ajmer | AS9: FEB | AT9: 2025-04-01 | AU9: L-2 | AZ9: 2026-02-28 | BE9: =IF('Master Data'!$E$11=9,10,20) -> 20
A10: 5 | B10: 2025-07-01 | C10: =IFERROR(IF(B10="","",IF(AND(BQ16=""),"",IF(B10=$AX$24,"",IF(AND('Master Data'!$C$14=$AP$6),VLOOKUP(B10,om,13,0),VLOOKUP(B10,om,4,0))))),"") -> 63100 | D10: =IFERROR(IF(B10="","",IF(AND(BQ16=""),"",IF(OR(B10=$AX$24),"",IF(AND('Master Data'!$C$14=$AP$5),VLOOKUP(B10,om,7,0),"")))),"") -> 34705 | E10: =IFERROR(IF(B10="","",IF(AND(BQ16=""),"",IF(OR(B10=$AX$24,B10=$AX$25,B10=$AX$26,B10=$AX$27,B10=$AX$28,B10=$AX$29),"",IF(AND('Master Data'!$C$14=$AP$5),VLOOKUP(B10,om,8,0),"")))),"") -> 6310 | F10: =IFERROR(IF(B10="","",IF(AND(BQ16=""),"",IF(OR(B10=$AX$24,B10=$AX$25,B10=$AX$26,B10=$AX$27,B10=$AX$28,B10=$AX$29),"",IF(AND('Master Data'!$C$14=$AP$5),F9,"")))),"") -> 0 | G10: =IFERROR(IF(B10="","",IF(AND(BQ16=""),"",IF(OR(B10=$AX$24,B10=$AX$25,B10=$AX$26,B10=$AX$27,B10=$AX$28,B10=$AX$29),"",IF(AND('Master Data'!$C$14=$AP$5),G9,"")))),"") -> 0 | H10: =IFERROR(IF(B10="","",IF(AND(BQ17=""),"",IF('Master Data'!$E$12="NO","",IF(OR(B10=$AX$24,B10=$AX$25,B10=$AX$26,B10=$AX$27,B10=$AX$28,B10=$AX$29),"",IF(AND('Master Data'!$C$14=$AP$5),F10,IF(AND('Master Data'!$E$13=$AR$9),$AS$6,IF(AND('Master Data'!$E$13=$AR$10),$AS$6,IF(AND('Master Data'!$E$13=$AR$11),$AS$6,IF(AND('Master Data'!$E$13=$AR$12),$AS$6,$AS$5))))))))),"") ->  | I10: =IFERROR(IF(B10="","",IF(AND(BQ16=""),"",IF(OR(B10=$AX$24,B10=$AX$25,B10=$AX$26,B10=$AX$27,B10=$AX$28,B10=$AX$29),"",IF(AND('Master Data'!$C$14=$AP$5),I9,"")))),"") -> 0 | J10: =IFERROR(IF(B10="","",IF(AND(BQ16=""),"",IF(OR(B10=$AX$24,B10=$AX$25,B10=$AX$26,B10=$AX$27,B10=$AX$28,B10=$AX$29),"",IF(AND('Master Data'!$C$14=$AP$5),J9,"")))),"") -> 0 | K10: =IFERROR(IF(B10="","",IF(AND('Master Data'!$C$14=$AP$6),"",IF(AND('Master Data'!$C$15<>0),IF(AND(B10="Bonus"),VLOOKUP(B10,om,4,0),"")))),"") ->  | L10: =IFERROR(IF(B10="","",IF(AND(BQ16=""),"",IF(OR(B10=$AX$24,B10=$AX$25,B10=$AX$26,B10=$AX$27,B10=$AX$28,B10=$AX$29),"",IF(AND('Master Data'!$C$14=$AP$5),L9,"")))),"") -> 0 | M10: 104115 | N10: =IFERROR(IF(B10="","",IF(AND(BQ16=""),"",IF(OR(B10=$AX$24,B10=$AX$25,B10=$AX$26,B10=$AX$27,B10=$AX$28,B10=$AX$29),"",IF(AND('Master Data'!$C$14=$AP$5),VLOOKUP(B10,om,11,0),"")))),"") -> 7000 | O10: =IFERROR(IF(B10="","",IF(AND(BQ16=""),"",IF(OR(B10=$AX$25),"",IF(AND('Master Data'!$C$14=$AP$5),VLOOKUP(B10,om,12,0),"")))),"") -> 7000 | P10: =IFERROR(IF(B10="","",IF(AND(BQ16=""),"",IF(OR(B10=$AX$24,B10=$AX$25,B10=$AX$26,B10=$AX$27,B10=$AX$28,B10=$AX$29),"",IF(AND('Master Data'!$C$14=$AP$5),'Master Data'!$E$16,"")))),"") -> 1103 | Q10: =IFERROR(IF(B10="","",IF(AND(BQ16=""),"",IF(OR(B10=$AX$24,B10=$AX$25,B10=$AX$26,B10=$AX$27,B10=$AX$28,B10=$AX$29),"",IF(AND('Master Data'!$C$14=$AP$5),VLOOKUP(B10,om,10,0),"")))),"") -> 875 | R10: =IFERROR(IF(B10="","",IF(AND(BQ16=""),"",IF(OR(B10=$AX$24,B10=$AX$25,B10=$AX$26,B10=$AX$27,B10=$AX$28,B10=$AX$29),"",IF(AND('Master Data'!$C$14=$AP$5),R9,"")))),"") -> 0 | S10: =IFERROR(IF(B10="","",IF(AND(BQ16=""),"",IF(OR(B10=$AX$24,B10=$AX$25,B10=$AX$26,B10=$AX$27,B10=$AX$28,B10=$AX$29),"",IF(AND('Master Data'!$C$14=$AP$5),S9,"")))),"") -> 0 | T10: =IFERROR(IF(B10="","",IF(AND(BQ16=""),"",IF(OR(B10=$AX$24,B10=$AX$25,B10=$AX$26,B10=$AX$27,B10=$AX$28,B10=$AX$29),"",IF(AND('Master Data'!$C$14=$AP$5),T9,"")))),"") -> 0 | U10: =IFERROR(IF(B10="","",IF(AND(BQ16=""),"",IF(OR(B10=$AX$24,B10=$AX$25,B10=$AX$26,B10=$AX$27,B10=$AX$28,B10=$AX$29),"",IF(AND('Master Data'!$C$14=$AP$5),U9,"")))),"") -> 0 | V10: =IFERROR(IF(OR('Master Data'!$C$14=$AP$6,B10=""),"",IF(AND(C10=""),"",IF(AND(B10=$AT$17,'Master Data'!$C$5="Gazetted"),500,IF(AND(B10=$AT$17,'Master Data'!$C$5="Non-Gazetted"),250,"")))),"") ->  | W10: =IFERROR(IF(B10="","",IF(AND(BQ16=""),"",IF(OR(B10=$AX$24,B10=$AX$25,B10=$AX$26,B10=$AX$27,B10=$AX$28,B10=$AX$29),"",IF(AND('Master Data'!$C$14=$AP$5),W9,"")))),"") -> 0 | X10: =IFERROR(IF(B10="","",IF(AND(BQ16=""),"",IF(OR(B10=$AX$24,B10=$AX$25,B10=$AX$26,B10=$AX$27,B10=$AX$28,B10=$AX$29),"",IF(AND('Master Data'!$C$14=$AP$5),VLOOKUP(B10,om,9,0),"")))),"") -> 2000 | Y10: =IFERROR(IF(OR('Master Data'!$C$14=$AP$6,B10="",'Master Data'!$C$11=""),"",IF(AND(C10=""),"",IF(B10=$AT$9,'Master Data'!$C$16,""))),"") ->  | Z10: 17978 | AA10: 86137 | AR10: Bikaner | AS10: MAR | AT10: 2025-05-01 | AU10: L-3 | AW10: JAN | AX10: 2025-01-01 | BA10: =IF(AND('Master Data'!$C$11=""),"",'Master Data'!$C$11) -> 61300 | BB10: =IF(AND(AX10<$AZ$16),"",IF(AND(AX10>$AZ$17),"",BA10)) ->  | BC10: =IF(AND('Master Data'!$C$11=""),"",ROUND(31%*BA10,0)) -> 19003 | BD10: =IF(BB10="","",BC10) ->  | BH10: =IFERROR(IF(OR('Master Data'!C14=$AP$6),"",'Master Data'!C10),"") -> 7000 | BJ10: =BA10 -> 61300 | BL10: =MONTH(AZ17) -> 2 | BS10: =B6 -> 2025-03-01
A11: 6 | B11: 2025-08-01 | C11: =IFERROR(IF(B11="","",IF(AND(BQ17=""),"",IF(B11=$AX$24,"",IF(AND('Master Data'!$C$14=$AP$6),VLOOKUP(B11,om,13,0),VLOOKUP(B11,om,4,0))))),"") -> 63100 | D11: =IFERROR(IF(B11="","",IF(AND(BQ17=""),"",IF(OR(B11=$AX$24),"",IF(AND('Master Data'!$C$14=$AP$5),VLOOKUP(B11,om,7,0),"")))),"") -> 34705 | E11: =IFERROR(IF(B11="","",IF(AND(BQ17=""),"",IF(OR(B11=$AX$24,B11=$AX$25,B11=$AX$26,B11=$AX$27,B11=$AX$28,B11=$AX$29),"",IF(AND('Master Data'!$C$14=$AP$5),VLOOKUP(B11,om,8,0),"")))),"") -> 6310 | F11: =IFERROR(IF(B11="","",IF(AND(BQ17=""),"",IF(OR(B11=$AX$24,B11=$AX$25,B11=$AX$26,B11=$AX$27,B11=$AX$28,B11=$AX$29),"",IF(AND('Master Data'!$C$14=$AP$5),F10,"")))),"") -> 0 | G11: =IFERROR(IF(B11="","",IF(AND(BQ17=""),"",IF(OR(B11=$AX$24,B11=$AX$25,B11=$AX$26,B11=$AX$27,B11=$AX$28,B11=$AX$29),"",IF(AND('Master Data'!$C$14=$AP$5),G10,"")))),"") -> 0 | H11: =IFERROR(IF(B11="","",IF(AND(BQ18=""),"",IF('Master Data'!$E$12="NO","",IF(OR(B11=$AX$24,B11=$AX$25,B11=$AX$26,B11=$AX$27,B11=$AX$28,B11=$AX$29),"",IF(AND('Master Data'!$C$14=$AP$5),F11,IF(AND('Master Data'!$E$13=$AR$9),$AS$6,IF(AND('Master Data'!$E$13=$AR$10),$AS$6,IF(AND('Master Data'!$E$13=$AR$11),$AS$6,IF(AND('Master Data'!$E$13=$AR$12),$AS$6,$AS$5))))))))),"") ->  | I11: =IFERROR(IF(B11="","",IF(AND(BQ17=""),"",IF(OR(B11=$AX$24,B11=$AX$25,B11=$AX$26,B11=$AX$27,B11=$AX$28,B11=$AX$29),"",IF(AND('Master Data'!$C$14=$AP$5),I10,"")))),"") -> 0 | J11: =IFERROR(IF(B11="","",IF(AND(BQ17=""),"",IF(OR(B11=$AX$24,B11=$AX$25,B11=$AX$26,B11=$AX$27,B11=$AX$28,B11=$AX$29),"",IF(AND('Master Data'!$C$14=$AP$5),J10,"")))),"") -> 0 | K11: =IFERROR(IF(B11="","",IF(AND('Master Data'!$C$14=$AP$6),"",IF(AND('Master Data'!$C$15<>0),IF(AND(B11="Bonus"),VLOOKUP(B11,om,4,0),"")))),"") ->  | L11: =IFERROR(IF(B11="","",IF(AND(BQ17=""),"",IF(OR(B11=$AX$24,B11=$AX$25,B11=$AX$26,B11=$AX$27,B11=$AX$28,B11=$AX$29),"",IF(AND('Master Data'!$C$14=$AP$5),L10,"")))),"") -> 0 | M11: 104115 | N11: =IFERROR(IF(B11="","",IF(AND(BQ17=""),"",IF(OR(B11=$AX$24,B11=$AX$25,B11=$AX$26,B11=$AX$27,B11=$AX$28,B11=$AX$29),"",IF(AND('Master Data'!$C$14=$AP$5),VLOOKUP(B11,om,11,0),"")))),"") -> 7000 | O11: =IFERROR(IF(B11="","",IF(AND(BQ17=""),"",IF(OR(B11=$AX$25),"",IF(AND('Master Data'!$C$14=$AP$5),VLOOKUP(B11,om,12,0),"")))),"") -> 7000 | P11: =IFERROR(IF(B11="","",IF(AND(BQ17=""),"",IF(OR(B11=$AX$24,B11=$AX$25,B11=$AX$26,B11=$AX$27,B11=$AX$28,B11=$AX$29),"",IF(AND('Master Data'!$C$14=$AP$5),'Master Data'!$E$16,"")))),"") -> 1103 | Q11: =IFERROR(IF(B11="","",IF(AND(BQ17=""),"",IF(OR(B11=$AX$24,B11=$AX$25,B11=$AX$26,B11=$AX$27,B11=$AX$28,B11=$AX$29),"",IF(AND('Master Data'!$C$14=$AP$5),VLOOKUP(B11,om,10,0),"")))),"") -> 875 | R11: =IFERROR(IF(B11="","",IF(AND(BQ17=""),"",IF(OR(B11=$AX$24,B11=$AX$25,B11=$AX$26,B11=$AX$27,B11=$AX$28,B11=$AX$29),"",IF(AND('Master Data'!$C$14=$AP$5),R10,"")))),"") -> 0 | S11: =IFERROR(IF(B11="","",IF(AND(BQ17=""),"",IF(OR(B11=$AX$24,B11=$AX$25,B11=$AX$26,B11=$AX$27,B11=$AX$28,B11=$AX$29),"",IF(AND('Master Data'!$C$14=$AP$5),S10,"")))),"") -> 0 | T11: =IFERROR(IF(B11="","",IF(AND(BQ17=""),"",IF(OR(B11=$AX$24,B11=$AX$25,B11=$AX$26,B11=$AX$27,B11=$AX$28,B11=$AX$29),"",IF(AND('Master Data'!$C$14=$AP$5),T10,"")))),"") -> 0 | U11: =IFERROR(IF(B11="","",IF(AND(BQ17=""),"",IF(OR(B11=$AX$24,B11=$AX$25,B11=$AX$26,B11=$AX$27,B11=$AX$28,B11=$AX$29),"",IF(AND('Master Data'!$C$14=$AP$5),U10,"")))),"") -> 0 | V11: =IFERROR(IF(OR('Master Data'!$C$14=$AP$6,B11=""),"",IF(AND(C11=""),"",IF(AND(B11=$AT$17,'Master Data'!$C$5="Gazetted"),500,IF(AND(B11=$AT$17,'Master Data'!$C$5="Non-Gazetted"),250,"")))),"") ->  | W11: =IFERROR(IF(B11="","",IF(AND(BQ17=""),"",IF(OR(B11=$AX$24,B11=$AX$25,B11=$AX$26,B11=$AX$27,B11=$AX$28,B11=$AX$29),"",IF(AND('Master Data'!$C$14=$AP$5),W10,"")))),"") -> 0 | X11: =IFERROR(IF(B11="","",IF(AND(BQ17=""),"",IF(OR(B11=$AX$24,B11=$AX$25,B11=$AX$26,B11=$AX$27,B11=$AX$28,B11=$AX$29),"",IF(AND('Master Data'!$C$14=$AP$5),VLOOKUP(B11,om,9,0),"")))),"") -> 2000 | Y11: =IFERROR(IF(OR('Master Data'!$C$14=$AP$6,B11="",'Master Data'!$C$11=""),"",IF(AND(C11=""),"",IF(B11=$AT$9,'Master Data'!$C$16,""))),"") ->  | Z11: 17978 | AA11: 86137 | AR11: Jodhpur | AS11: APR | AT11: 2025-06-01 | AU11: L-4 | AW11: FEB | AX11: 2025-02-01 | BA11: =IF(AND('Master Data'!$C$11=""),"",'Master Data'!$C$11) -> 61300 | BB11: =IF(AND(AX11<$AZ$16),"",IF(AND(AX11>$AZ$17),"",BA11)) ->  | BC11: =IF(AND('Master Data'!$C$11=""),"",ROUND(31%*BA11,0)) -> 19003 | BD11: =IF(BB11="","",BC11) ->  | BH11: =IFERROR(IF(OR('Master Data'!C14=$AP$6),"",'Master Data'!C10),"") -> 7000 | BJ11: =BA11 -> 61300
A12: 7 | B12: 2025-09-01 | C12: =IFERROR(IF(B12="","",IF(AND(BQ18=""),"",IF(B12=$AX$24,"",IF(AND('Master Data'!$C$14=$AP$6),VLOOKUP(B12,om,13,0),VLOOKUP(B12,om,4,0))))),"") -> 63100 | D12: =IFERROR(IF(B12="","",IF(AND(BQ18=""),"",IF(OR(B12=$AX$24),"",IF(AND('Master Data'!$C$14=$AP$5),VLOOKUP(B12,om,7,0),"")))),"") -> 34705 | E12: =IFERROR(IF(B12="","",IF(AND(BQ18=""),"",IF(OR(B12=$AX$24,B12=$AX$25,B12=$AX$26,B12=$AX$27,B12=$AX$28,B12=$AX$29),"",IF(AND('Master Data'!$C$14=$AP$5),VLOOKUP(B12,om,8,0),"")))),"") -> 6310 | F12: =IFERROR(IF(B12="","",IF(AND(BQ18=""),"",IF(OR(B12=$AX$24,B12=$AX$25,B12=$AX$26,B12=$AX$27,B12=$AX$28,B12=$AX$29),"",IF(AND('Master Data'!$C$14=$AP$5),F11,"")))),"") -> 0 | G12: =IFERROR(IF(B12="","",IF(AND(BQ18=""),"",IF(OR(B12=$AX$24,B12=$AX$25,B12=$AX$26,B12=$AX$27,B12=$AX$28,B12=$AX$29),"",IF(AND('Master Data'!$C$14=$AP$5),G11,"")))),"") -> 0 | H12: =IFERROR(IF(B12="","",IF(AND(BQ19=""),"",IF('Master Data'!$E$12="NO","",IF(OR(B12=$AX$24,B12=$AX$25,B12=$AX$26,B12=$AX$27,B12=$AX$28,B12=$AX$29),"",IF(AND('Master Data'!$C$14=$AP$5),F12,IF(AND('Master Data'!$E$13=$AR$9),$AS$6,IF(AND('Master Data'!$E$13=$AR$10),$AS$6,IF(AND('Master Data'!$E$13=$AR$11),$AS$6,IF(AND('Master Data'!$E$13=$AR$12),$AS$6,$AS$5))))))))),"") ->  | I12: =IFERROR(IF(B12="","",IF(AND(BQ18=""),"",IF(OR(B12=$AX$24,B12=$AX$25,B12=$AX$26,B12=$AX$27,B12=$AX$28,B12=$AX$29),"",IF(AND('Master Data'!$C$14=$AP$5),I11,"")))),"") -> 0 | J12: =IFERROR(IF(B12="","",IF(AND(BQ18=""),"",IF(OR(B12=$AX$24,B12=$AX$25,B12=$AX$26,B12=$AX$27,B12=$AX$28,B12=$AX$29),"",IF(AND('Master Data'!$C$14=$AP$5),J11,"")))),"") -> 0 | K12: =IFERROR(IF(B12="","",IF(AND('Master Data'!$C$14=$AP$6),"",IF(AND('Master Data'!$C$15<>0),IF(AND(B12="Bonus"),VLOOKUP(B12,om,4,0),"")))),"") ->  | L12: =IFERROR(IF(B12="","",IF(AND(BQ18=""),"",IF(OR(B12=$AX$24,B12=$AX$25,B12=$AX$26,B12=$AX$27,B12=$AX$28,B12=$AX$29),"",IF(AND('Master Data'!$C$14=$AP$5),L11,"")))),"") -> 0 | M12: 104115 | N12: =IFERROR(IF(B12="","",IF(AND(BQ18=""),"",IF(OR(B12=$AX$24,B12=$AX$25,B12=$AX$26,B12=$AX$27,B12=$AX$28,B12=$AX$29),"",IF(AND('Master Data'!$C$14=$AP$5),VLOOKUP(B12,om,11,0),"")))),"") -> 7000 | O12: =IFERROR(IF(B12="","",IF(AND(BQ18=""),"",IF(OR(B12=$AX$25),"",IF(AND('Master Data'!$C$14=$AP$5),VLOOKUP(B12,om,12,0),"")))),"") -> 7000 | P12: =IFERROR(IF(B12="","",IF(AND(BQ18=""),"",IF(OR(B12=$AX$24,B12=$AX$25,B12=$AX$26,B12=$AX$27,B12=$AX$28,B12=$AX$29),"",IF(AND('Master Data'!$C$14=$AP$5),'Master Data'!$E$16,"")))),"") -> 1103 | Q12: =IFERROR(IF(B12="","",IF(AND(BQ18=""),"",IF(OR(B12=$AX$24,B12=$AX$25,B12=$AX$26,B12=$AX$27,B12=$AX$28,B12=$AX$29),"",IF(AND('Master Data'!$C$14=$AP$5),VLOOKUP(B12,om,10,0),"")))),"") -> 875 | R12: =IFERROR(IF(B12="","",IF(AND(BQ18=""),"",IF(OR(B12=$AX$24,B12=$AX$25,B12=$AX$26,B12=$AX$27,B12=$AX$28,B12=$AX$29),"",IF(AND('Master Data'!$C$14=$AP$5),R11,"")))),"") -> 0 | S12: =IFERROR(IF(B12="","",IF(AND(BQ18=""),"",IF(OR(B12=$AX$24,B12=$AX$25,B12=$AX$26,B12=$AX$27,B12=$AX$28,B12=$AX$29),"",IF(AND('Master Data'!$C$14=$AP$5),S11,"")))),"") -> 0 | T12: =IFERROR(IF(B12="","",IF(AND(BQ18=""),"",IF(OR(B12=$AX$24,B12=$AX$25,B12=$AX$26,B12=$AX$27,B12=$AX$28,B12=$AX$29),"",IF(AND('Master Data'!$C$14=$AP$5),T11,"")))),"") -> 0 | U12: =IFERROR(IF(B12="","",IF(AND(BQ18=""),"",IF(OR(B12=$AX$24,B12=$AX$25,B12=$AX$26,B12=$AX$27,B12=$AX$28,B12=$AX$29),"",IF(AND('Master Data'!$C$14=$AP$5),U11,"")))),"") -> 0 | V12: =IFERROR(IF(OR('Master Data'!$C$14=$AP$6,B12=""),"",IF(AND(C12=""),"",IF(AND(B12=$AT$17,'Master Data'!$C$5="Gazetted"),500,IF(AND(B12=$AT$17,'Master Data'!$C$5="Non-Gazetted"),250,"")))),"") ->  | W12: =IFERROR(IF(B12="","",IF(AND(BQ18=""),"",IF(OR(B12=$AX$24,B12=$AX$25,B12=$AX$26,B12=$AX$27,B12=$AX$28,B12=$AX$29),"",IF(AND('Master Data'!$C$14=$AP$5),W11,"")))),"") -> 0 | X12: =IFERROR(IF(B12="","",IF(AND(BQ18=""),"",IF(OR(B12=$AX$24,B12=$AX$25,B12=$AX$26,B12=$AX$27,B12=$AX$28,B12=$AX$29),"",IF(AND('Master Data'!$C$14=$AP$5),VLOOKUP(B12,om,9,0),"")))),"") -> 2000 | Y12: =IFERROR(IF(OR('Master Data'!$C$14=$AP$6,B12="",'Master Data'!$C$11=""),"",IF(AND(C12=""),"",IF(B12=$AT$9,'Master Data'!$C$16,""))),"") ->  | Z12: 17978 | AA12: 86137 | AR12: Kota | AS12: MAY | AT12: 2025-07-01 | AU12: L-5 | AW12: MAR | AX12: 2025-03-01 | AY12: 3 | BA12: =IF(AND('Master Data'!$C$11=""),"",IF(AND('Master Data'!$C$14=$AP$6),$AZ$15,BU12)) -> 61300 | BB12: =IF(AND(AX12<$AZ$16),"",IF(AND(AX12>$AZ$17),"",BA12)) -> 61300 | BC12: =IF(AND('Master Data'!$C$11=""),"",ROUND(53%*BA12,0)) -> 32489 | BD12: =IF(BB12="","",BC12) -> 32489 | BE12: =IFERROR(IF(AND('Master Data'!$C$11=""),"",ROUND('Master Data'!$E$11%*BB12,0)),"") -> 6130 | BF12: ='Master Data'!$E$15 -> 2000 | BG12: =IFERROR(IF(OR('Master Data'!$C$14=$AP$6),"",IF('Master Data'!$E$8="GPF-2004",IF(BB12<18001,135,IF(BB12<33501,220,IF(BB12<54001,330,440))),IF(AND('Master Data'!$E$8="GPF"),IF(BB12<18001,265,IF(BB12<33501,440,IF(BB12<54001,658,875))),""))),"") -> 875 | BH12: =IFERROR(IF(OR('Master Data'!$C$14=$AP$6),"",'Master Data'!$C$10),"") -> 7000 | BI12: =IFERROR(IF('Master Data'!$E$8="GPF-2004","",IF(OR('Master Data'!$C$14=$AP$6),"",'Master Data'!$E$10)),"") -> 7000 | BJ12: =BA12 -> 61300 | BK12: 2025-03-01 | BL12: =IFERROR(IF('Master Data'!$C$11="","",IF('Master Data'!$C$17="","",IF(AND($AZ$17>$AZ$9),"",DATE(YEAR(AZ16),MONTH(AZ16),DAY(AZ16))))),"") -> 2025-03-01 | BM12: =IFERROR(IF('Master Data'!$C$11="","",IF('Master Data'!$C$17="","",IF(AND($AZ$17>$AZ$9),"",DATE(YEAR(AZ16),MONTH(AZ16),DAY(AZ16))))),"") -> 2025-03-01 | BN12: =IF(AND(BM12=""),"",IF(AND(BM12=$BK$12),$BK$12,IF(AND(BM12=$BK$13),$BK$13,IF(AND(BM12=$BK$14),$BK$14,IF(AND(BM12=$BK$15),$BK$15,IF(AND(BM12=$BK$16),$BK$16,IF(AND(BM12=$BK$17),$BK$17,IF(AND(BM12=$BK$18),$BK$18,IF(AND(BM12=$BK$19),$BK$19,IF(AND(BM12=$BK$20),$BK$20,IF(AND(BM12=$BK$21),$BK$21,IF(AND(BM12=$BK$22),$BK$22,IF(AND(BM12=$BK$23),$BK$23,IF(AND(BM12=$BK$24),$BM$24,IF(AND(BM12=$BK$25),$BM$25,IF(AND(BM12=$BK$26),$BM$26,IF(AND(BM12=$BK$27),$BM$27,IF(AND(BM12=$BK$28),$BM$28,IF(AND(BM12=$BK$29),$BM$29,IF(AND(BM12=$BK$30),$BM$30,IF(AND(BM12=$BK$31),$BM$31,IF(AND(BM12=$BK$32),$BM$32,"")))))))))))))))))))))) -> 2025-03-01 | BO12: =IFERROR(IF(BM12="","",IF(AND(BL12=$BK$24),$BM$24,IF(AND(BL12=$BK$25),$BM$25,IF(AND(BL12=$BK$26),$BM$26,IF(AND(BL12=$BK$27),$BM$27,IF(AND(BL12=$BK$28),$BM$28,IF(AND(BL12=$BK$29),$BM$29,IF(AND(BL12=$BK$30),$BM$30,IF(AND(BL12=$BK$31),$BM$31,IF(AND(BL12=$BK$32),$BM$32,BN12)))))))))),"") -> 2025-03-01 | BQ12: =IFERROR(IF(BM12="","",IF(B6=$AX$24,$AX$24,IF(B6=$AX$25,$AX$25,IF(B6=$AX$26,$AX$26,IF(B6=$AX$27,$AX$27,IF(B6=$AX$28,$AX$28,IF(B6=$AX$29,$AX$29,IF(BM12>$AZ$17,"",BM12)))))))),"") -> 2025-03-01 | BU12: =IF(AND('Master Data'!$C$11=""),"",IF(AND('Master Data'!$E$18=AX12),'Master Data'!$E$17,'Master Data'!$C$11)) -> 61300 | BX12: =IF(B6="","",X6) -> 2000
A13: 8 | B13: 2025-10-01 | C13: =IFERROR(IF(B13="","",IF(AND(BQ19=""),"",IF(B13=$AX$24,"",IF(AND('Master Data'!$C$14=$AP$6),VLOOKUP(B13,om,13,0),VLOOKUP(B13,om,4,0))))),"") -> 63100 | D13: =IFERROR(IF(B13="","",IF(AND(BQ19=""),"",IF(OR(B13=$AX$24),"",IF(AND('Master Data'!$C$14=$AP$5),VLOOKUP(B13,om,7,0),"")))),"") -> 36598 | E13: =IFERROR(IF(B13="","",IF(AND(BQ19=""),"",IF(OR(B13=$AX$24,B13=$AX$25,B13=$AX$26,B13=$AX$27,B13=$AX$28,B13=$AX$29),"",IF(AND('Master Data'!$C$14=$AP$5),VLOOKUP(B13,om,8,0),"")))),"") -> 6310 | F13: =IFERROR(IF(B13="","",IF(AND(BQ19=""),"",IF(OR(B13=$AX$24,B13=$AX$25,B13=$AX$26,B13=$AX$27,B13=$AX$28,B13=$AX$29),"",IF(AND('Master Data'!$C$14=$AP$5),F12,"")))),"") -> 0 | G13: =IFERROR(IF(B13="","",IF(AND(BQ19=""),"",IF(OR(B13=$AX$24,B13=$AX$25,B13=$AX$26,B13=$AX$27,B13=$AX$28,B13=$AX$29),"",IF(AND('Master Data'!$C$14=$AP$5),G12,"")))),"") -> 0 | H13: =IFERROR(IF(B13="","",IF(AND(BQ20=""),"",IF('Master Data'!$E$12="NO","",IF(OR(B13=$AX$24,B13=$AX$25,B13=$AX$26,B13=$AX$27,B13=$AX$28,B13=$AX$29),"",IF(AND('Master Data'!$C$14=$AP$5),F13,IF(AND('Master Data'!$E$13=$AR$9),$AS$6,IF(AND('Master Data'!$E$13=$AR$10),$AS$6,IF(AND('Master Data'!$E$13=$AR$11),$AS$6,IF(AND('Master Data'!$E$13=$AR$12),$AS$6,$AS$5))))))))),"") ->  | I13: =IFERROR(IF(B13="","",IF(AND(BQ19=""),"",IF(OR(B13=$AX$24,B13=$AX$25,B13=$AX$26,B13=$AX$27,B13=$AX$28,B13=$AX$29),"",IF(AND('Master Data'!$C$14=$AP$5),I12,"")))),"") -> 0 | J13: =IFERROR(IF(B13="","",IF(AND(BQ19=""),"",IF(OR(B13=$AX$24,B13=$AX$25,B13=$AX$26,B13=$AX$27,B13=$AX$28,B13=$AX$29),"",IF(AND('Master Data'!$C$14=$AP$5),J12,"")))),"") -> 0 | K13: =IFERROR(IF(B13="","",IF(AND('Master Data'!$C$14=$AP$6),"",IF(AND('Master Data'!$C$15<>0),IF(AND(B13="Bonus"),VLOOKUP(B13,om,4,0),"")))),"") ->  | L13: =IFERROR(IF(B13="","",IF(AND(BQ19=""),"",IF(OR(B13=$AX$24,B13=$AX$25,B13=$AX$26,B13=$AX$27,B13=$AX$28,B13=$AX$29),"",IF(AND('Master Data'!$C$14=$AP$5),L12,"")))),"") -> 0 | M13: 106008 | N13: =IFERROR(IF(B13="","",IF(AND(BQ19=""),"",IF(OR(B13=$AX$24,B13=$AX$25,B13=$AX$26,B13=$AX$27,B13=$AX$28,B13=$AX$29),"",IF(AND('Master Data'!$C$14=$AP$5),VLOOKUP(B13,om,11,0),"")))),"") -> 7000 | O13: =IFERROR(IF(B13="","",IF(AND(BQ19=""),"",IF(OR(B13=$AX$25),"",IF(AND('Master Data'!$C$14=$AP$5),VLOOKUP(B13,om,12,0),"")))),"") -> 7000 | P13: =IFERROR(IF(B13="","",IF(AND(BQ19=""),"",IF(OR(B13=$AX$24,B13=$AX$25,B13=$AX$26,B13=$AX$27,B13=$AX$28,B13=$AX$29),"",IF(AND('Master Data'!$C$14=$AP$5),'Master Data'!$E$16,"")))),"") -> 1103 | Q13: =IFERROR(IF(B13="","",IF(AND(BQ19=""),"",IF(OR(B13=$AX$24,B13=$AX$25,B13=$AX$26,B13=$AX$27,B13=$AX$28,B13=$AX$29),"",IF(AND('Master Data'!$C$14=$AP$5),VLOOKUP(B13,om,10,0),"")))),"") -> 875 | R13: =IFERROR(IF(B13="","",IF(AND(BQ19=""),"",IF(OR(B13=$AX$24,B13=$AX$25,B13=$AX$26,B13=$AX$27,B13=$AX$28,B13=$AX$29),"",IF(AND('Master Data'!$C$14=$AP$5),R12,"")))),"") -> 0 | S13: =IFERROR(IF(B13="","",IF(AND(BQ19=""),"",IF(OR(B13=$AX$24,B13=$AX$25,B13=$AX$26,B13=$AX$27,B13=$AX$28,B13=$AX$29),"",IF(AND('Master Data'!$C$14=$AP$5),S12,"")))),"") -> 0 | T13: =IFERROR(IF(B13="","",IF(AND(BQ19=""),"",IF(OR(B13=$AX$24,B13=$AX$25,B13=$AX$26,B13=$AX$27,B13=$AX$28,B13=$AX$29),"",IF(AND('Master Data'!$C$14=$AP$5),T12,"")))),"") -> 0 | U13: =IFERROR(IF(B13="","",IF(AND(BQ19=""),"",IF(OR(B13=$AX$24,B13=$AX$25,B13=$AX$26,B13=$AX$27,B13=$AX$28,B13=$AX$29),"",IF(AND('Master Data'!$C$14=$AP$5),U12,"")))),"") -> 0 | V13: =IFERROR(IF(OR('Master Data'!$C$14=$AP$6,B13=""),"",IF(AND(C13=""),"",IF(AND(B13=$AT$17,'Master Data'!$C$5="Gazetted"),500,IF(AND(B13=$AT$17,'Master Data'!$C$5="Non-Gazetted"),250,"")))),"") ->  | W13: =IFERROR(IF(B13="","",IF(AND(BQ19=""),"",IF(OR(B13=$AX$24,B13=$AX$25,B13=$AX$26,B13=$AX$27,B13=$AX$28,B13=$AX$29),"",IF(AND('Master Data'!$C$14=$AP$5),W12,"")))),"") -> 0 | X13: =IFERROR(IF(B13="","",IF(AND(BQ19=""),"",IF(OR(B13=$AX$24,B13=$AX$25,B13=$AX$26,B13=$AX$27,B13=$AX$28,B13=$AX$29),"",IF(AND('Master Data'!$C$14=$AP$5),VLOOKUP(B13,om,9,0),"")))),"") -> 2000 | Y13: =IFERROR(IF(OR('Master Data'!$C$14=$AP$6,B13="",'Master Data'!$C$11=""),"",IF(AND(C13=""),"",IF(B13=$AT$9,'Master Data'!$C$16,""))),"") ->  | Z13: 17978 | AA13: 88030 | AS13: JUN | AT13: 2025-08-01 | AU13: L-6 | AW13: APR | AX13: 2025-04-01 | AY13: 4 | BA13: =IF(AND('Master Data'!$C$11=""),"",IF(AND('Master Data'!$C$14=$AP$6),$AZ$15,BU13)) -> 61300 | BB13: =IF(AND(AX13<$AZ$16),"",IF(AND(AX13>$AZ$17),"",BA13)) -> 61300 | BC13: =IF(AND('Master Data'!$C$11=""),"",ROUND(55%*BA13,0)) -> 33715 | BD13: =IF(BB13="","",BC13) -> 33715 | BE13: =IFERROR(IF(AND('Master Data'!$C$11=""),"",ROUND('Master Data'!$E$11%*BB13,0)),"") -> 6130 | BF13: ='Master Data'!$E$15 -> 2000 | BG13: =IFERROR(IF(OR('Master Data'!$C$14=$AP$6),"",IF('Master Data'!$E$8="GPF-2004",IF(BB13<18001,265,IF(BB13<33501,440,IF(BB13<54001,658,875))),IF(AND('Master Data'!$E$8="GPF"),IF(BB13<18001,265,IF(BB13<33501,440,IF(BB13<54001,658,875))),""))),"") -> 875 | BH13: =IFERROR(IF(OR('Master Data'!$C$14=$AP$6),"",'Master Data'!$C$10),"") -> 7000 | BI13: =IFERROR(IF('Master Data'!$E$8="GPF-2004","",IF(OR('Master Data'!$C$14=$AP$6),"",'Master Data'!$E$10)),"") -> 7000 | BJ13: =BA13 -> 61300 | BK13: 2025-04-01 | BL13: =IFERROR(IF('Master Data'!$C$11="","",IF('Master Data'!$C$17="","",IF(AND($AZ$17>$AZ$9),"",DATE(YEAR(BL12),MONTH(BL12)+1,DAY(BL12))))),"") -> 2025-04-01 | BM13: =IFERROR(IF('Master Data'!$C$11="","",IF('Master Data'!$C$17="","",IF(AND($AZ$17>$AZ$9),"",DATE(YEAR(BM12),MONTH(BM12)+1,DAY(BM12))))),"") -> 2025-04-01 | BN13: =IF(AND(BM13=""),"",IF(AND(BM13=$BK$12),$BK$12,IF(AND(BM13=$BK$13),$BK$13,IF(AND(BM13=$BK$14),$BK$14,IF(AND(BM13=$BK$15),$BK$15,IF(AND(BM13=$BK$16),$BK$16,IF(AND(BM13=$BK$17),$BK$17,IF(AND(BM13=$BK$18),$BK$18,IF(AND(BM13=$BK$19),$BK$19,IF(AND(BM13=$BK$20),$BK$20,IF(AND(BM13=$BK$21),$BK$21,IF(AND(BM13=$BK$22),$BK$22,IF(AND(BM13=$BK$23),$BK$23,IF(AND(BM13=$BK$24),$BM$24,IF(AND(BM13=$BK$25),$BM$25,IF(AND(BM13=$BK$26),$BM$26,IF(AND(BM13=$BK$27),$BM$27,IF(AND(BM13=$BK$28),$BM$28,IF(AND(BM13=$BK$29),$BM$29,IF(AND(BM13=$BK$30),$BM$30,IF(AND(BM13=$BK$31),$BM$31,IF(AND(BM13=$BK$32),$BM$32,"")))))))))))))))))))))) -> 2025-04-01 | BO13: =IFERROR(IF(BM13="","",IF(AND(BL13=$BK$24),$BM$24,IF(AND(BL13=$BK$25),$BM$25,IF(AND(BL13=$BK$26),$BM$26,IF(AND(BL13=$BK$27),$BM$27,IF(AND(BL13=$BK$28),$BM$28,IF(AND(BL13=$BK$29),$BM$29,IF(AND(BL13=$BK$30),$BM$30,IF(AND(BL13=$BK$31),$BM$31,IF(AND(BL13=$BK$32),$BM$32,BN13)))))))))),"") -> 2025-04-01 | BQ13: =IFERROR(IF(BM13="","",IF(B7=$AX$24,$AX$24,IF(B7=$AX$25,$AX$25,IF(B7=$AX$26,$AX$26,IF(B7=$AX$27,$AX$27,IF(B7=$AX$28,$AX$28,IF(B7=$AX$29,$AX$29,IF(BM13>$AZ$17,"",BM13)))))))),"") -> 2025-04-01 | BU13: =IF(AND('Master Data'!$C$11=""),"",IF(AND('Master Data'!$E$18=AX13),'Master Data'!$E$17,BU12)) -> 61300 | BX13: =IF(B7="","",X7) -> 2000
A14: 9 | B14: 2025-11-01 | C14: =IFERROR(IF(B14="","",IF(AND(BQ20=""),"",IF(B14=$AX$24,"",IF(AND('Master Data'!$C$14=$AP$6),VLOOKUP(B14,om,13,0),VLOOKUP(B14,om,4,0))))),"") -> 63100 | D14: =IFERROR(IF(B14="","",IF(AND(BQ20=""),"",IF(OR(B14=$AX$24),"",IF(AND('Master Data'!$C$14=$AP$5),VLOOKUP(B14,om,7,0),"")))),"") -> 36598 | E14: =IFERROR(IF(B14="","",IF(AND(BQ20=""),"",IF(OR(B14=$AX$24,B14=$AX$25,B14=$AX$26,B14=$AX$27,B14=$AX$28,B14=$AX$29),"",IF(AND('Master Data'!$C$14=$AP$5),VLOOKUP(B14,om,8,0),"")))),"") -> 6310 | F14: =IFERROR(IF(B14="","",IF(AND(BQ20=""),"",IF(OR(B14=$AX$24,B14=$AX$25,B14=$AX$26,B14=$AX$27,B14=$AX$28,B14=$AX$29),"",IF(AND('Master Data'!$C$14=$AP$5),F13,"")))),"") -> 0 | G14: =IFERROR(IF(B14="","",IF(AND(BQ20=""),"",IF(OR(B14=$AX$24,B14=$AX$25,B14=$AX$26,B14=$AX$27,B14=$AX$28,B14=$AX$29),"",IF(AND('Master Data'!$C$14=$AP$5),G13,"")))),"") -> 0 | H14: =IFERROR(IF(B14="","",IF(AND(BQ21=""),"",IF('Master Data'!$E$12="NO","",IF(OR(B14=$AX$24,B14=$AX$25,B14=$AX$26,B14=$AX$27,B14=$AX$28,B14=$AX$29),"",IF(AND('Master Data'!$C$14=$AP$5),F14,IF(AND('Master Data'!$E$13=$AR$9),$AS$6,IF(AND('Master Data'!$E$13=$AR$10),$AS$6,IF(AND('Master Data'!$E$13=$AR$11),$AS$6,IF(AND('Master Data'!$E$13=$AR$12),$AS$6,$AS$5))))))))),"") ->  | I14: =IFERROR(IF(B14="","",IF(AND(BQ20=""),"",IF(OR(B14=$AX$24,B14=$AX$25,B14=$AX$26,B14=$AX$27,B14=$AX$28,B14=$AX$29),"",IF(AND('Master Data'!$C$14=$AP$5),I13,"")))),"") -> 0 | J14: =IFERROR(IF(B14="","",IF(AND(BQ20=""),"",IF(OR(B14=$AX$24,B14=$AX$25,B14=$AX$26,B14=$AX$27,B14=$AX$28,B14=$AX$29),"",IF(AND('Master Data'!$C$14=$AP$5),J13,"")))),"") -> 0 | K14: =IFERROR(IF(B14="","",IF(AND('Master Data'!$C$14=$AP$6),"",IF(AND('Master Data'!$C$15<>0),IF(AND(B14="Bonus"),VLOOKUP(B14,om,4,0),"")))),"") ->  | L14: =IFERROR(IF(B14="","",IF(AND(BQ20=""),"",IF(OR(B14=$AX$24,B14=$AX$25,B14=$AX$26,B14=$AX$27,B14=$AX$28,B14=$AX$29),"",IF(AND('Master Data'!$C$14=$AP$5),L13,"")))),"") -> 0 | M14: 106008 | N14: =IFERROR(IF(B14="","",IF(AND(BQ20=""),"",IF(OR(B14=$AX$24,B14=$AX$25,B14=$AX$26,B14=$AX$27,B14=$AX$28,B14=$AX$29),"",IF(AND('Master Data'!$C$14=$AP$5),VLOOKUP(B14,om,11,0),"")))),"") -> 7000 | O14: =IFERROR(IF(B14="","",IF(AND(BQ20=""),"",IF(OR(B14=$AX$25),"",IF(AND('Master Data'!$C$14=$AP$5),VLOOKUP(B14,om,12,0),"")))),"") -> 7000 | P14: =IFERROR(IF(B14="","",IF(AND(BQ20=""),"",IF(OR(B14=$AX$24,B14=$AX$25,B14=$AX$26,B14=$AX$27,B14=$AX$28,B14=$AX$29),"",IF(AND('Master Data'!$C$14=$AP$5),'Master Data'!$E$16,"")))),"") -> 1103 | Q14: =IFERROR(IF(B14="","",IF(AND(BQ20=""),"",IF(OR(B14=$AX$24,B14=$AX$25,B14=$AX$26,B14=$AX$27,B14=$AX$28,B14=$AX$29),"",IF(AND('Master Data'!$C$14=$AP$5),VLOOKUP(B14,om,10,0),"")))),"") -> 875 | R14: =IFERROR(IF(B14="","",IF(AND(BQ20=""),"",IF(OR(B14=$AX$24,B14=$AX$25,B14=$AX$26,B14=$AX$27,B14=$AX$28,B14=$AX$29),"",IF(AND('Master Data'!$C$14=$AP$5),R13,"")))),"") -> 0 | S14: =IFERROR(IF(B14="","",IF(AND(BQ20=""),"",IF(OR(B14=$AX$24,B14=$AX$25,B14=$AX$26,B14=$AX$27,B14=$AX$28,B14=$AX$29),"",IF(AND('Master Data'!$C$14=$AP$5),S13,"")))),"") -> 0 | T14: =IFERROR(IF(B14="","",IF(AND(BQ20=""),"",IF(OR(B14=$AX$24,B14=$AX$25,B14=$AX$26,B14=$AX$27,B14=$AX$28,B14=$AX$29),"",IF(AND('Master Data'!$C$14=$AP$5),T13,"")))),"") -> 0 | U14: =IFERROR(IF(B14="","",IF(AND(BQ20=""),"",IF(OR(B14=$AX$24,B14=$AX$25,B14=$AX$26,B14=$AX$27,B14=$AX$28,B14=$AX$29),"",IF(AND('Master Data'!$C$14=$AP$5),U13,"")))),"") -> 0 | V14: =IFERROR(IF(OR('Master Data'!$C$14=$AP$6,B14=""),"",IF(AND(C14=""),"",IF(AND(B14=$AT$17,'Master Data'!$C$5="Gazetted"),500,IF(AND(B14=$AT$17,'Master Data'!$C$5="Non-Gazetted"),250,"")))),"") ->  | W14: =IFERROR(IF(B14="","",IF(AND(BQ20=""),"",IF(OR(B14=$AX$24,B14=$AX$25,B14=$AX$26,B14=$AX$27,B14=$AX$28,B14=$AX$29),"",IF(AND('Master Data'!$C$14=$AP$5),W13,"")))),"") -> 0 | X14: =IFERROR(IF(B14="","",IF(AND(BQ20=""),"",IF(OR(B14=$AX$24,B14=$AX$25,B14=$AX$26,B14=$AX$27,B14=$AX$28,B14=$AX$29),"",IF(AND('Master Data'!$C$14=$AP$5),VLOOKUP(B14,om,9,0),"")))),"") -> 2000 | Y14: =IFERROR(IF(OR('Master Data'!$C$14=$AP$6,B14="",'Master Data'!$C$11=""),"",IF(AND(C14=""),"",IF(B14=$AT$9,'Master Data'!$C$16,""))),"") ->  | Z14: 17978 | AA14: 88030 | AS14: JUL | AT14: 2025-09-01 | AU14: L-7 | AW14: MAY | AX14: 2025-05-01 | AY14: 5 | BA14: =IF(AND('Master Data'!$C$11=""),"",IF(AND('Master Data'!$C$14=$AP$6),$AZ$15,BU14)) -> 61300 | BB14: =IF(AND(AX14<$AZ$16),"",IF(AND(AX14>$AZ$17),"",BA14)) -> 61300 | BC14: =IF(AND('Master Data'!$C$11=""),"",ROUND(55%*BA14,0)) -> 33715 | BD14: =IF(BB14="","",BC14) -> 33715 | BE14: =IFERROR(IF(AND('Master Data'!$C$11=""),"",ROUND('Master Data'!$E$11%*BB14,0)),"") -> 6130 | BF14: ='Master Data'!$E$15 -> 2000 | BG14: =IFERROR(IF(OR('Master Data'!$C$14=$AP$6),"",IF('Master Data'!$E$8="GPF-2004",IF(BB14<18001,265,IF(BB14<33501,440,IF(BB14<54001,658,875))),IF(AND('Master Data'!$E$8="GPF"),IF(BB14<18001,265,IF(BB14<33501,440,IF(BB14<54001,658,875))),""))),"") -> 875 | BH14: =IFERROR(IF(OR('Master Data'!$C$14=$AP$6),"",'Master Data'!$C$10),"") -> 7000 | BI14: =IFERROR(IF(OR('Master Data'!$C$14=$AP$6),"",IF('Master Data'!$E$8="GPF-2004",IF(BB14<23101,1450,IF(BB14<28501,1625,IF(BB14<38501,2100,IF(BB14<51501,2850,IF(BB14<62001,3575,IF(BB14<72001,4200,IF(BB14<80001,4800,IF(BB14<116001,6150,IF(BB14<167001,8900,10500)))))))))*2,'Master Data'!$E$10)),"") -> 7000 | BJ14: =BA14 -> 61300 | BK14: 2025-05-01 | BL14: =IFERROR(IF('Master Data'!$C$11="","",IF('Master Data'!$C$17="","",IF(AND($AZ$17>$AZ$9),"",DATE(YEAR(BL13),MONTH(BL13)+1,DAY(BL13))))),"") -> 2025-05-01 | BM14: =IFERROR(IF('Master Data'!$C$11="","",IF('Master Data'!$C$17="","",IF(AND($AZ$17>$AZ$9),"",DATE(YEAR(BM13),MONTH(BM13)+1,DAY(BM13))))),"") -> 2025-05-01 | BN14: 2025-05-01 | BO14: 2025-05-01 | BQ14: =IFERROR(IF(BM14="","",IF(B8=$AX$24,$AX$24,IF(B8=$AX$25,$AX$25,IF(B8=$AX$26,$AX$26,IF(B8=$AX$27,$AX$27,IF(B8=$AX$28,$AX$28,IF(B8=$AX$29,$AX$29,IF(BM14>$AZ$17,"",BM14)))))))),"") -> 2025-05-01 | BU14: =IF(AND('Master Data'!$C$11=""),"",IF(AND('Master Data'!$E$18=AX14),'Master Data'!$E$17,BU13)) -> 61300 | BX14: 2000
A15: 10 | B15: 2025-12-01 | C15: =IFERROR(IF(B15="","",IF(AND(BQ21=""),"",IF(B15=$AX$24,"",IF(AND('Master Data'!$C$14=$AP$6),VLOOKUP(B15,om,13,0),VLOOKUP(B15,om,4,0))))),"") -> 63100 | D15: =IFERROR(IF(B15="","",IF(AND(BQ21=""),"",IF(OR(B15=$AX$24),"",IF(AND('Master Data'!$C$14=$AP$5),VLOOKUP(B15,om,7,0),"")))),"") -> 36598 | E15: =IFERROR(IF(B15="","",IF(AND(BQ21=""),"",IF(OR(B15=$AX$24,B15=$AX$25,B15=$AX$26,B15=$AX$27,B15=$AX$28,B15=$AX$29),"",IF(AND('Master Data'!$C$14=$AP$5),VLOOKUP(B15,om,8,0),"")))),"") -> 6310 | F15: =IFERROR(IF(B15="","",IF(AND(BQ21=""),"",IF(OR(B15=$AX$24,B15=$AX$25,B15=$AX$26,B15=$AX$27,B15=$AX$28,B15=$AX$29),"",IF(AND('Master Data'!$C$14=$AP$5),F14,"")))),"") -> 0 | G15: =IFERROR(IF(B15="","",IF(AND(BQ21=""),"",IF(OR(B15=$AX$24,B15=$AX$25,B15=$AX$26,B15=$AX$27,B15=$AX$28,B15=$AX$29),"",IF(AND('Master Data'!$C$14=$AP$5),G14,"")))),"") -> 0 | H15: =IFERROR(IF(B15="","",IF(AND(BQ22=""),"",IF('Master Data'!$E$12="NO","",IF(OR(B15=$AX$24,B15=$AX$25,B15=$AX$26,B15=$AX$27,B15=$AX$28,B15=$AX$29),"",IF(AND('Master Data'!$C$14=$AP$5),F15,IF(AND('Master Data'!$E$13=$AR$9),$AS$6,IF(AND('Master Data'!$E$13=$AR$10),$AS$6,IF(AND('Master Data'!$E$13=$AR$11),$AS$6,IF(AND('Master Data'!$E$13=$AR$12),$AS$6,$AS$5))))))))),"") ->  | I15: =IFERROR(IF(B15="","",IF(AND(BQ21=""),"",IF(OR(B15=$AX$24,B15=$AX$25,B15=$AX$26,B15=$AX$27,B15=$AX$28,B15=$AX$29),"",IF(AND('Master Data'!$C$14=$AP$5),I14,"")))),"") -> 0 | J15: =IFERROR(IF(B15="","",IF(AND(BQ21=""),"",IF(OR(B15=$AX$24,B15=$AX$25,B15=$AX$26,B15=$AX$27,B15=$AX$28,B15=$AX$29),"",IF(AND('Master Data'!$C$14=$AP$5),J14,"")))),"") -> 0 | K15: =IFERROR(IF(B15="","",IF(AND('Master Data'!$C$14=$AP$6),"",IF(AND('Master Data'!$C$15<>0),IF(AND(B15="Bonus"),VLOOKUP(B15,om,4,0),"")))),"") ->  | L15: =IFERROR(IF(B15="","",IF(AND(BQ21=""),"",IF(OR(B15=$AX$24,B15=$AX$25,B15=$AX$26,B15=$AX$27,B15=$AX$28,B15=$AX$29),"",IF(AND('Master Data'!$C$14=$AP$5),L14,"")))),"") -> 0 | M15: 106008 | N15: =IFERROR(IF(B15="","",IF(AND(BQ21=""),"",IF(OR(B15=$AX$24,B15=$AX$25,B15=$AX$26,B15=$AX$27,B15=$AX$28,B15=$AX$29),"",IF(AND('Master Data'!$C$14=$AP$5),VLOOKUP(B15,om,11,0),"")))),"") -> 7000 | O15: =IFERROR(IF(B15="","",IF(AND(BQ21=""),"",IF(OR(B15=$AX$25),"",IF(AND('Master Data'!$C$14=$AP$5),VLOOKUP(B15,om,12,0),"")))),"") -> 7000 | P15: =IFERROR(IF(B15="","",IF(AND(BQ21=""),"",IF(OR(B15=$AX$24,B15=$AX$25,B15=$AX$26,B15=$AX$27,B15=$AX$28,B15=$AX$29),"",IF(AND('Master Data'!$C$14=$AP$5),'Master Data'!$E$16,"")))),"") -> 1103 | Q15: =IFERROR(IF(B15="","",IF(AND(BQ21=""),"",IF(OR(B15=$AX$24,B15=$AX$25,B15=$AX$26,B15=$AX$27,B15=$AX$28,B15=$AX$29),"",IF(AND('Master Data'!$C$14=$AP$5),VLOOKUP(B15,om,10,0),"")))),"") -> 875 | R15: =IFERROR(IF(B15="","",IF(AND(BQ21=""),"",IF(OR(B15=$AX$24,B15=$AX$25,B15=$AX$26,B15=$AX$27,B15=$AX$28,B15=$AX$29),"",IF(AND('Master Data'!$C$14=$AP$5),R14,"")))),"") -> 0 | S15: =IFERROR(IF(B15="","",IF(AND(BQ21=""),"",IF(OR(B15=$AX$24,B15=$AX$25,B15=$AX$26,B15=$AX$27,B15=$AX$28,B15=$AX$29),"",IF(AND('Master Data'!$C$14=$AP$5),S14,"")))),"") -> 0 | T15: =IFERROR(IF(B15="","",IF(AND(BQ21=""),"",IF(OR(B15=$AX$24,B15=$AX$25,B15=$AX$26,B15=$AX$27,B15=$AX$28,B15=$AX$29),"",IF(AND('Master Data'!$C$14=$AP$5),T14,"")))),"") -> 0 | U15: =IFERROR(IF(B15="","",IF(AND(BQ21=""),"",IF(OR(B15=$AX$24,B15=$AX$25,B15=$AX$26,B15=$AX$27,B15=$AX$28,B15=$AX$29),"",IF(AND('Master Data'!$C$14=$AP$5),U14,"")))),"") -> 0 | V15: =IFERROR(IF(OR('Master Data'!$C$14=$AP$6,B15=""),"",IF(AND(C15=""),"",IF(AND(B15=$AT$17,'Master Data'!$C$5="Gazetted"),500,IF(AND(B15=$AT$17,'Master Data'!$C$5="Non-Gazetted"),250,"")))),"") -> 250 | W15: =IFERROR(IF(B15="","",IF(AND(BQ21=""),"",IF(OR(B15=$AX$24,B15=$AX$25,B15=$AX$26,B15=$AX$27,B15=$AX$28,B15=$AX$29),"",IF(AND('Master Data'!$C$14=$AP$5),W14,"")))),"") -> 0 | X15: =IFERROR(IF(B15="","",IF(AND(BQ21=""),"",IF(OR(B15=$AX$24,B15=$AX$25,B15=$AX$26,B15=$AX$27,B15=$AX$28,B15=$AX$29),"",IF(AND('Master Data'!$C$14=$AP$5),VLOOKUP(B15,om,9,0),"")))),"") -> 2000 | Y15: =IFERROR(IF(OR('Master Data'!$C$14=$AP$6,B15="",'Master Data'!$C$11=""),"",IF(AND(C15=""),"",IF(B15=$AT$9,'Master Data'!$C$16,""))),"") ->  | Z15: 18228 | AA15: 87780 | AS15: AUG | AT15: 2025-10-01 | AU15: L-8 | AW15: JUN | AX15: 2025-06-01 | AY15: 6 | AZ15: =IF(AND('Master Data'!C11=""),"",'Master Data'!C11) -> 61300 | BA15: =IF(AND('Master Data'!$C$11=""),"",IF(AND('Master Data'!$C$14=$AP$6),$AZ$15,BU15)) -> 61300 | BB15: 61300 | BC15: =IF(AND('Master Data'!$C$11=""),"",ROUND(55%*BA15,0)) -> 33715 | BD15: =IF(BB15="","",BC15) -> 33715 | BE15: =IFERROR(IF(AND('Master Data'!$C$11=""),"",ROUND('Master Data'!$E$11%*BB15,0)),"") -> 6130 | BF15: ='Master Data'!$E$15 -> 2000 | BG15: =IFERROR(IF(OR('Master Data'!$C$14=$AP$6),"",IF('Master Data'!$E$8="GPF-2004",IF(BB15<18001,265,IF(BB15<33501,440,IF(BB15<54001,658,875))),IF(AND('Master Data'!$E$8="GPF"),IF(BB15<18001,265,IF(BB15<33501,440,IF(BB15<54001,658,875))),""))),"") -> 875 | BH15: =IFERROR(IF(OR('Master Data'!$C$14=$AP$6),"",'Master Data'!$C$10),"") -> 7000 | BI15: =IFERROR(IF(OR('Master Data'!$C$14=$AP$6),"",IF('Master Data'!$E$8="GPF-2004",IF(BB15<23101,1450,IF(BB15<28501,1625,IF(BB15<38501,2100,IF(BB15<51501,2850,IF(BB15<62001,3575,IF(BB15<72001,4200,IF(BB15<80001,4800,IF(BB15<116001,6150,IF(BB15<167001,8900,10500))))))))),'Master Data'!$E$10)),"") -> 7000 | BJ15: 61300 | BK15: 2025-06-01 | BL15: =IFERROR(IF('Master Data'!$C$11="","",IF('Master Data'!$C$17="","",IF(AND($AZ$17>$AZ$9),"",DATE(YEAR(BL14),MONTH(BL14)+1,DAY(BL14))))),"") -> 2025-06-01 | BM15: =IFERROR(IF('Master Data'!$C$11="","",IF('Master Data'!$C$17="","",IF(AND($AZ$17>$AZ$9),"",DATE(YEAR(BM14),MONTH(BM14)+1,DAY(BM14))))),"") -> 2025-06-01 | BN15: 2025-06-01 | BO15: 2025-06-01 | BQ15: 2025-06-01 | BU15: =IF(AND('Master Data'!$C$11=""),"",IF(AND('Master Data'!$E$18=AX15),'Master Data'!$E$17,BU14)) -> 61300 | BX15: 2000
A16: 11 | B16: 2026-01-01 | C16: =IFERROR(IF(B16="","",IF(AND(BQ22=""),"",IF(B16=$AX$24,"",IF(AND('Master Data'!$C$14=$AP$6),VLOOKUP(B16,om,13,0),VLOOKUP(B16,om,4,0))))),"") -> 63100 | D16: =IFERROR(IF(B16="","",IF(AND(BQ22=""),"",IF(OR(B16=$AX$24),"",IF(AND('Master Data'!$C$14=$AP$5),VLOOKUP(B16,om,7,0),"")))),"") -> 36598 | E16: =IFERROR(IF(B16="","",IF(AND(BQ22=""),"",IF(OR(B16=$AX$24,B16=$AX$25,B16=$AX$26,B16=$AX$27,B16=$AX$28,B16=$AX$29),"",IF(AND('Master Data'!$C$14=$AP$5),VLOOKUP(B16,om,8,0),"")))),"") -> 6310 | F16: =IFERROR(IF(B16="","",IF(AND(BQ22=""),"",IF(OR(B16=$AX$24,B16=$AX$25,B16=$AX$26,B16=$AX$27,B16=$AX$28,B16=$AX$29),"",IF(AND('Master Data'!$C$14=$AP$5),F15,"")))),"") -> 0 | G16: =IFERROR(IF(B16="","",IF(AND(BQ22=""),"",IF(OR(B16=$AX$24,B16=$AX$25,B16=$AX$26,B16=$AX$27,B16=$AX$28,B16=$AX$29),"",IF(AND('Master Data'!$C$14=$AP$5),G15,"")))),"") -> 0 | H16: =IFERROR(IF(B16="","",IF(AND(BQ23=""),"",IF('Master Data'!$E$12="NO","",IF(OR(B16=$AX$24,B16=$AX$25,B16=$AX$26,B16=$AX$27,B16=$AX$28,B16=$AX$29),"",IF(AND('Master Data'!$C$14=$AP$5),F16,IF(AND('Master Data'!$E$13=$AR$9),$AS$6,IF(AND('Master Data'!$E$13=$AR$10),$AS$6,IF(AND('Master Data'!$E$13=$AR$11),$AS$6,IF(AND('Master Data'!$E$13=$AR$12),$AS$6,$AS$5))))))))),"") ->  | I16: =IFERROR(IF(B16="","",IF(AND(BQ22=""),"",IF(OR(B16=$AX$24,B16=$AX$25,B16=$AX$26,B16=$AX$27,B16=$AX$28,B16=$AX$29),"",IF(AND('Master Data'!$C$14=$AP$5),I15,"")))),"") -> 0 | J16: =IFERROR(IF(B16="","",IF(AND(BQ22=""),"",IF(OR(B16=$AX$24,B16=$AX$25,B16=$AX$26,B16=$AX$27,B16=$AX$28,B16=$AX$29),"",IF(AND('Master Data'!$C$14=$AP$5),J15,"")))),"") -> 0 | K16: =IFERROR(IF(B16="","",IF(AND('Master Data'!$C$14=$AP$6),"",IF(AND('Master Data'!$C$15<>0),IF(AND(B16="Bonus"),VLOOKUP(B16,om,4,0),"")))),"") ->  | L16: =IFERROR(IF(B16="","",IF(AND(BQ22=""),"",IF(OR(B16=$AX$24,B16=$AX$25,B16=$AX$26,B16=$AX$27,B16=$AX$28,B16=$AX$29),"",IF(AND('Master Data'!$C$14=$AP$5),L15,"")))),"") -> 0 | M16: 106008 | N16: =IFERROR(IF(B16="","",IF(AND(BQ22=""),"",IF(OR(B16=$AX$24,B16=$AX$25,B16=$AX$26,B16=$AX$27,B16=$AX$28,B16=$AX$29),"",IF(AND('Master Data'!$C$14=$AP$5),VLOOKUP(B16,om,11,0),"")))),"") -> 7000 | O16: =IFERROR(IF(B16="","",IF(AND(BQ22=""),"",IF(OR(B16=$AX$25),"",IF(AND('Master Data'!$C$14=$AP$5),VLOOKUP(B16,om,12,0),"")))),"") -> 7000 | P16: =IFERROR(IF(B16="","",IF(AND(BQ22=""),"",IF(OR(B16=$AX$24,B16=$AX$25,B16=$AX$26,B16=$AX$27,B16=$AX$28,B16=$AX$29),"",IF(AND('Master Data'!$C$14=$AP$5),'Master Data'!$E$16,"")))),"") -> 1103 | Q16: =IFERROR(IF(B16="","",IF(AND(BQ22=""),"",IF(OR(B16=$AX$24,B16=$AX$25,B16=$AX$26,B16=$AX$27,B16=$AX$28,B16=$AX$29),"",IF(AND('Master Data'!$C$14=$AP$5),VLOOKUP(B16,om,10,0),"")))),"") -> 875 | R16: =IFERROR(IF(B16="","",IF(AND(BQ22=""),"",IF(OR(B16=$AX$24,B16=$AX$25,B16=$AX$26,B16=$AX$27,B16=$AX$28,B16=$AX$29),"",IF(AND('Master Data'!$C$14=$AP$5),R15,"")))),"") -> 0 | S16: =IFERROR(IF(B16="","",IF(AND(BQ22=""),"",IF(OR(B16=$AX$24,B16=$AX$25,B16=$AX$26,B16=$AX$27,B16=$AX$28,B16=$AX$29),"",IF(AND('Master Data'!$C$14=$AP$5),S15,"")))),"") -> 0 | T16: =IFERROR(IF(B16="","",IF(AND(BQ22=""),"",IF(OR(B16=$AX$24,B16=$AX$25,B16=$AX$26,B16=$AX$27,B16=$AX$28,B16=$AX$29),"",IF(AND('Master Data'!$C$14=$AP$5),T15,"")))),"") -> 0 | U16: =IFERROR(IF(B16="","",IF(AND(BQ22=""),"",IF(OR(B16=$AX$24,B16=$AX$25,B16=$AX$26,B16=$AX$27,B16=$AX$28,B16=$AX$29),"",IF(AND('Master Data'!$C$14=$AP$5),U15,"")))),"") -> 0 | V16: =IFERROR(IF(OR('Master Data'!$C$14=$AP$6,B16=""),"",IF(AND(C16=""),"",IF(AND(B16=$AT$17,'Master Data'!$C$5="Gazetted"),500,IF(AND(B16=$AT$17,'Master Data'!$C$5="Non-Gazetted"),250,"")))),"") ->  | W16: =IFERROR(IF(B16="","",IF(AND(BQ22=""),"",IF(OR(B16=$AX$24,B16=$AX$25,B16=$AX$26,B16=$AX$27,B16=$AX$28,B16=$AX$29),"",IF(AND('Master Data'!$C$14=$AP$5),W15,"")))),"") -> 0 | X16: =IFERROR(IF(B16="","",IF(AND(BQ22=""),"",IF(OR(B16=$AX$24,B16=$AX$25,B16=$AX$26,B16=$AX$27,B16=$AX$28,B16=$AX$29),"",IF(AND('Master Data'!$C$14=$AP$5),VLOOKUP(B16,om,9,0),"")))),"") -> 2000 | Y16: =IFERROR(IF(OR('Master Data'!$C$14=$AP$6,B16="",'Master Data'!$C$11=""),"",IF(AND(C16=""),"",IF(B16=$AT$9,'Master Data'!$C$16,""))),"") ->  | Z16: 17978 | AA16: 88030 | AS16: SEP | AT16: 2025-11-01 | AU16: L-9 | AW16: JUL | AX16: 2025-07-01 | AY16: 7 | AZ16: =IF(AND('Master Data'!C17=""),"",'Master Data'!C17) -> 2025-03-01 | BA16: =IF(AND('Master Data'!$C$11=""),"",IF(AND('Master Data'!$C$14=$AP$6),$AZ$15,BU16)) -> 63100 | BB16: 63100 | BC16: =IF(AND('Master Data'!$C$11=""),"",ROUND(55%*BA16,0)) -> 34705 | BD16: 34705 | BE16: =IFERROR(IF(AND('Master Data'!$C$11=""),"",ROUND('Master Data'!$E$11%*BB16,0)),"") -> 6310 | BF16: ='Master Data'!$E$15 -> 2000 | BG16: =IFERROR(IF(OR('Master Data'!$C$14=$AP$6),"",IF('Master Data'!$E$8="GPF-2004",IF(BB16<18001,265,IF(BB16<33501,440,IF(BB16<54001,658,875))),IF(AND('Master Data'!$E$8="GPF"),IF(BB16<18001,265,IF(BB16<33501,440,IF(BB16<54001,658,875))),""))),"") -> 875 | BH16: =IFERROR(IF(OR('Master Data'!$C$14=$AP$6),"",'Master Data'!$C$10),"") -> 7000 | BI16: =IFERROR(IF(OR('Master Data'!$C$14=$AP$6),"",IF('Master Data'!$E$8="GPF-2004",IF(BB16<23101,1450,IF(BB16<28501,1625,IF(BB16<38501,2100,IF(BB16<51501,2850,IF(BB16<62001,3575,IF(BB16<72001,4200,IF(BB16<80001,4800,IF(BB16<116001,6150,IF(BB16<167001,8900,10500))))))))),'Master Data'!$E$10)),"") -> 7000 | BJ16: =BA16 -> 63100 | BK16: 2025-07-01 | BL16: =IFERROR(IF('Master Data'!$C$11="","",IF('Master Data'!$C$17="","",IF(AND($AZ$17>$AZ$9),"",DATE(YEAR(BL15),MONTH(BL15)+1,DAY(BL15))))),"") -> 2025-07-01 | BM16: =IFERROR(IF('Master Data'!$C$11="","",IF('Master Data'!$C$17="","",IF(AND($AZ$17>$AZ$9),"",DATE(YEAR(BM15),MONTH(BM15)+1,DAY(BM15))))),"") -> 2025-07-01 | BN16: 2025-07-01 | BO16: 2025-07-01 | BQ16: 2025-07-01 | BU16: =IF(AND('Master Data'!$C$11=""),"",IF(AND('Master Data'!$E$18='GA55'!AX16),'Master Data'!E17,MROUND(BU15*1.03,100))) -> 63100 | BX16: 2000
A17: 12 | B17: 2026-02-01 | C17: =IFERROR(IF(B17="","",IF(AND(BQ23=""),"",IF(B17=$AX$24,"",IF(AND('Master Data'!$C$14=$AP$6),VLOOKUP(B17,om,13,0),VLOOKUP(B17,om,4,0))))),"") -> 63100 | D17: =IFERROR(IF(B17="","",IF(AND(BQ23=""),"",IF(OR(B17=$AX$24),"",IF(AND('Master Data'!$C$14=$AP$5),VLOOKUP(B17,om,7,0),"")))),"") -> 36598 | E17: =IFERROR(IF(B17="","",IF(AND(BQ23=""),"",IF(OR(B17=$AX$24,B17=$AX$25,B17=$AX$26,B17=$AX$27,B17=$AX$28,B17=$AX$29),"",IF(AND('Master Data'!$C$14=$AP$5),VLOOKUP(B17,om,8,0),"")))),"") -> 6310 | F17: =IFERROR(IF(B17="","",IF(AND(BQ23=""),"",IF(OR(B17=$AX$24,B17=$AX$25,B17=$AX$26,B17=$AX$27,B17=$AX$28,B17=$AX$29),"",IF(AND('Master Data'!$C$14=$AP$5),F16,"")))),"") -> 0 | G17: =IFERROR(IF(B17="","",IF(AND(BQ23=""),"",IF(OR(B17=$AX$24,B17=$AX$25,B17=$AX$26,B17=$AX$27,B17=$AX$28,B17=$AX$29),"",IF(AND('Master Data'!$C$14=$AP$5),G16,"")))),"") -> 0 | H17: =IFERROR(IF(B17="","",IF(AND(BQ24=""),"",IF('Master Data'!$E$12="NO","",IF(OR(B17=$AX$24,B17=$AX$25,B17=$AX$26,B17=$AX$27,B17=$AX$28,B17=$AX$29),"",IF(AND('Master Data'!$C$14=$AP$5),F17,IF(AND('Master Data'!$E$13=$AR$9),$AS$6,IF(AND('Master Data'!$E$13=$AR$10),$AS$6,IF(AND('Master Data'!$E$13=$AR$11),$AS$6,IF(AND('Master Data'!$E$13=$AR$12),$AS$6,$AS$5))))))))),"") ->  | I17: =IFERROR(IF(B17="","",IF(AND(BQ23=""),"",IF(OR(B17=$AX$24,B17=$AX$25,B17=$AX$26,B17=$AX$27,B17=$AX$28,B17=$AX$29),"",IF(AND('Master Data'!$C$14=$AP$5),I16,"")))),"") -> 0 | J17: =IFERROR(IF(B17="","",IF(AND(BQ23=""),"",IF(OR(B17=$AX$24,B17=$AX$25,B17=$AX$26,B17=$AX$27,B17=$AX$28,B17=$AX$29),"",IF(AND('Master Data'!$C$14=$AP$5),J16,"")))),"") -> 0 | K17: =IFERROR(IF(B17="","",IF(AND('Master Data'!$C$14=$AP$6),"",IF(AND('Master Data'!$C$15<>0),IF(AND(B17="Bonus"),VLOOKUP(B17,om,4,0),"")))),"") ->  | L17: =IFERROR(IF(B17="","",IF(AND(BQ23=""),"",IF(OR(B17=$AX$24,B17=$AX$25,B17=$AX$26,B17=$AX$27,B17=$AX$28,B17=$AX$29),"",IF(AND('Master Data'!$C$14=$AP$5),L16,"")))),"") -> 0 | M17: 106008 | N17: =IFERROR(IF(B17="","",IF(AND(BQ23=""),"",IF(OR(B17=$AX$24,B17=$AX$25,B17=$AX$26,B17=$AX$27,B17=$AX$28,B17=$AX$29),"",IF(AND('Master Data'!$C$14=$AP$5),VLOOKUP(B17,om,11,0),"")))),"") -> 7000 | O17: =IFERROR(IF(B17="","",IF(AND(BQ23=""),"",IF(OR(B17=$AX$25),"",IF(AND('Master Data'!$C$14=$AP$5),VLOOKUP(B17,om,12,0),"")))),"") -> 7000 | P17: =IFERROR(IF(B17="","",IF(AND(BQ23=""),"",IF(OR(B17=$AX$24,B17=$AX$25,B17=$AX$26,B17=$AX$27,B17=$AX$28,B17=$AX$29),"",IF(AND('Master Data'!$C$14=$AP$5),'Master Data'!$E$16,"")))),"") -> 1103 | Q17: =IFERROR(IF(B17="","",IF(AND(BQ23=""),"",IF(OR(B17=$AX$24,B17=$AX$25,B17=$AX$26,B17=$AX$27,B17=$AX$28,B17=$AX$29),"",IF(AND('Master Data'!$C$14=$AP$5),VLOOKUP(B17,om,10,0),"")))),"") -> 875 | R17: =IFERROR(IF(B17="","",IF(AND(BQ23=""),"",IF(OR(B17=$AX$24,B17=$AX$25,B17=$AX$26,B17=$AX$27,B17=$AX$28,B17=$AX$29),"",IF(AND('Master Data'!$C$14=$AP$5),R16,"")))),"") -> 0 | S17: =IFERROR(IF(B17="","",IF(AND(BQ23=""),"",IF(OR(B17=$AX$24,B17=$AX$25,B17=$AX$26,B17=$AX$27,B17=$AX$28,B17=$AX$29),"",IF(AND('Master Data'!$C$14=$AP$5),S16,"")))),"") -> 0 | T17: =IFERROR(IF(B17="","",IF(AND(BQ23=""),"",IF(OR(B17=$AX$24,B17=$AX$25,B17=$AX$26,B17=$AX$27,B17=$AX$28,B17=$AX$29),"",IF(AND('Master Data'!$C$14=$AP$5),T16,"")))),"") -> 0 | U17: =IFERROR(IF(B17="","",IF(AND(BQ23=""),"",IF(OR(B17=$AX$24,B17=$AX$25,B17=$AX$26,B17=$AX$27,B17=$AX$28,B17=$AX$29),"",IF(AND('Master Data'!$C$14=$AP$5),U16,"")))),"") -> 0 | V17: =IFERROR(IF(OR('Master Data'!$C$14=$AP$6,B17=""),"",IF(AND(C17=""),"",IF(AND(B17=$AT$17,'Master Data'!$C$5="Gazetted"),500,IF(AND(B17=$AT$17,'Master Data'!$C$5="Non-Gazetted"),250,"")))),"") ->  | W17: =IFERROR(IF(B17="","",IF(AND(BQ23=""),"",IF(OR(B17=$AX$24,B17=$AX$25,B17=$AX$26,B17=$AX$27,B17=$AX$28,B17=$AX$29),"",IF(AND('Master Data'!$C$14=$AP$5),W16,"")))),"") -> 0 | X17: =IFERROR(IF(B17="","",IF(AND(BQ23=""),"",IF(OR(B17=$AX$24,B17=$AX$25,B17=$AX$26,B17=$AX$27,B17=$AX$28,B17=$AX$29),"",IF(AND('Master Data'!$C$14=$AP$5),VLOOKUP(B17,om,9,0),"")))),"") -> 2000 | Y17: =IFERROR(IF(OR('Master Data'!$C$14=$AP$6,B17="",'Master Data'!$C$11=""),"",IF(AND(C17=""),"",IF(B17=$AT$9,'Master Data'!$C$16,""))),"") ->  | Z17: 17978 | AA17: 88030 | AS17: OCT | AT17: 2025-12-01 | AU17: L-10 | AW17: AUG | AX17: 2025-08-01 | AY17: 8 | AZ17: =IF(AND('Master Data'!C18=""),"",'Master Data'!C18) -> 2026-02-01 | BA17: =IF(AND('Master Data'!$C$11=""),"",IF(AND('Master Data'!$C$14=$AP$6),$AZ$15,BU17)) -> 63100 | BB17: 63100 | BC17: =IF(AND('Master Data'!$C$11=""),"",ROUND(55%*BA17,0)) -> 34705 | BD17: 34705 | BE17: =IFERROR(IF(AND('Master Data'!$C$11=""),"",ROUND('Master Data'!$E$11%*BB17,0)),"") -> 6310 | BF17: ='Master Data'!$E$15 -> 2000 | BG17: =IFERROR(IF(OR('Master Data'!$C$14=$AP$6),"",IF('Master Data'!$E$8="GPF-2004",IF(BB17<18001,265,IF(BB17<33501,440,IF(BB17<54001,658,875))),IF(AND('Master Data'!$E$8="GPF"),IF(BB17<18001,265,IF(BB17<33501,440,IF(BB17<54001,658,875))),""))),"") -> 875 | BH17: =IFERROR(IF(OR('Master Data'!$C$14=$AP$6),"",'Master Data'!$C$10),"") -> 7000 | BI17: =IFERROR(IF(OR('Master Data'!$C$14=$AP$6),"",IF('Master Data'!$E$8="GPF-2004",IF(BB17<23101,1450,IF(BB17<28501,1625,IF(BB17<38501,2100,IF(BB17<51501,2850,IF(BB17<62001,3575,IF(BB17<72001,4200,IF(BB17<80001,4800,IF(BB17<116001,6150,IF(BB17<167001,8900,10500))))))))),'Master Data'!$E$10)),"") -> 7000 | BJ17: =BJ16 -> 63100 | BK17: 2025-08-01 | BL17: =IFERROR(IF('Master Data'!$C$11="","",IF('Master Data'!$C$17="","",IF(AND($AZ$17>$AZ$9),"",DATE(YEAR(BL16),MONTH(BL16)+1,DAY(BL16))))),"") -> 2025-08-01 | BM17: =IFERROR(IF('Master Data'!$C$11="","",IF('Master Data'!$C$17="","",IF(AND($AZ$17>$AZ$9),"",DATE(YEAR(BM16),MONTH(BM16)+1,DAY(BM16))))),"") -> 2025-08-01 | BN17: 2025-08-01 | BO17: 2025-08-01 | BQ17: 2025-08-01 | BU17: =IF(AND('Master Data'!$C$11=""),"",IF(AND('Master Data'!$E$18=AX17),'Master Data'!$E$17,BU16)) -> 63100 | BX17: 2000
A18: 13 | B18: Bonus | C18: =IFERROR(IF(B18="","",IF(AND(BQ24=""),"",IF(B18=$AX$24,"",IF(AND('Master Data'!$C$14=$AP$6),VLOOKUP(B18,om,13,0),VLOOKUP(B18,om,4,0))))),"") ->  | D18: =IFERROR(IF(B18="","",IF(AND(BQ24=""),"",IF(OR(B18=$AX$24),"",IF(AND('Master Data'!$C$14=$AP$5),VLOOKUP(B18,om,7,0),"")))),"") ->  | E18: =IFERROR(IF(B18="","",IF(AND(BQ24=""),"",IF(OR(B18=$AX$24,B18=$AX$25,B18=$AX$26,B18=$AX$27,B18=$AX$28,B18=$AX$29),"",IF(AND('Master Data'!$C$14=$AP$5),VLOOKUP(B18,om,8,0),"")))),"") ->  | F18: =IFERROR(IF(B18="","",IF(AND(BQ24=""),"",IF(OR(B18=$AX$24,B18=$AX$25,B18=$AX$26,B18=$AX$27,B18=$AX$28,B18=$AX$29),"",IF(AND('Master Data'!$C$14=$AP$5),F17,"")))),"") ->  | G18: =IFERROR(IF(B18="","",IF(AND(BQ24=""),"",IF(OR(B18=$AX$24,B18=$AX$25,B18=$AX$26,B18=$AX$27,B18=$AX$28,B18=$AX$29),"",IF(AND('Master Data'!$C$14=$AP$5),G17,"")))),"") ->  | H18: =IFERROR(IF(B18="","",IF(AND(BQ25=""),"",IF('Master Data'!$E$12="NO","",IF(OR(B18=$AX$24,B18=$AX$25,B18=$AX$26,B18=$AX$27,B18=$AX$28,B18=$AX$29),"",IF(AND('Master Data'!$C$14=$AP$5),F18,IF(AND('Master Data'!$E$13=$AR$9),$AS$6,IF(AND('Master Data'!$E$13=$AR$10),$AS$6,IF(AND('Master Data'!$E$13=$AR$11),$AS$6,IF(AND('Master Data'!$E$13=$AR$12),$AS$6,$AS$5))))))))),"") ->  | I18: =IFERROR(IF(B18="","",IF(AND(BQ24=""),"",IF(OR(B18=$AX$24,B18=$AX$25,B18=$AX$26,B18=$AX$27,B18=$AX$28,B18=$AX$29),"",IF(AND('Master Data'!$C$14=$AP$5),I17,"")))),"") ->  | J18: =IFERROR(IF(B18="","",IF(AND(BQ24=""),"",IF(OR(B18=$AX$24,B18=$AX$25,B18=$AX$26,B18=$AX$27,B18=$AX$28,B18=$AX$29),"",IF(AND('Master Data'!$C$14=$AP$5),J17,"")))),"") ->  | K18: =IFERROR(IF(B18="","",IF(AND('Master Data'!$C$14=$AP$6),"",IF(AND('Master Data'!$C$15<>0),IF(AND(B18="Bonus"),VLOOKUP(B18,om,4,0),"")))),"") -> 6774 | L18: =IFERROR(IF(B18="","",IF(AND(BQ24=""),"",IF(OR(B18=$AX$24,B18=$AX$25,B18=$AX$26,B18=$AX$27,B18=$AX$28,B18=$AX$29),"",IF(AND('Master Data'!$C$14=$AP$5),L17,"")))),"") ->  | M18: 6774 | N18: =IFERROR(IF(B18="","",IF(AND(BQ24=""),"",IF(OR(B18=$AX$24,B18=$AX$25,B18=$AX$26,B18=$AX$27,B18=$AX$28,B18=$AX$29),"",IF(AND('Master Data'!$C$14=$AP$5),VLOOKUP(B18,om,11,0),"")))),"") ->  | O18: =IFERROR(IF(B18="","",IF(AND(BQ24=""),"",IF(OR(B18=$AX$25),"",IF(AND('Master Data'!$C$14=$AP$5),VLOOKUP(B18,om,12,0),"")))),"") -> 1694 | P18: =IFERROR(IF(B18="","",IF(AND(BQ24=""),"",IF(OR(B18=$AX$24,B18=$AX$25,B18=$AX$26,B18=$AX$27,B18=$AX$28,B18=$AX$29),"",IF(AND('Master Data'!$C$14=$AP$5),'Master Data'!$E$16,"")))),"") ->  | Q18: =IFERROR(IF(B18="","",IF(AND(BQ24=""),"",IF(OR(B18=$AX$24,B18=$AX$25,B18=$AX$26,B18=$AX$27,B18=$AX$28,B18=$AX$29),"",IF(AND('Master Data'!$C$14=$AP$5),VLOOKUP(B18,om,10,0),"")))),"") ->  | R18: =IFERROR(IF(B18="","",IF(AND(BQ24=""),"",IF(OR(B18=$AX$24,B18=$AX$25,B18=$AX$26,B18=$AX$27,B18=$AX$28,B18=$AX$29),"",IF(AND('Master Data'!$C$14=$AP$5),R17,"")))),"") ->  | S18: =IFERROR(IF(B18="","",IF(AND(BQ24=""),"",IF(OR(B18=$AX$24,B18=$AX$25,B18=$AX$26,B18=$AX$27,B18=$AX$28,B18=$AX$29),"",IF(AND('Master Data'!$C$14=$AP$5),S17,"")))),"") ->  | T18: =IFERROR(IF(B18="","",IF(AND(BQ24=""),"",IF(OR(B18=$AX$24,B18=$AX$25,B18=$AX$26,B18=$AX$27,B18=$AX$28,B18=$AX$29),"",IF(AND('Master Data'!$C$14=$AP$5),T17,"")))),"") ->  | U18: =IFERROR(IF(B18="","",IF(AND(BQ24=""),"",IF(OR(B18=$AX$24,B18=$AX$25,B18=$AX$26,B18=$AX$27,B18=$AX$28,B18=$AX$29),"",IF(AND('Master Data'!$C$14=$AP$5),U17,"")))),"") ->  | V18: =IFERROR(IF(OR('Master Data'!$C$14=$AP$6,B18=""),"",IF(AND(C18=""),"",IF(AND(B18=$AT$17,'Master Data'!$C$5="Gazetted"),500,IF(AND(B18=$AT$17,'Master Data'!$C$5="Non-Gazetted"),250,"")))),"") ->  | W18: =IFERROR(IF(B18="","",IF(AND(BQ24=""),"",IF(OR(B18=$AX$24,B18=$AX$25,B18=$AX$26,B18=$AX$27,B18=$AX$28,B18=$AX$29),"",IF(AND('Master Data'!$C$14=$AP$5),W17,"")))),"") ->  | X18: =IFERROR(IF(B18="","",IF(AND(BQ24=""),"",IF(OR(B18=$AX$24,B18=$AX$25,B18=$AX$26,B18=$AX$27,B18=$AX$28,B18=$AX$29),"",IF(AND('Master Data'!$C$14=$AP$5),VLOOKUP(B18,om,9,0),"")))),"") ->  | Y18: =IFERROR(IF(OR('Master Data'!$C$14=$AP$6,B18="",'Master Data'!$C$11=""),"",IF(AND(C18=""),"",IF(B18=$AT$9,'Master Data'!$C$16,""))),"") ->  | Z18: 1694 | AA18: 5080 | AS18: NOV | AT18: 2026-01-01 | AU18: L-11 | AW18: SEP | AX18: 2025-09-01 | AY18: 9 | AZ18: =IF(AND('Master Data'!C11=""),"",MROUND(AZ15*1.03,100)) -> 63100 | BA18: =IF(AND('Master Data'!$C$11=""),"",IF(AND('Master Data'!$C$14=$AP$6),$AZ$15,BU18)) -> 63100 | BB18: 63100 | BC18: =IF(AND('Master Data'!$C$11=""),"",ROUND(55%*BA18,0)) -> 34705 | BD18: 34705 | BE18: =IFERROR(IF(AND('Master Data'!$C$11=""),"",ROUND('Master Data'!$E$11%*BB18,0)),"") -> 6310 | BF18: ='Master Data'!$E$15 -> 2000 | BG18: =IFERROR(IF(OR('Master Data'!$C$14=$AP$6),"",IF('Master Data'!$E$8="GPF-2004",IF(BB18<18001,265,IF(BB18<33501,440,IF(BB18<54001,658,875))),IF(AND('Master Data'!$E$8="GPF"),IF(BB18<18001,265,IF(BB18<33501,440,IF(BB18<54001,658,875))),""))),"") -> 875 | BH18: =IFERROR(IF(OR('Master Data'!$C$14=$AP$6),"",'Master Data'!$C$10),"") -> 7000 | BI18: =IFERROR(IF(OR('Master Data'!$C$14=$AP$6),"",IF('Master Data'!$E$8="GPF-2004",IF(BB18<23101,1450,IF(BB18<28501,1625,IF(BB18<38501,2100,IF(BB18<51501,2850,IF(BB18<62001,3575,IF(BB18<72001,4200,IF(BB18<80001,4800,IF(BB18<116001,6150,IF(BB18<167001,8900,10500))))))))),'Master Data'!$E$10)),"") -> 7000 | BJ18: =BJ17 -> 63100 | BK18: 2025-09-01 | BL18: =IFERROR(IF('Master Data'!$C$11="","",IF('Master Data'!$C$17="","",IF(AND($AZ$17>$AZ$9),"",DATE(YEAR(BL17),MONTH(BL17)+1,DAY(BL17))))),"") -> 2025-09-01 | BM18: =IFERROR(IF('Master Data'!$C$11="","",IF('Master Data'!$C$17="","",IF(AND($AZ$17>$AZ$9),"",DATE(YEAR(BM17),MONTH(BM17)+1,DAY(BM17))))),"") -> 2025-09-01 | BN18: 2025-09-01 | BO18: 2025-09-01 | BQ18: 2025-09-01 | BU18: =IF(AND('Master Data'!$C$11=""),"",IF(AND('Master Data'!$E$18=AX18),'Master Data'!$E$17,BU17)) -> 63100 | BX18: 2000
A19: 14 | B19: PL Surrender | C19: =IFERROR(IF(B19="","",IF(AND(BQ25=""),"",IF(B19=$AX$24,"",IF(AND('Master Data'!$C$14=$AP$6),VLOOKUP(B19,om,13,0),VLOOKUP(B19,om,4,0))))),"") -> 31550 | D19: =IFERROR(IF(B19="","",IF(AND(BQ25=""),"",IF(OR(B19=$AX$24),"",IF(AND('Master Data'!$C$14=$AP$5),VLOOKUP(B19,om,7,0),"")))),"") -> 17353 | E19: =IFERROR(IF(B19="","",IF(AND(BQ25=""),"",IF(OR(B19=$AX$24,B19=$AX$25,B19=$AX$26,B19=$AX$27,B19=$AX$28,B19=$AX$29),"",IF(AND('Master Data'!$C$14=$AP$5),VLOOKUP(B19,om,8,0),"")))),"") ->  | F19: =IFERROR(IF(B19="","",IF(AND(BQ25=""),"",IF(OR(B19=$AX$24,B19=$AX$25,B19=$AX$26,B19=$AX$27,B19=$AX$28,B19=$AX$29),"",IF(AND('Master Data'!$C$14=$AP$5),F18,"")))),"") ->  | G19: =IFERROR(IF(B19="","",IF(AND(BQ25=""),"",IF(OR(B19=$AX$24,B19=$AX$25,B19=$AX$26,B19=$AX$27,B19=$AX$28,B19=$AX$29),"",IF(AND('Master Data'!$C$14=$AP$5),G18,"")))),"") ->  | H19: =IFERROR(IF(B19="","",IF(AND(BQ26=""),"",IF('Master Data'!$E$12="NO","",IF(OR(B19=$AX$24,B19=$AX$25,B19=$AX$26,B19=$AX$27,B19=$AX$28,B19=$AX$29),"",IF(AND('Master Data'!$C$14=$AP$5),F19,IF(AND('Master Data'!$E$13=$AR$9),$AS$6,IF(AND('Master Data'!$E$13=$AR$10),$AS$6,IF(AND('Master Data'!$E$13=$AR$11),$AS$6,IF(AND('Master Data'!$E$13=$AR$12),$AS$6,$AS$5))))))))),"") ->  | I19: =IFERROR(IF(B19="","",IF(AND(BQ25=""),"",IF(OR(B19=$AX$24,B19=$AX$25,B19=$AX$26,B19=$AX$27,B19=$AX$28,B19=$AX$29),"",IF(AND('Master Data'!$C$14=$AP$5),I18,"")))),"") ->  | J19: =IFERROR(IF(B19="","",IF(AND(BQ25=""),"",IF(OR(B19=$AX$24,B19=$AX$25,B19=$AX$26,B19=$AX$27,B19=$AX$28,B19=$AX$29),"",IF(AND('Master Data'!$C$14=$AP$5),J18,"")))),"") ->  | K19: =IFERROR(IF(B19="","",IF(AND('Master Data'!$C$14=$AP$6),"",IF(AND('Master Data'!$C$15<>0),IF(AND(B19="Bonus"),VLOOKUP(B19,om,4,0),"")))),"") ->  | L19: =IFERROR(IF(B19="","",IF(AND(BQ25=""),"",IF(OR(B19=$AX$24,B19=$AX$25,B19=$AX$26,B19=$AX$27,B19=$AX$28,B19=$AX$29),"",IF(AND('Master Data'!$C$14=$AP$5),L18,"")))),"") ->  | M19: 48903 | N19: =IFERROR(IF(B19="","",IF(AND(BQ25=""),"",IF(OR(B19=$AX$24,B19=$AX$25,B19=$AX$26,B19=$AX$27,B19=$AX$28,B19=$AX$29),"",IF(AND('Master Data'!$C$14=$AP$5),VLOOKUP(B19,om,11,0),"")))),"") ->  | O19: =IFERROR(IF(B19="","",IF(AND(BQ25=""),"",IF(OR(B19=$AX$25),"",IF(AND('Master Data'!$C$14=$AP$5),VLOOKUP(B19,om,12,0),"")))),"") ->  | P19: =IFERROR(IF(B19="","",IF(AND(BQ25=""),"",IF(OR(B19=$AX$24,B19=$AX$25,B19=$AX$26,B19=$AX$27,B19=$AX$28,B19=$AX$29),"",IF(AND('Master Data'!$C$14=$AP$5),'Master Data'!$E$16,"")))),"") ->  | Q19: =IFERROR(IF(B19="","",IF(AND(BQ25=""),"",IF(OR(B19=$AX$24,B19=$AX$25,B19=$AX$26,B19=$AX$27,B19=$AX$28,B19=$AX$29),"",IF(AND('Master Data'!$C$14=$AP$5),VLOOKUP(B19,om,10,0),"")))),"") ->  | R19: =IFERROR(IF(B19="","",IF(AND(BQ25=""),"",IF(OR(B19=$AX$24,B19=$AX$25,B19=$AX$26,B19=$AX$27,B19=$AX$28,B19=$AX$29),"",IF(AND('Master Data'!$C$14=$AP$5),R18,"")))),"") ->  | S19: =IFERROR(IF(B19="","",IF(AND(BQ25=""),"",IF(OR(B19=$AX$24,B19=$AX$25,B19=$AX$26,B19=$AX$27,B19=$AX$28,B19=$AX$29),"",IF(AND('Master Data'!$C$14=$AP$5),S18,"")))),"") ->  | T19: =IFERROR(IF(B19="","",IF(AND(BQ25=""),"",IF(OR(B19=$AX$24,B19=$AX$25,B19=$AX$26,B19=$AX$27,B19=$AX$28,B19=$AX$29),"",IF(AND('Master Data'!$C$14=$AP$5),T18,"")))),"") ->  | U19: =IFERROR(IF(B19="","",IF(AND(BQ25=""),"",IF(OR(B19=$AX$24,B19=$AX$25,B19=$AX$26,B19=$AX$27,B19=$AX$28,B19=$AX$29),"",IF(AND('Master Data'!$C$14=$AP$5),U18,"")))),"") ->  | V19: =IFERROR(IF(OR('Master Data'!$C$14=$AP$6,B19=""),"",IF(AND(C19=""),"",IF(AND(B19=$AT$17,'Master Data'!$C$5="Gazetted"),500,IF(AND(B19=$AT$17,'Master Data'!$C$5="Non-Gazetted"),250,"")))),"") ->  | W19: =IFERROR(IF(B19="","",IF(AND(BQ25=""),"",IF(OR(B19=$AX$24,B19=$AX$25,B19=$AX$26,B19=$AX$27,B19=$AX$28,B19=$AX$29),"",IF(AND('Master Data'!$C$14=$AP$5),W18,"")))),"") ->  | X19: =IFERROR(IF(B19="","",IF(AND(BQ25=""),"",IF(OR(B19=$AX$24,B19=$AX$25,B19=$AX$26,B19=$AX$27,B19=$AX$28,B19=$AX$29),"",IF(AND('Master Data'!$C$14=$AP$5),VLOOKUP(B19,om,9,0),"")))),"") ->  | Y19: =IFERROR(IF(OR('Master Data'!$C$14=$AP$6,B19="",'Master Data'!$C$11=""),"",IF(AND(C19=""),"",IF(B19=$AT$9,'Master Data'!$C$16,""))),"") ->  | Z19: 0 | AA19: 48903 | AS19: DEC | AT19: 2026-02-01 | AU19: L-12 | AW19: OCT | AX19: 2025-10-01 | AY19: 10 | BA19: =IF(AND('Master Data'!$C$11=""),"",IF(AND('Master Data'!$C$14=$AP$6),$AZ$15,BU19)) -> 63100 | BB19: =IF(AND(AX19<$AZ$16),"",IF(AND(AX19>$AZ$17),"",BA19)) -> 63100 | BC19: =IF(AND('Master Data'!$C$11=""),"",ROUND(58%*BA19,0)) -> 36598 | BD19: =IF(BB19="","",BC19) -> 36598 | BE19: =IFERROR(IF(AND('Master Data'!$C$11=""),"",ROUND('Master Data'!$E$11%*BB19,0)),"") -> 6310 | BF19: ='Master Data'!$E$15 -> 2000 | BG19: =IFERROR(IF(OR('Master Data'!$C$14=$AP$6),"",IF('Master Data'!$E$8="GPF-2004",IF(BB19<18001,265,IF(BB19<33501,440,IF(BB19<54001,658,875))),IF(AND('Master Data'!$E$8="GPF"),IF(BB19<18001,265,IF(BB19<33501,440,IF(BB19<54001,658,875))),""))),"") -> 875 | BH19: =IFERROR(IF(OR('Master Data'!$C$14=$AP$6),"",'Master Data'!$C$10),"") -> 7000 | BI19: =IFERROR(IF(OR('Master Data'!$C$14=$AP$6),"",IF('Master Data'!$E$8="GPF-2004",IF(BB19<23101,1450,IF(BB19<28501,1625,IF(BB19<38501,2100,IF(BB19<51501,2850,IF(BB19<62001,3575,IF(BB19<72001,4200,IF(BB19<80001,4800,IF(BB19<116001,6150,IF(BB19<167001,8900,10500))))))))),'Master Data'!$E$10)),"") -> 7000 | BJ19: 63100 | BK19: 2025-10-01 | BL19: =IFERROR(IF('Master Data'!$C$11="","",IF('Master Data'!$C$17="","",IF(AND($AZ$17>$AZ$9),"",DATE(YEAR(BL18),MONTH(BL18)+1,DAY(BL18))))),"") -> 2025-10-01 | BM19: =IFERROR(IF('Master Data'!$C$11="","",IF('Master Data'!$C$17="","",IF(AND($AZ$17>$AZ$9),"",DATE(YEAR(BM18),MONTH(BM18)+1,DAY(BM18))))),"") -> 2025-10-01 | BN19: 2025-10-01 | BO19: 2025-10-01 | BQ19: 2025-10-01 | BU19: =IF(AND('Master Data'!$C$11=""),"",IF(AND('Master Data'!$E$18=AX19),'Master Data'!$E$17,BU18)) -> 63100 | BX19: 2000
A20: 15 | B20: DA Arrear 53% to 55% | C20: =IFERROR(IF(B20="","",IF(AND(BQ26=""),"",IF(B20=$AX$24,"",IF(AND('Master Data'!$C$14=$AP$6),VLOOKUP(B20,om,13,0),VLOOKUP(B20,om,4,0))))),"") -> 0 | D20: =IFERROR(IF(B20="","",IF(AND(BQ26=""),"",IF(OR(B20=$AX$24),"",IF(AND('Master Data'!$C$14=$AP$5),VLOOKUP(B20,om,7,0),"")))),"") -> 3678 | E20: =IFERROR(IF(B20="","",IF(AND(BQ26=""),"",IF(OR(B20=$AX$24,B20=$AX$25,B20=$AX$26,B20=$AX$27,B20=$AX$28,B20=$AX$29),"",IF(AND('Master Data'!$C$14=$AP$5),VLOOKUP(B20,om,8,0),"")))),"") ->  | F20: =IFERROR(IF(B20="","",IF(AND(BQ26=""),"",IF(OR(B20=$AX$24,B20=$AX$25,B20=$AX$26,B20=$AX$27,B20=$AX$28,B20=$AX$29),"",IF(AND('Master Data'!$C$14=$AP$5),F19,"")))),"") ->  | G20: =IFERROR(IF(B20="","",IF(AND(BQ26=""),"",IF(OR(B20=$AX$24,B20=$AX$25,B20=$AX$26,B20=$AX$27,B20=$AX$28,B20=$AX$29),"",IF(AND('Master Data'!$C$14=$AP$5),G19,"")))),"") ->  | H20: =IFERROR(IF(B20="","",IF(AND(BQ27=""),"",IF('Master Data'!$E$12="NO","",IF(OR(B20=$AX$24,B20=$AX$25,B20=$AX$26,B20=$AX$27,B20=$AX$28,B20=$AX$29),"",IF(AND('Master Data'!$C$14=$AP$5),F20,IF(AND('Master Data'!$E$13=$AR$9),$AS$6,IF(AND('Master Data'!$E$13=$AR$10),$AS$6,IF(AND('Master Data'!$E$13=$AR$11),$AS$6,IF(AND('Master Data'!$E$13=$AR$12),$AS$6,$AS$5))))))))),"") ->  | I20: =IFERROR(IF(B20="","",IF(AND(BQ26=""),"",IF(OR(B20=$AX$24,B20=$AX$25,B20=$AX$26,B20=$AX$27,B20=$AX$28,B20=$AX$29),"",IF(AND('Master Data'!$C$14=$AP$5),I19,"")))),"") ->  | J20: =IFERROR(IF(B20="","",IF(AND(BQ26=""),"",IF(OR(B20=$AX$24,B20=$AX$25,B20=$AX$26,B20=$AX$27,B20=$AX$28,B20=$AX$29),"",IF(AND('Master Data'!$C$14=$AP$5),J19,"")))),"") ->  | K20: =IFERROR(IF(B20="","",IF(AND('Master Data'!$C$14=$AP$6),"",IF(AND('Master Data'!$C$15<>0),IF(AND(B20="Bonus"),VLOOKUP(B20,om,4,0),"")))),"") ->  | L20: =IFERROR(IF(B20="","",IF(AND(BQ26=""),"",IF(OR(B20=$AX$24,B20=$AX$25,B20=$AX$26,B20=$AX$27,B20=$AX$28,B20=$AX$29),"",IF(AND('Master Data'!$C$14=$AP$5),L19,"")))),"") ->  | M20: 3678 | N20: =IFERROR(IF(B20="","",IF(AND(BQ26=""),"",IF(OR(B20=$AX$24,B20=$AX$25,B20=$AX$26,B20=$AX$27,B20=$AX$28,B20=$AX$29),"",IF(AND('Master Data'!$C$14=$AP$5),VLOOKUP(B20,om,11,0),"")))),"") ->  | O20: =IFERROR(IF(B20="","",IF(AND(BQ26=""),"",IF(OR(B20=$AX$25),"",IF(AND('Master Data'!$C$14=$AP$5),VLOOKUP(B20,om,12,0),"")))),"") -> 3678 | P20: =IFERROR(IF(B20="","",IF(AND(BQ26=""),"",IF(OR(B20=$AX$24,B20=$AX$25,B20=$AX$26,B20=$AX$27,B20=$AX$28,B20=$AX$29),"",IF(AND('Master Data'!$C$14=$AP$5),'Master Data'!$E$16,"")))),"") ->  | Q20: =IFERROR(IF(B20="","",IF(AND(BQ26=""),"",IF(OR(B20=$AX$24,B20=$AX$25,B20=$AX$26,B20=$AX$27,B20=$AX$28,B20=$AX$29),"",IF(AND('Master Data'!$C$14=$AP$5),VLOOKUP(B20,om,10,0),"")))),"") ->  | R20: =IFERROR(IF(B20="","",IF(AND(BQ26=""),"",IF(OR(B20=$AX$24,B20=$AX$25,B20=$AX$26,B20=$AX$27,B20=$AX$28,B20=$AX$29),"",IF(AND('Master Data'!$C$14=$AP$5),R19,"")))),"") ->  | S20: =IFERROR(IF(B20="","",IF(AND(BQ26=""),"",IF(OR(B20=$AX$24,B20=$AX$25,B20=$AX$26,B20=$AX$27,B20=$AX$28,B20=$AX$29),"",IF(AND('Master Data'!$C$14=$AP$5),S19,"")))),"") ->  | T20: =IFERROR(IF(B20="","",IF(AND(BQ26=""),"",IF(OR(B20=$AX$24,B20=$AX$25,B20=$AX$26,B20=$AX$27,B20=$AX$28,B20=$AX$29),"",IF(AND('Master Data'!$C$14=$AP$5),T19,"")))),"") ->  | U20: =IFERROR(IF(B20="","",IF(AND(BQ26=""),"",IF(OR(B20=$AX$24,B20=$AX$25,B20=$AX$26,B20=$AX$27,B20=$AX$28,B20=$AX$29),"",IF(AND('Master Data'!$C$14=$AP$5),U19,"")))),"") ->  | V20: =IFERROR(IF(OR('Master Data'!$C$14=$AP$6,B20=""),"",IF(AND(C20=""),"",IF(AND(B20=$AT$17,'Master Data'!$C$5="Gazetted"),500,IF(AND(B20=$AT$17,'Master Data'!$C$5="Non-Gazetted"),250,"")))),"") ->  | W20: =IFERROR(IF(B20="","",IF(AND(BQ26=""),"",IF(OR(B20=$AX$24,B20=$AX$25,B20=$AX$26,B20=$AX$27,B20=$AX$28,B20=$AX$29),"",IF(AND('Master Data'!$C$14=$AP$5),W19,"")))),"") ->  | X20: =IFERROR(IF(B20="","",IF(AND(BQ26=""),"",IF(OR(B20=$AX$24,B20=$AX$25,B20=$AX$26,B20=$AX$27,B20=$AX$28,B20=$AX$29),"",IF(AND('Master Data'!$C$14=$AP$5),VLOOKUP(B20,om,9,0),"")))),"") ->  | Y20: =IFERROR(IF(OR('Master Data'!$C$14=$AP$6,B20="",'Master Data'!$C$11=""),"",IF(AND(C20=""),"",IF(B20=$AT$9,'Master Data'!$C$16,""))),"") ->  | Z20: 3678 | AA20: 0 | AU20: L-13 | AW20: NOV | AX20: 2025-11-01 | AY20: 11 | BA20: =IF(AND('Master Data'!$C$11=""),"",IF(AND('Master Data'!$C$14=$AP$6),$AZ$15,BU20)) -> 63100 | BB20: 63100 | BC20: =IF(AND('Master Data'!$C$11=""),"",ROUND(58%*BA20,0)) -> 36598 | BD20: 36598 | BE20: =IFERROR(IF(AND('Master Data'!$C$11=""),"",ROUND('Master Data'!$E$11%*BB20,0)),"") -> 6310 | BF20: ='Master Data'!$E$15 -> 2000 | BG20: =IFERROR(IF(OR('Master Data'!$C$14=$AP$6),"",IF('Master Data'!$E$8="GPF-2004",IF(BB20<18001,265,IF(BB20<33501,440,IF(BB20<54001,658,875))),IF(AND('Master Data'!$E$8="GPF"),IF(BB20<18001,265,IF(BB20<33501,440,IF(BB20<54001,658,875))),""))),"") -> 875 | BH20: =IFERROR(IF(OR('Master Data'!$C$14=$AP$6),"",'Master Data'!$C$10),"") -> 7000 | BI20: =IFERROR(IF(OR('Master Data'!$C$14=$AP$6),"",IF('Master Data'!$E$8="GPF-2004",IF(BB20<23101,1450,IF(BB20<28501,1625,IF(BB20<38501,2100,IF(BB20<51501,2850,IF(BB20<62001,3575,IF(BB20<72001,4200,IF(BB20<80001,4800,IF(BB20<116001,6150,IF(BB20<167001,8900,10500))))))))),'Master Data'!$E$10)),"") -> 7000 | BJ20: 63100 | BK20: 2025-11-01 | BL20: =IFERROR(IF('Master Data'!$C$11="","",IF('Master Data'!$C$17="","",IF(AND($AZ$17>$AZ$9),"",DATE(YEAR(BL19),MONTH(BL19)+1,DAY(BL19))))),"") -> 2025-11-01 | BM20: =IFERROR(IF('Master Data'!$C$11="","",IF('Master Data'!$C$17="","",IF(AND($AZ$17>$AZ$9),"",DATE(YEAR(BM19),MONTH(BM19)+1,DAY(BM19))))),"") -> 2025-11-01 | BN20: 2025-11-01 | BO20: 2025-11-01 | BQ20: 2025-11-01 | BU20: =IF(AND('Master Data'!$C$11=""),"",IF(AND('Master Data'!$E$18=AX20),'Master Data'!$E$17,BU19)) -> 63100 | BX20: 2000
A21: 16 | B21: DA Arrear 55% to 58% | C21: =IFERROR(IF(B21="","",IF(AND(BQ27=""),"",IF(B21=$AX$24,"",IF(AND('Master Data'!$C$14=$AP$6),VLOOKUP(B21,om,13,0),VLOOKUP(B21,om,4,0))))),"") -> 0 | D21: =IFERROR(IF(B21="","",IF(AND(BQ27=""),"",IF(OR(B21=$AX$24),"",IF(AND('Master Data'!$C$14=$AP$5),VLOOKUP(B21,om,7,0),"")))),"") -> 5679 | E21: =IFERROR(IF(B21="","",IF(AND(BQ27=""),"",IF(OR(B21=$AX$24,B21=$AX$25,B21=$AX$26,B21=$AX$27,B21=$AX$28,B21=$AX$29),"",IF(AND('Master Data'!$C$14=$AP$5),VLOOKUP(B21,om,8,0),"")))),"") ->  | F21: =IFERROR(IF(B21="","",IF(AND(BQ27=""),"",IF(OR(B21=$AX$24,B21=$AX$25,B21=$AX$26,B21=$AX$27,B21=$AX$28,B21=$AX$29),"",IF(AND('Master Data'!$C$14=$AP$5),F20,"")))),"") ->  | G21: =IFERROR(IF(B21="","",IF(AND(BQ27=""),"",IF(OR(B21=$AX$24,B21=$AX$25,B21=$AX$26,B21=$AX$27,B21=$AX$28,B21=$AX$29),"",IF(AND('Master Data'!$C$14=$AP$5),G20,"")))),"") ->  | H21: =IFERROR(IF(B21="","",IF(AND(BQ28=""),"",IF('Master Data'!$E$12="NO","",IF(OR(B21=$AX$24,B21=$AX$25,B21=$AX$26,B21=$AX$27,B21=$AX$28,B21=$AX$29),"",IF(AND('Master Data'!$C$14=$AP$5),F21,IF(AND('Master Data'!$E$13=$AR$9),$AS$6,IF(AND('Master Data'!$E$13=$AR$10),$AS$6,IF(AND('Master Data'!$E$13=$AR$11),$AS$6,IF(AND('Master Data'!$E$13=$AR$12),$AS$6,$AS$5))))))))),"") ->  | I21: =IFERROR(IF(B21="","",IF(AND(BQ27=""),"",IF(OR(B21=$AX$24,B21=$AX$25,B21=$AX$26,B21=$AX$27,B21=$AX$28,B21=$AX$29),"",IF(AND('Master Data'!$C$14=$AP$5),I20,"")))),"") ->  | J21: =IFERROR(IF(B21="","",IF(AND(BQ27=""),"",IF(OR(B21=$AX$24,B21=$AX$25,B21=$AX$26,B21=$AX$27,B21=$AX$28,B21=$AX$29),"",IF(AND('Master Data'!$C$14=$AP$5),J20,"")))),"") ->  | K21: =IFERROR(IF(B21="","",IF(AND('Master Data'!$C$14=$AP$6),"",IF(AND('Master Data'!$C$15<>0),IF(AND(B21="Bonus"),VLOOKUP(B21,om,4,0),"")))),"") ->  | L21: =IFERROR(IF(B21="","",IF(AND(BQ27=""),"",IF(OR(B21=$AX$24,B21=$AX$25,B21=$AX$26,B21=$AX$27,B21=$AX$28,B21=$AX$29),"",IF(AND('Master Data'!$C$14=$AP$5),L20,"")))),"") ->  | M21: 5679 | N21: =IFERROR(IF(B21="","",IF(AND(BQ27=""),"",IF(OR(B21=$AX$24,B21=$AX$25,B21=$AX$26,B21=$AX$27,B21=$AX$28,B21=$AX$29),"",IF(AND('Master Data'!$C$14=$AP$5),VLOOKUP(B21,om,11,0),"")))),"") ->  | O21: =IFERROR(IF(B21="","",IF(AND(BQ27=""),"",IF(OR(B21=$AX$25),"",IF(AND('Master Data'!$C$14=$AP$5),VLOOKUP(B21,om,12,0),"")))),"") -> 5679 | P21: =IFERROR(IF(B21="","",IF(AND(BQ27=""),"",IF(OR(B21=$AX$24,B21=$AX$25,B21=$AX$26,B21=$AX$27,B21=$AX$28,B21=$AX$29),"",IF(AND('Master Data'!$C$14=$AP$5),'Master Data'!$E$16,"")))),"") ->  | Q21: =IFERROR(IF(B21="","",IF(AND(BQ27=""),"",IF(OR(B21=$AX$24,B21=$AX$25,B21=$AX$26,B21=$AX$27,B21=$AX$28,B21=$AX$29),"",IF(AND('Master Data'!$C$14=$AP$5),VLOOKUP(B21,om,10,0),"")))),"") ->  | R21: =IFERROR(IF(B21="","",IF(AND(BQ27=""),"",IF(OR(B21=$AX$24,B21=$AX$25,B21=$AX$26,B21=$AX$27,B21=$AX$28,B21=$AX$29),"",IF(AND('Master Data'!$C$14=$AP$5),R20,"")))),"") ->  | S21: =IFERROR(IF(B21="","",IF(AND(BQ27=""),"",IF(OR(B21=$AX$24,B21=$AX$25,B21=$AX$26,B21=$AX$27,B21=$AX$28,B21=$AX$29),"",IF(AND('Master Data'!$C$14=$AP$5),S20,"")))),"") ->  | T21: =IFERROR(IF(B21="","",IF(AND(BQ27=""),"",IF(OR(B21=$AX$24,B21=$AX$25,B21=$AX$26,B21=$AX$27,B21=$AX$28,B21=$AX$29),"",IF(AND('Master Data'!$C$14=$AP$5),T20,"")))),"") ->  | U21: =IFERROR(IF(B21="","",IF(AND(BQ27=""),"",IF(OR(B21=$AX$24,B21=$AX$25,B21=$AX$26,B21=$AX$27,B21=$AX$28,B21=$AX$29),"",IF(AND('Master Data'!$C$14=$AP$5),U20,"")))),"") ->  | V21: =IFERROR(IF(OR('Master Data'!$C$14=$AP$6,B21=""),"",IF(AND(C21=""),"",IF(AND(B21=$AT$17,'Master Data'!$C$5="Gazetted"),500,IF(AND(B21=$AT$17,'Master Data'!$C$5="Non-Gazetted"),250,"")))),"") ->  | W21: =IFERROR(IF(B21="","",IF(AND(BQ27=""),"",IF(OR(B21=$AX$24,B21=$AX$25,B21=$AX$26,B21=$AX$27,B21=$AX$28,B21=$AX$29),"",IF(AND('Master Data'!$C$14=$AP$5),W20,"")))),"") ->  | X21: =IFERROR(IF(B21="","",IF(AND(BQ27=""),"",IF(OR(B21=$AX$24,B21=$AX$25,B21=$AX$26,B21=$AX$27,B21=$AX$28,B21=$AX$29),"",IF(AND('Master Data'!$C$14=$AP$5),VLOOKUP(B21,om,9,0),"")))),"") ->  | Y21: =IFERROR(IF(OR('Master Data'!$C$14=$AP$6,B21="",'Master Data'!$C$11=""),"",IF(AND(C21=""),"",IF(B21=$AT$9,'Master Data'!$C$16,""))),"") ->  | Z21: 5679 | AA21: 0 | AU21: L-14 | AW21: DEC | AX21: 2025-12-01 | AY21: 12 | BA21: =IF(AND('Master Data'!$C$11=""),"",IF(AND('Master Data'!$C$14=$AP$6),$AZ$15,BU21)) -> 63100 | BB21: 63100 | BC21: =IF(AND('Master Data'!$C$11=""),"",ROUND(58%*BA21,0)) -> 36598 | BD21: 36598 | BE21: =IFERROR(IF(AND('Master Data'!$C$11=""),"",ROUND('Master Data'!$E$11%*BB21,0)),"") -> 6310 | BF21: ='Master Data'!$E$15 -> 2000 | BG21: =IFERROR(IF(OR('Master Data'!$C$14=$AP$6),"",IF('Master Data'!$E$8="GPF-2004",IF(BB21<18001,265,IF(BB21<33501,440,IF(BB21<54001,658,875))),IF(AND('Master Data'!$E$8="GPF"),IF(BB21<18001,265,IF(BB21<33501,440,IF(BB21<54001,658,875))),""))),"") -> 875 | BH21: =IFERROR(IF(OR('Master Data'!$C$14=$AP$6),"",'Master Data'!$C$10),"") -> 7000 | BI21: =IFERROR(IF(OR('Master Data'!$C$14=$AP$6),"",IF('Master Data'!$E$8="GPF-2004",IF(BB21<23101,1450,IF(BB21<28501,1625,IF(BB21<38501,2100,IF(BB21<51501,2850,IF(BB21<62001,3575,IF(BB21<72001,4200,IF(BB21<80001,4800,IF(BB21<116001,6150,IF(BB21<167001,8900,10500))))))))),'Master Data'!$E$10)),"") -> 7000 | BJ21: 63100 | BK21: 2025-12-01 | BL21: =IFERROR(IF('Master Data'!$C$11="","",IF('Master Data'!$C$17="","",IF(AND($AZ$17>$AZ$9),"",DATE(YEAR(BL20),MONTH(BL20)+1,DAY(BL20))))),"") -> 2025-12-01 | BM21: =IFERROR(IF('Master Data'!$C$11="","",IF('Master Data'!$C$17="","",IF(AND($AZ$17>$AZ$9),"",DATE(YEAR(BM20),MONTH(BM20)+1,DAY(BM20))))),"") -> 2025-12-01 | BN21: 2025-12-01 | BO21: 2025-12-01 | BQ21: 2025-12-01 | BU21: =IF(AND('Master Data'!$C$11=""),"",IF(AND('Master Data'!$E$18=AX21),'Master Data'!$E$17,BU20)) -> 63100 | BX21: 2000
A22: 17 | B22: Fixation arear | C22: =IFERROR(IF(B22="","",IF(AND(BQ28=""),"",IF(B22=$AX$24,"",IF(AND('Master Data'!$C$14=$AP$6),VLOOKUP(B22,om,13,0),VLOOKUP(B22,om,4,0))))),"") -> 0 | D22: =IFERROR(IF(B22="","",IF(AND(BQ28=""),"",IF(OR(B22=$AX$24),"",IF(AND('Master Data'!$C$14=$AP$5),VLOOKUP(B22,om,7,0),"")))),"") ->  | E22: =IFERROR(IF(B22="","",IF(AND(BQ28=""),"",IF(OR(B22=$AX$24,B22=$AX$25,B22=$AX$26,B22=$AX$27,B22=$AX$28,B22=$AX$29),"",IF(AND('Master Data'!$C$14=$AP$5),VLOOKUP(B22,om,8,0),"")))),"") ->  | F22: =IFERROR(IF(B22="","",IF(AND(BQ28=""),"",IF(OR(B22=$AX$24,B22=$AX$25,B22=$AX$26,B22=$AX$27,B22=$AX$28,B22=$AX$29),"",IF(AND('Master Data'!$C$14=$AP$5),F21,"")))),"") ->  | G22: =IFERROR(IF(B22="","",IF(AND(BQ28=""),"",IF(OR(B22=$AX$24,B22=$AX$25,B22=$AX$26,B22=$AX$27,B22=$AX$28,B22=$AX$29),"",IF(AND('Master Data'!$C$14=$AP$5),G21,"")))),"") ->  | H22: =IFERROR(IF(B22="","",IF(AND(BQ29=""),"",IF('Master Data'!$E$12="NO","",IF(OR(B22=$AX$24,B22=$AX$25,B22=$AX$26,B22=$AX$27,B22=$AX$28,B22=$AX$29),"",IF(AND('Master Data'!$C$14=$AP$5),F22,IF(AND('Master Data'!$E$13=$AR$9),$AS$6,IF(AND('Master Data'!$E$13=$AR$10),$AS$6,IF(AND('Master Data'!$E$13=$AR$11),$AS$6,IF(AND('Master Data'!$E$13=$AR$12),$AS$6,$AS$5))))))))),"") ->  | I22: =IFERROR(IF(B22="","",IF(AND(BQ28=""),"",IF(OR(B22=$AX$24,B22=$AX$25,B22=$AX$26,B22=$AX$27,B22=$AX$28,B22=$AX$29),"",IF(AND('Master Data'!$C$14=$AP$5),I21,"")))),"") ->  | J22: =IFERROR(IF(B22="","",IF(AND(BQ28=""),"",IF(OR(B22=$AX$24,B22=$AX$25,B22=$AX$26,B22=$AX$27,B22=$AX$28,B22=$AX$29),"",IF(AND('Master Data'!$C$14=$AP$5),J21,"")))),"") ->  | K22: =IFERROR(IF(B22="","",IF(AND('Master Data'!$C$14=$AP$6),"",IF(AND('Master Data'!$C$15<>0),IF(AND(B22="Bonus"),VLOOKUP(B22,om,4,0),"")))),"") ->  | L22: =IFERROR(IF(B22="","",IF(AND(BQ28=""),"",IF(OR(B22=$AX$24,B22=$AX$25,B22=$AX$26,B22=$AX$27,B22=$AX$28,B22=$AX$29),"",IF(AND('Master Data'!$C$14=$AP$5),L21,"")))),"") ->  | M22: 0 | N22: =IFERROR(IF(B22="","",IF(AND(BQ28=""),"",IF(OR(B22=$AX$24,B22=$AX$25,B22=$AX$26,B22=$AX$27,B22=$AX$28,B22=$AX$29),"",IF(AND('Master Data'!$C$14=$AP$5),VLOOKUP(B22,om,11,0),"")))),"") ->  | O22: =IFERROR(IF(B22="","",IF(AND(BQ28=""),"",IF(OR(B22=$AX$25),"",IF(AND('Master Data'!$C$14=$AP$5),VLOOKUP(B22,om,12,0),"")))),"") -> 0 | P22: =IFERROR(IF(B22="","",IF(AND(BQ28=""),"",IF(OR(B22=$AX$24,B22=$AX$25,B22=$AX$26,B22=$AX$27,B22=$AX$28,B22=$AX$29),"",IF(AND('Master Data'!$C$14=$AP$5),'Master Data'!$E$16,"")))),"") ->  | Q22: =IFERROR(IF(B22="","",IF(AND(BQ28=""),"",IF(OR(B22=$AX$24,B22=$AX$25,B22=$AX$26,B22=$AX$27,B22=$AX$28,B22=$AX$29),"",IF(AND('Master Data'!$C$14=$AP$5),VLOOKUP(B22,om,10,0),"")))),"") ->  | R22: =IFERROR(IF(B22="","",IF(AND(BQ28=""),"",IF(OR(B22=$AX$24,B22=$AX$25,B22=$AX$26,B22=$AX$27,B22=$AX$28,B22=$AX$29),"",IF(AND('Master Data'!$C$14=$AP$5),R21,"")))),"") ->  | S22: =IFERROR(IF(B22="","",IF(AND(BQ28=""),"",IF(OR(B22=$AX$24,B22=$AX$25,B22=$AX$26,B22=$AX$27,B22=$AX$28,B22=$AX$29),"",IF(AND('Master Data'!$C$14=$AP$5),S21,"")))),"") ->  | T22: =IFERROR(IF(B22="","",IF(AND(BQ28=""),"",IF(OR(B22=$AX$24,B22=$AX$25,B22=$AX$26,B22=$AX$27,B22=$AX$28,B22=$AX$29),"",IF(AND('Master Data'!$C$14=$AP$5),T21,"")))),"") ->  | U22: =IFERROR(IF(B22="","",IF(AND(BQ28=""),"",IF(OR(B22=$AX$24,B22=$AX$25,B22=$AX$26,B22=$AX$27,B22=$AX$28,B22=$AX$29),"",IF(AND('Master Data'!$C$14=$AP$5),U21,"")))),"") ->  | V22: =IFERROR(IF(OR('Master Data'!$C$14=$AP$6,B22=""),"",IF(AND(C22=""),"",IF(AND(B22=$AT$17,'Master Data'!$C$5="Gazetted"),500,IF(AND(B22=$AT$17,'Master Data'!$C$5="Non-Gazetted"),250,"")))),"") ->  | W22: =IFERROR(IF(B22="","",IF(AND(BQ28=""),"",IF(OR(B22=$AX$24,B22=$AX$25,B22=$AX$26,B22=$AX$27,B22=$AX$28,B22=$AX$29),"",IF(AND('Master Data'!$C$14=$AP$5),W21,"")))),"") ->  | X22: =IFERROR(IF(B22="","",IF(AND(BQ28=""),"",IF(OR(B22=$AX$24,B22=$AX$25,B22=$AX$26,B22=$AX$27,B22=$AX$28,B22=$AX$29),"",IF(AND('Master Data'!$C$14=$AP$5),VLOOKUP(B22,om,9,0),"")))),"") ->  | Y22: =IFERROR(IF(OR('Master Data'!$C$14=$AP$6,B22="",'Master Data'!$C$11=""),"",IF(AND(C22=""),"",IF(B22=$AT$9,'Master Data'!$C$16,""))),"") ->  | Z22: 0 | AA22: 0 | AU22: L-15 | AW22: JAN | AX22: 2026-01-01 | AY22: 1 | BA22: =IF(AND('Master Data'!$C$11=""),"",IF(AND('Master Data'!$C$14=$AP$6),$AZ$15,BU22)) -> 63100 | BB22: 63100 | BC22: =IF(AND('Master Data'!$C$11=""),"",ROUND(58%*BA22,0)) -> 36598 | BD22: 36598 | BE22: =IFERROR(IF(AND('Master Data'!$C$11=""),"",ROUND('Master Data'!$E$11%*BB22,0)),"") -> 6310 | BF22: ='Master Data'!$E$15 -> 2000 | BG22: =IFERROR(IF(OR('Master Data'!$C$14=$AP$6),"",IF('Master Data'!$E$8="GPF-2004",IF(BB22<18001,265,IF(BB22<33501,440,IF(BB22<54001,658,875))),IF(AND('Master Data'!$E$8="GPF"),IF(BB22<18001,265,IF(BB22<33501,440,IF(BB22<54001,658,875))),""))),"") -> 875 | BH22: =IFERROR(IF(OR('Master Data'!$C$14=$AP$6),"",'Master Data'!$C$10),"") -> 7000 | BI22: =IFERROR(IF(OR('Master Data'!$C$14=$AP$6),"",IF('Master Data'!$E$8="GPF-2004",IF(BB22<23101,1450,IF(BB22<28501,1625,IF(BB22<38501,2100,IF(BB22<51501,2850,IF(BB22<62001,3575,IF(BB22<72001,4200,IF(BB22<80001,4800,IF(BB22<116001,6150,IF(BB22<167001,8900,10500))))))))),'Master Data'!$E$10)),"") -> 7000 | BJ22: 63100 | BK22: 2026-01-01 | BL22: =IFERROR(IF('Master Data'!$C$11="","",IF('Master Data'!$C$17="","",IF(AND($AZ$17>$AZ$9),"",DATE(YEAR(BL21),MONTH(BL21)+1,DAY(BL21))))),"") -> 2026-01-01 | BM22: =IFERROR(IF('Master Data'!$C$11="","",IF('Master Data'!$C$17="","",IF(AND($AZ$17>$AZ$9),"",DATE(YEAR(BM21),MONTH(BM21)+1,DAY(BM21))))),"") -> 2026-01-01 | BN22: 2026-01-01 | BO22: 2026-01-01 | BQ22: 2026-01-01 | BU22: =IF(AND('Master Data'!$C$11=""),"",IF(AND('Master Data'!$E$18=AX22),'Master Data'!$E$17,BU21)) -> 63100 | BX22: 2000
A23: 18 | B23: PL Surrender Arrear | C23: =IFERROR(IF(B23="","",IF(AND(BQ29=""),"",IF(B23=$AX$24,"",IF(AND('Master Data'!$C$14=$AP$6),VLOOKUP(B23,om,13,0),VLOOKUP(B23,om,4,0))))),"") -> 0 | D23: =IFERROR(IF(B23="","",IF(AND(BQ29=""),"",IF(OR(B23=$AX$24),"",IF(AND('Master Data'!$C$14=$AP$5),VLOOKUP(B23,om,7,0),"")))),"") -> 947 | E23: =IFERROR(IF(B23="","",IF(AND(BQ29=""),"",IF(OR(B23=$AX$24,B23=$AX$25,B23=$AX$26,B23=$AX$27,B23=$AX$28,B23=$AX$29),"",IF(AND('Master Data'!$C$14=$AP$5),VLOOKUP(B23,om,8,0),"")))),"") ->  | F23: =IFERROR(IF(B23="","",IF(AND(BQ29=""),"",IF(OR(B23=$AX$24,B23=$AX$25,B23=$AX$26,B23=$AX$27,B23=$AX$28,B23=$AX$29),"",IF(AND('Master Data'!$C$14=$AP$5),F22,"")))),"") ->  | G23: =IFERROR(IF(B23="","",IF(AND(BQ29=""),"",IF(OR(B23=$AX$24,B23=$AX$25,B23=$AX$26,B23=$AX$27,B23=$AX$28,B23=$AX$29),"",IF(AND('Master Data'!$C$14=$AP$5),G22,"")))),"") ->  | H23: =IFERROR(IF(B23="","",IF(AND(BQ30=""),"",IF('Master Data'!$E$12="NO","",IF(OR(B23=$AX$24,B23=$AX$25,B23=$AX$26,B23=$AX$27,B23=$AX$28,B23=$AX$29),"",IF(AND('Master Data'!$C$14=$AP$5),F23,IF(AND('Master Data'!$E$13=$AR$9),$AS$6,IF(AND('Master Data'!$E$13=$AR$10),$AS$6,IF(AND('Master Data'!$E$13=$AR$11),$AS$6,IF(AND('Master Data'!$E$13=$AR$12),$AS$6,$AS$5))))))))),"") ->  | I23: =IFERROR(IF(B23="","",IF(AND(BQ29=""),"",IF(OR(B23=$AX$24,B23=$AX$25,B23=$AX$26,B23=$AX$27,B23=$AX$28,B23=$AX$29),"",IF(AND('Master Data'!$C$14=$AP$5),I22,"")))),"") ->  | J23: =IFERROR(IF(B23="","",IF(AND(BQ29=""),"",IF(OR(B23=$AX$24,B23=$AX$25,B23=$AX$26,B23=$AX$27,B23=$AX$28,B23=$AX$29),"",IF(AND('Master Data'!$C$14=$AP$5),J22,"")))),"") ->  | K23: =IFERROR(IF(B23="","",IF(AND('Master Data'!$C$14=$AP$6),"",IF(AND('Master Data'!$C$15<>0),IF(AND(B23="Bonus"),VLOOKUP(B23,om,4,0),"")))),"") ->  | L23: =IFERROR(IF(B23="","",IF(AND(BQ29=""),"",IF(OR(B23=$AX$24,B23=$AX$25,B23=$AX$26,B23=$AX$27,B23=$AX$28,B23=$AX$29),"",IF(AND('Master Data'!$C$14=$AP$5),L22,"")))),"") ->  | M23: 947 | N23: =IFERROR(IF(B23="","",IF(AND(BQ29=""),"",IF(OR(B23=$AX$24,B23=$AX$25,B23=$AX$26,B23=$AX$27,B23=$AX$28,B23=$AX$29),"",IF(AND('Master Data'!$C$14=$AP$5),VLOOKUP(B23,om,11,0),"")))),"") ->  | O23: =IFERROR(IF(B23="","",IF(AND(BQ29=""),"",IF(OR(B23=$AX$25),"",IF(AND('Master Data'!$C$14=$AP$5),VLOOKUP(B23,om,12,0),"")))),"") -> 947 | P23: =IFERROR(IF(B23="","",IF(AND(BQ29=""),"",IF(OR(B23=$AX$24,B23=$AX$25,B23=$AX$26,B23=$AX$27,B23=$AX$28,B23=$AX$29),"",IF(AND('Master Data'!$C$14=$AP$5),'Master Data'!$E$16,"")))),"") ->  | Q23: =IFERROR(IF(B23="","",IF(AND(BQ29=""),"",IF(OR(B23=$AX$24,B23=$AX$25,B23=$AX$26,B23=$AX$27,B23=$AX$28,B23=$AX$29),"",IF(AND('Master Data'!$C$14=$AP$5),VLOOKUP(B23,om,10,0),"")))),"") ->  | R23: =IFERROR(IF(B23="","",IF(AND(BQ29=""),"",IF(OR(B23=$AX$24,B23=$AX$25,B23=$AX$26,B23=$AX$27,B23=$AX$28,B23=$AX$29),"",IF(AND('Master Data'!$C$14=$AP$5),R22,"")))),"") ->  | S23: =IFERROR(IF(B23="","",IF(AND(BQ29=""),"",IF(OR(B23=$AX$24,B23=$AX$25,B23=$AX$26,B23=$AX$27,B23=$AX$28,B23=$AX$29),"",IF(AND('Master Data'!$C$14=$AP$5),S22,"")))),"") ->  | T23: =IFERROR(IF(B23="","",IF(AND(BQ29=""),"",IF(OR(B23=$AX$24,B23=$AX$25,B23=$AX$26,B23=$AX$27,B23=$AX$28,B23=$AX$29),"",IF(AND('Master Data'!$C$14=$AP$5),T22,"")))),"") ->  | U23: =IFERROR(IF(B23="","",IF(AND(BQ29=""),"",IF(OR(B23=$AX$24,B23=$AX$25,B23=$AX$26,B23=$AX$27,B23=$AX$28,B23=$AX$29),"",IF(AND('Master Data'!$C$14=$AP$5),U22,"")))),"") ->  | V23: =IFERROR(IF(OR('Master Data'!$C$14=$AP$6,B23=""),"",IF(AND(C23=""),"",IF(AND(B23=$AT$17,'Master Data'!$C$5="Gazetted"),500,IF(AND(B23=$AT$17,'Master Data'!$C$5="Non-Gazetted"),250,"")))),"") ->  | W23: =IFERROR(IF(B23="","",IF(AND(BQ29=""),"",IF(OR(B23=$AX$24,B23=$AX$25,B23=$AX$26,B23=$AX$27,B23=$AX$28,B23=$AX$29),"",IF(AND('Master Data'!$C$14=$AP$5),W22,"")))),"") ->  | X23: =IFERROR(IF(B23="","",IF(AND(BQ29=""),"",IF(OR(B23=$AX$24,B23=$AX$25,B23=$AX$26,B23=$AX$27,B23=$AX$28,B23=$AX$29),"",IF(AND('Master Data'!$C$14=$AP$5),VLOOKUP(B23,om,9,0),"")))),"") ->  | Y23: =IFERROR(IF(OR('Master Data'!$C$14=$AP$6,B23="",'Master Data'!$C$11=""),"",IF(AND(C23=""),"",IF(B23=$AT$9,'Master Data'!$C$16,""))),"") ->  | Z23: 947 | AA23: 0 | AU23: L-16 | AW23: FEB | AX23: 2026-02-01 | AY23: 2 | BA23: =IF(AND('Master Data'!$C$11=""),"",IF(AND('Master Data'!$C$14=$AP$6),$AZ$15,BU23)) -> 63100 | BB23: 63100 | BC23: =IF(AND('Master Data'!$C$11=""),"",ROUND(58%*BA23,0)) -> 36598 | BD23: =IF(BB23="","",BC23) -> 36598 | BE23: =IFERROR(IF(AND('Master Data'!$C$11=""),"",ROUND('Master Data'!$E$11%*BB23,0)),"") -> 6310 | BF23: ='Master Data'!$E$15 -> 2000 | BG23: =IFERROR(IF(OR('Master Data'!$C$14=$AP$6),"",IF('Master Data'!$E$8="GPF-2004",IF(BB23<18001,265,IF(BB23<33501,440,IF(BB23<54001,658,875))),IF(AND('Master Data'!$E$8="GPF"),IF(BB23<18001,265,IF(BB23<33501,440,IF(BB23<54001,658,875))),""))),"") -> 875 | BH23: =IFERROR(IF(OR('Master Data'!$C$14=$AP$6),"",'Master Data'!$C$10),"") -> 7000 | BI23: =IFERROR(IF(OR('Master Data'!$C$14=$AP$6),"",IF('Master Data'!$E$8="GPF-2004",IF(BB23<23101,1450,IF(BB23<28501,1625,IF(BB23<38501,2100,IF(BB23<51501,2850,IF(BB23<62001,3575,IF(BB23<72001,4200,IF(BB23<80001,4800,IF(BB23<116001,6150,IF(BB23<167001,8900,10500))))))))),'Master Data'!$E$10)),"") -> 7000 | BJ23: 63100 | BK23: 2026-02-01 | BL23: =IFERROR(IF('Master Data'!$C$11="","",IF('Master Data'!$C$17="","",IF(AND($AZ$17>$AZ$9),"",DATE(YEAR(BL22),MONTH(BL22)+1,DAY(BL22))))),"") -> 2026-02-01 | BM23: =IFERROR(IF('Master Data'!$C$11="","",IF('Master Data'!$C$17="","",IF(AND($AZ$17>$AZ$9),"",DATE(YEAR(BM22),MONTH(BM22)+1,DAY(BM22))))),"") -> 2026-02-01 | BN23: 2026-02-01 | BO23: 2026-02-01 | BQ23: 2026-02-01 | BU23: =IF(AND('Master Data'!$C$11=""),"",IF(AND('Master Data'!$E$18=AX23),'Master Data'!$E$17,BU22)) -> 63100 | BX23: 2000
A24: 19 | B24: ACP/MACP Arrear | C24: =IFERROR(IF(B24="","",IF(AND(BQ30=""),"",IF(B24=$AX$24,"",IF(AND('Master Data'!$C$14=$AP$6),VLOOKUP(B24,om,13,0),VLOOKUP(B24,om,4,0))))),"") ->  | D24: =IFERROR(IF(B24="","",IF(AND(BQ30=""),"",IF(OR(B24=$AX$24),"",IF(AND('Master Data'!$C$14=$AP$5),VLOOKUP(B24,om,7,0),"")))),"") ->  | E24: =IFERROR(IF(B24="","",IF(AND(BQ30=""),"",IF(OR(B24=$AX$24,B24=$AX$25,B24=$AX$26,B24=$AX$27,B24=$AX$28,B24=$AX$29),"",IF(AND('Master Data'!$C$14=$AP$5),VLOOKUP(B24,om,8,0),"")))),"") ->  | F24: =IFERROR(IF(B24="","",IF(AND(BQ30=""),"",IF(OR(B24=$AX$24,B24=$AX$25,B24=$AX$26,B24=$AX$27,B24=$AX$28,B24=$AX$29),"",IF(AND('Master Data'!$C$14=$AP$5),F23,"")))),"") ->  | G24: =IFERROR(IF(B24="","",IF(AND(BQ30=""),"",IF(OR(B24=$AX$24,B24=$AX$25,B24=$AX$26,B24=$AX$27,B24=$AX$28,B24=$AX$29),"",IF(AND('Master Data'!$C$14=$AP$5),G23,"")))),"") ->  | H24: =IFERROR(IF(B24="","",IF(AND(BQ31=""),"",IF('Master Data'!$E$12="NO","",IF(OR(B24=$AX$24,B24=$AX$25,B24=$AX$26,B24=$AX$27,B24=$AX$28,B24=$AX$29),"",IF(AND('Master Data'!$C$14=$AP$5),F24,IF(AND('Master Data'!$E$13=$AR$9),$AS$6,IF(AND('Master Data'!$E$13=$AR$10),$AS$6,IF(AND('Master Data'!$E$13=$AR$11),$AS$6,IF(AND('Master Data'!$E$13=$AR$12),$AS$6,$AS$5))))))))),"") ->  | I24: =IFERROR(IF(B24="","",IF(AND(BQ30=""),"",IF(OR(B24=$AX$24,B24=$AX$25,B24=$AX$26,B24=$AX$27,B24=$AX$28,B24=$AX$29),"",IF(AND('Master Data'!$C$14=$AP$5),I23,"")))),"") ->  | J24: =IFERROR(IF(B24="","",IF(AND(BQ30=""),"",IF(OR(B24=$AX$24,B24=$AX$25,B24=$AX$26,B24=$AX$27,B24=$AX$28,B24=$AX$29),"",IF(AND('Master Data'!$C$14=$AP$5),J23,"")))),"") ->  | K24: =IFERROR(IF(B24="","",IF(AND('Master Data'!$C$14=$AP$6),"",IF(AND('Master Data'!$C$15<>0),IF(AND(B24="Bonus"),VLOOKUP(B24,om,4,0),"")))),"") ->  | L24: =IFERROR(IF(B24="","",IF(AND(BQ30=""),"",IF(OR(B24=$AX$24,B24=$AX$25,B24=$AX$26,B24=$AX$27,B24=$AX$28,B24=$AX$29),"",IF(AND('Master Data'!$C$14=$AP$5),L23,"")))),"") ->  | M24: 0 | N24: =IFERROR(IF(B24="","",IF(AND(BQ30=""),"",IF(OR(B24=$AX$24,B24=$AX$25,B24=$AX$26,B24=$AX$27,B24=$AX$28,B24=$AX$29),"",IF(AND('Master Data'!$C$14=$AP$5),VLOOKUP(B24,om,11,0),"")))),"") ->  | O24: =IFERROR(IF(B24="","",IF(AND(BQ30=""),"",IF(OR(B24=$AX$25),"",IF(AND('Master Data'!$C$14=$AP$5),VLOOKUP(B24,om,12,0),"")))),"") ->  | P24: =IFERROR(IF(B24="","",IF(AND(BQ30=""),"",IF(OR(B24=$AX$24,B24=$AX$25,B24=$AX$26,B24=$AX$27,B24=$AX$28,B24=$AX$29),"",IF(AND('Master Data'!$C$14=$AP$5),'Master Data'!$E$16,"")))),"") ->  | Q24: =IFERROR(IF(B24="","",IF(AND(BQ30=""),"",IF(OR(B24=$AX$24,B24=$AX$25,B24=$AX$26,B24=$AX$27,B24=$AX$28,B24=$AX$29),"",IF(AND('Master Data'!$C$14=$AP$5),VLOOKUP(B24,om,10,0),"")))),"") ->  | R24: =IFERROR(IF(B24="","",IF(AND(BQ30=""),"",IF(OR(B24=$AX$24,B24=$AX$25,B24=$AX$26,B24=$AX$27,B24=$AX$28,B24=$AX$29),"",IF(AND('Master Data'!$C$14=$AP$5),R23,"")))),"") ->  | S24: =IFERROR(IF(B24="","",IF(AND(BQ30=""),"",IF(OR(B24=$AX$24,B24=$AX$25,B24=$AX$26,B24=$AX$27,B24=$AX$28,B24=$AX$29),"",IF(AND('Master Data'!$C$14=$AP$5),S23,"")))),"") ->  | T24: =IFERROR(IF(B24="","",IF(AND(BQ30=""),"",IF(OR(B24=$AX$24,B24=$AX$25,B24=$AX$26,B24=$AX$27,B24=$AX$28,B24=$AX$29),"",IF(AND('Master Data'!$C$14=$AP$5),T23,"")))),"") ->  | U24: =IFERROR(IF(B24="","",IF(AND(BQ30=""),"",IF(OR(B24=$AX$24,B24=$AX$25,B24=$AX$26,B24=$AX$27,B24=$AX$28,B24=$AX$29),"",IF(AND('Master Data'!$C$14=$AP$5),U23,"")))),"") ->  | V24: =IFERROR(IF(OR('Master Data'!$C$14=$AP$6,B24=""),"",IF(AND(C24=""),"",IF(AND(B24=$AT$17,'Master Data'!$C$5="Gazetted"),500,IF(AND(B24=$AT$17,'Master Data'!$C$5="Non-Gazetted"),250,"")))),"") ->  | W24: =IFERROR(IF(B24="","",IF(AND(BQ30=""),"",IF(OR(B24=$AX$24,B24=$AX$25,B24=$AX$26,B24=$AX$27,B24=$AX$28,B24=$AX$29),"",IF(AND('Master Data'!$C$14=$AP$5),W23,"")))),"") ->  | X24: =IFERROR(IF(B24="","",IF(AND(BQ30=""),"",IF(OR(B24=$AX$24,B24=$AX$25,B24=$AX$26,B24=$AX$27,B24=$AX$28,B24=$AX$29),"",IF(AND('Master Data'!$C$14=$AP$5),VLOOKUP(B24,om,9,0),"")))),"") ->  | Y24: =IFERROR(IF(OR('Master Data'!$C$14=$AP$6,B24="",'Master Data'!$C$11=""),"",IF(AND(C24=""),"",IF(B24=$AT$9,'Master Data'!$C$16,""))),"") ->  | Z24: 0 | AA24: 0 | AU24: L-17 | AX24: =BM24 -> Bonus | BA24: ='Master Data'!C15 -> 6,774 | BD24: =IF(BC24="","",BC24) ->  | BI24: =IF(AND('Master Data'!C14=$AP$6),"",ROUND(BA24*25%,0)) -> 1694 | BK24: 2026-03-01 | BL24: =IFERROR(IF('Master Data'!$C$11="","",IF('Master Data'!$C$17="","",IF(AND($AZ$17>$AZ$9),"",DATE(YEAR(BL23),MONTH(BL23)+1,DAY(BL23))))),"") -> 2026-03-01 | BM24: Bonus | BO24: Bonus | BQ24: =IFERROR(IF(BM24="","",IF(B18=$AX$24,$AX$24,IF(B18=$AX$25,$AX$25,IF(B18=$AX$26,$AX$26,IF(B18=$AX$27,$AX$27,IF(B18=$AX$28,$AX$28,IF(B18=$AX$29,$AX$29,IF(BM24>$AZ$17,"",BM24)))))))),"") -> Bonus
A25: 20 | C25: =IFERROR(IF(B25="","",IF(AND(BQ31=""),"",IF(B25=$AX$24,"",IF(AND('Master Data'!$C$14=$AP$6),VLOOKUP(B25,om,13,0),VLOOKUP(B25,om,4,0))))),"") ->  | D25: =IFERROR(IF(B25="","",IF(AND(BQ31=""),"",IF(OR(B25=$AX$24),"",IF(AND('Master Data'!$C$14=$AP$5),VLOOKUP(B25,om,7,0),"")))),"") ->  | E25: =IFERROR(IF(B25="","",IF(AND(BQ31=""),"",IF(OR(B25=$AX$24,B25=$AX$25,B25=$AX$26,B25=$AX$27,B25=$AX$28,B25=$AX$29),"",IF(AND('Master Data'!$C$14=$AP$5),VLOOKUP(B25,om,8,0),"")))),"") ->  | F25: =IFERROR(IF(B25="","",IF(AND(BQ31=""),"",IF(OR(B25=$AX$24,B25=$AX$25,B25=$AX$26,B25=$AX$27,B25=$AX$28,B25=$AX$29),"",IF(AND('Master Data'!$C$14=$AP$5),F24,"")))),"") ->  | G25: =IFERROR(IF(B25="","",IF(AND(BQ31=""),"",IF(OR(B25=$AX$24,B25=$AX$25,B25=$AX$26,B25=$AX$27,B25=$AX$28,B25=$AX$29),"",IF(AND('Master Data'!$C$14=$AP$5),G24,"")))),"") ->  | H25: =IFERROR(IF(B25="","",IF(AND(BQ32=""),"",IF('Master Data'!$E$12="NO","",IF(OR(B25=$AX$24,B25=$AX$25,B25=$AX$26,B25=$AX$27,B25=$AX$28,B25=$AX$29),"",IF(AND('Master Data'!$C$14=$AP$5),F25,IF(AND('Master Data'!$E$13=$AR$9),$AS$6,IF(AND('Master Data'!$E$13=$AR$10),$AS$6,IF(AND('Master Data'!$E$13=$AR$11),$AS$6,IF(AND('Master Data'!$E$13=$AR$12),$AS$6,$AS$5))))))))),"") ->  | I25: =IFERROR(IF(B25="","",IF(AND(BQ31=""),"",IF(OR(B25=$AX$24,B25=$AX$25,B25=$AX$26,B25=$AX$27,B25=$AX$28,B25=$AX$29),"",IF(AND('Master Data'!$C$14=$AP$5),I24,"")))),"") ->  | J25: =IFERROR(IF(B25="","",IF(AND(BQ31=""),"",IF(OR(B25=$AX$24,B25=$AX$25,B25=$AX$26,B25=$AX$27,B25=$AX$28,B25=$AX$29),"",IF(AND('Master Data'!$C$14=$AP$5),J24,"")))),"") ->  | K25: =IFERROR(IF(B25="","",IF(AND('Master Data'!$C$14=$AP$6),"",IF(AND('Master Data'!$C$15<>0),IF(AND(B25="Bonus"),VLOOKUP(B25,om,4,0),"")))),"") ->  | L25: =IFERROR(IF(B25="","",IF(AND(BQ31=""),"",IF(OR(B25=$AX$24,B25=$AX$25,B25=$AX$26,B25=$AX$27,B25=$AX$28,B25=$AX$29),"",IF(AND('Master Data'!$C$14=$AP$5),L24,"")))),"") ->  | N25: =IFERROR(IF(B25="","",IF(AND(BQ31=""),"",IF(OR(B25=$AX$24,B25=$AX$25,B25=$AX$26,B25=$AX$27,B25=$AX$28,B25=$AX$29),"",IF(AND('Master Data'!$C$14=$AP$5),VLOOKUP(B25,om,11,0),"")))),"") ->  | O25: =IFERROR(IF(B25="","",IF(AND(BQ31=""),"",IF(OR(B25=$AX$25),"",IF(AND('Master Data'!$C$14=$AP$5),VLOOKUP(B25,om,12,0),"")))),"") ->  | P25: =IFERROR(IF(B25="","",IF(AND(BQ31=""),"",IF(OR(B25=$AX$24,B25=$AX$25,B25=$AX$26,B25=$AX$27,B25=$AX$28,B25=$AX$29),"",IF(AND('Master Data'!$C$14=$AP$5),'Master Data'!$E$16,"")))),"") ->  | Q25: =IFERROR(IF(B25="","",IF(AND(BQ31=""),"",IF(OR(B25=$AX$24,B25=$AX$25,B25=$AX$26,B25=$AX$27,B25=$AX$28,B25=$AX$29),"",IF(AND('Master Data'!$C$14=$AP$5),VLOOKUP(B25,om,10,0),"")))),"") ->  | R25: =IFERROR(IF(B25="","",IF(AND(BQ31=""),"",IF(OR(B25=$AX$24,B25=$AX$25,B25=$AX$26,B25=$AX$27,B25=$AX$28,B25=$AX$29),"",IF(AND('Master Data'!$C$14=$AP$5),R24,"")))),"") ->  | S25: =IFERROR(IF(B25="","",IF(AND(BQ31=""),"",IF(OR(B25=$AX$24,B25=$AX$25,B25=$AX$26,B25=$AX$27,B25=$AX$28,B25=$AX$29),"",IF(AND('Master Data'!$C$14=$AP$5),S24,"")))),"") ->  | T25: =IFERROR(IF(B25="","",IF(AND(BQ31=""),"",IF(OR(B25=$AX$24,B25=$AX$25,B25=$AX$26,B25=$AX$27,B25=$AX$28,B25=$AX$29),"",IF(AND('Master Data'!$C$14=$AP$5),T24,"")))),"") ->  | U25: =IFERROR(IF(B25="","",IF(AND(BQ31=""),"",IF(OR(B25=$AX$24,B25=$AX$25,B25=$AX$26,B25=$AX$27,B25=$AX$28,B25=$AX$29),"",IF(AND('Master Data'!$C$14=$AP$5),U24,"")))),"") ->  | V25: =IFERROR(IF(OR('Master Data'!$C$14=$AP$6,B25=""),"",IF(AND(C25=""),"",IF(AND(B25=$AT$17,'Master Data'!$C$5="Gazetted"),500,IF(AND(B25=$AT$17,'Master Data'!$C$5="Non-Gazetted"),250,"")))),"") ->  | W25: =IFERROR(IF(B25="","",IF(AND(BQ31=""),"",IF(OR(B25=$AX$24,B25=$AX$25,B25=$AX$26,B25=$AX$27,B25=$AX$28,B25=$AX$29),"",IF(AND('Master Data'!$C$14=$AP$5),W24,"")))),"") ->  | X25: =IFERROR(IF(B25="","",IF(AND(BQ31=""),"",IF(OR(B25=$AX$24,B25=$AX$25,B25=$AX$26,B25=$AX$27,B25=$AX$28,B25=$AX$29),"",IF(AND('Master Data'!$C$14=$AP$5),VLOOKUP(B25,om,9,0),"")))),"") ->  | Y25: =IFERROR(IF(OR('Master Data'!$C$14=$AP$6,B25="",'Master Data'!$C$11=""),"",IF(AND(C25=""),"",IF(B25=$AT$9,'Master Data'!$C$16,""))),"") ->  | AU25: L-18 | AX25: =BM25 -> PL Surrender | BA25: =IF('GA55'!C13='GA55'!AP6,"",IF(OR('Master Data'!C12="NO",'Master Data'!C13=""),"",VLOOKUP('Master Data'!C13,AW12:BD29,5,0)/2)) -> 31550 | BC25: =IF('Master Data'!$C$14=$AP$6,"",IF(AND(BA25=""),"",IF(OR('Master Data'!C13=AW12),ROUND(53%*BA25,0),IF(OR('Master Data'!C13=AW13,'Master Data'!C13=AW14,'Master Data'!C13=AW15,'Master Data'!C13=AW16,'Master Data'!C13=AW17,'Master Data'!C13=AW18,'Master Data'!C13=AW18),ROUND(55%*BA25,0),ROUND(58%*BA25,0))))) -> 17353 | BD25: =IF(BC25="","",BC25) -> 17353 | BK25: 2026-04-01 | BL25: =IFERROR(IF('Master Data'!$C$11="","",IF('Master Data'!$C$17="","",IF(AND($AZ$17>$AZ$9),"",DATE(YEAR(BL24),MONTH(BL24)+1,DAY(BL24))))),"") -> 2026-04-01 | BM25: PL Surrender | BO25: PL Surrender | BQ25: PL Surrender
A26: 21 | C26: =IFERROR(IF(B26="","",IF(AND(BQ32=""),"",IF(B26=$AX$24,"",IF(AND('Master Data'!$C$14=$AP$6),VLOOKUP(B26,om,13,0),VLOOKUP(B26,om,4,0))))),"") ->  | D26: =IFERROR(IF(B26="","",IF(AND(BQ32=""),"",IF(OR(B26=$AX$24),"",IF(AND('Master Data'!$C$14=$AP$5),VLOOKUP(B26,om,7,0),"")))),"") ->  | E26: =IFERROR(IF(B26="","",IF(AND(BQ32=""),"",IF(OR(B26=$AX$24,B26=$AX$25,B26=$AX$26,B26=$AX$27,B26=$AX$28,B26=$AX$29),"",IF(AND('Master Data'!$C$14=$AP$5),VLOOKUP(B26,om,8,0),"")))),"") ->  | F26: =IFERROR(IF(B26="","",IF(AND(BQ32=""),"",IF(OR(B26=$AX$24,B26=$AX$25,B26=$AX$26,B26=$AX$27,B26=$AX$28,B26=$AX$29),"",IF(AND('Master Data'!$C$14=$AP$5),F25,"")))),"") ->  | G26: =IFERROR(IF(B26="","",IF(AND(BQ32=""),"",IF(OR(B26=$AX$24,B26=$AX$25,B26=$AX$26,B26=$AX$27,B26=$AX$28,B26=$AX$29),"",IF(AND('Master Data'!$C$14=$AP$5),G25,"")))),"") ->  | H26: =IFERROR(IF(B26="","",IF(AND(BQ33=""),"",IF('Master Data'!$E$12="NO","",IF(OR(B26=$AX$24,B26=$AX$25,B26=$AX$26,B26=$AX$27,B26=$AX$28,B26=$AX$29),"",IF(AND('Master Data'!$C$14=$AP$5),F26,IF(AND('Master Data'!$E$13=$AR$9),$AS$6,IF(AND('Master Data'!$E$13=$AR$10),$AS$6,IF(AND('Master Data'!$E$13=$AR$11),$AS$6,IF(AND('Master Data'!$E$13=$AR$12),$AS$6,$AS$5))))))))),"") ->  | I26: =IFERROR(IF(B26="","",IF(AND(BQ32=""),"",IF(OR(B26=$AX$24,B26=$AX$25,B26=$AX$26,B26=$AX$27,B26=$AX$28,B26=$AX$29),"",IF(AND('Master Data'!$C$14=$AP$5),I25,"")))),"") ->  | J26: =IFERROR(IF(B26="","",IF(AND(BQ32=""),"",IF(OR(B26=$AX$24,B26=$AX$25,B26=$AX$26,B26=$AX$27,B26=$AX$28,B26=$AX$29),"",IF(AND('Master Data'!$C$14=$AP$5),J25,"")))),"") ->  | K26: =IFERROR(IF(B26="","",IF(AND('Master Data'!$C$14=$AP$6),"",IF(AND('Master Data'!$C$15<>0),IF(AND(B26="Bonus"),VLOOKUP(B26,om,4,0),"")))),"") ->  | L26: =IFERROR(IF(B26="","",IF(AND(BQ32=""),"",IF(OR(B26=$AX$24,B26=$AX$25,B26=$AX$26,B26=$AX$27,B26=$AX$28,B26=$AX$29),"",IF(AND('Master Data'!$C$14=$AP$5),L25,"")))),"") ->  | N26: =IFERROR(IF(B26="","",IF(AND(BQ32=""),"",IF(OR(B26=$AX$24,B26=$AX$25,B26=$AX$26,B26=$AX$27,B26=$AX$28,B26=$AX$29),"",IF(AND('Master Data'!$C$14=$AP$5),VLOOKUP(B26,om,11,0),"")))),"") ->  | O26: =IFERROR(IF(B26="","",IF(AND(BQ32=""),"",IF(OR(B26=$AX$25),"",IF(AND('Master Data'!$C$14=$AP$5),VLOOKUP(B26,om,12,0),"")))),"") ->  | P26: =IFERROR(IF(B26="","",IF(AND(BQ32=""),"",IF(OR(B26=$AX$24,B26=$AX$25,B26=$AX$26,B26=$AX$27,B26=$AX$28,B26=$AX$29),"",IF(AND('Master Data'!$C$14=$AP$5),'Master Data'!$E$16,"")))),"") ->  | Q26: =IFERROR(IF(B26="","",IF(AND(BQ32=""),"",IF(OR(B26=$AX$24,B26=$AX$25,B26=$AX$26,B26=$AX$27,B26=$AX$28,B26=$AX$29),"",IF(AND('Master Data'!$C$14=$AP$5),VLOOKUP(B26,om,10,0),"")))),"") ->  | R26: =IFERROR(IF(B26="","",IF(AND(BQ32=""),"",IF(OR(B26=$AX$24,B26=$AX$25,B26=$AX$26,B26=$AX$27,B26=$AX$28,B26=$AX$29),"",IF(AND('Master Data'!$C$14=$AP$5),R25,"")))),"") ->  | S26: =IFERROR(IF(B26="","",IF(AND(BQ32=""),"",IF(OR(B26=$AX$24,B26=$AX$25,B26=$AX$26,B26=$AX$27,B26=$AX$28,B26=$AX$29),"",IF(AND('Master Data'!$C$14=$AP$5),S25,"")))),"") ->  | T26: =IFERROR(IF(B26="","",IF(AND(BQ32=""),"",IF(OR(B26=$AX$24,B26=$AX$25,B26=$AX$26,B26=$AX$27,B26=$AX$28,B26=$AX$29),"",IF(AND('Master Data'!$C$14=$AP$5),T25,"")))),"") ->  | U26: =IFERROR(IF(B26="","",IF(AND(BQ32=""),"",IF(OR(B26=$AX$24,B26=$AX$25,B26=$AX$26,B26=$AX$27,B26=$AX$28,B26=$AX$29),"",IF(AND('Master Data'!$C$14=$AP$5),U25,"")))),"") ->  | V26: =IFERROR(IF(OR('Master Data'!$C$14=$AP$6,B26=""),"",IF(AND(C26=""),"",IF(AND(B26=$AT$17,'Master Data'!$C$5="Gazetted"),500,IF(AND(B26=$AT$17,'Master Data'!$C$5="Non-Gazetted"),250,"")))),"") ->  | W26: =IFERROR(IF(B26="","",IF(AND(BQ32=""),"",IF(OR(B26=$AX$24,B26=$AX$25,B26=$AX$26,B26=$AX$27,B26=$AX$28,B26=$AX$29),"",IF(AND('Master Data'!$C$14=$AP$5),W25,"")))),"") ->  | X26: =IFERROR(IF(B26="","",IF(AND(BQ32=""),"",IF(OR(B26=$AX$24,B26=$AX$25,B26=$AX$26,B26=$AX$27,B26=$AX$28,B26=$AX$29),"",IF(AND('Master Data'!$C$14=$AP$5),VLOOKUP(B26,om,9,0),"")))),"") ->  | Y26: =IFERROR(IF(OR('Master Data'!$C$14=$AP$6,B26="",'Master Data'!$C$11=""),"",IF(AND(C26=""),"",IF(B26=$AT$9,'Master Data'!$C$16,""))),"") ->  | AU26: L-19 | AX26: DA Arrear 53% to 55% | BC26: =(ROUND((BA12*55%),0)-ROUND((BA12*53%),0))*3 -> 3678 | BD26: =IF(BC26="","",BC26) -> 3678 | BI26: =BD26 -> 3678 | BK26: 2026-05-01 | BL26: =IFERROR(IF('Master Data'!$C$11="","",IF('Master Data'!$C$17="","",IF(AND($AZ$17>$AZ$9),"",DATE(YEAR(BL25),MONTH(BL25)+1,DAY(BL25))))),"") -> 2026-05-01 | BM26: DA Arrear 53% to 55% | BO26: DA Arrear 53% to 55% | BQ26: DA Arrear 53% to 55%
B27: TOTAL : | C27: =IF(AND($D$2="",$M$2="",$U$2="",$C$3=""),"",SUM(C6:C26)) -> 781550 | D27: =IF(AND($D$2="",$M$2="",$U$2="",$C$3=""),"",SUM(D6:D26)) -> 448396 | E27: 75000 | F27: 0 | G27: 0 | H27: 0 | I27: 0 | J27: 0 | K27: 6774 | L27: 0 | M27: 1311720 | N27: 84000 | O27: 95998 | P27: 13236 | Q27: 10500 | R27: 0 | S27: 0 | T27: 0 | U27: 0 | V27: 250 | W27: 0 | X27: 24000 | Y27: 0 | Z27: 227984 | AA27: 1083736 | AU27: L-20 | AX27: DA Arrear 55% to 58% | BC27: =(ROUND((BA16*58%),0)-ROUND((BA16*55%),0))*3 -> 5679 | BD27: =IF(BC27="","",BC27) -> 5679 | BI27: =BD27 -> 5679 | BK27: 2026-06-01 | BL27: =IFERROR(IF('Master Data'!$C$11="","",IF('Master Data'!$C$17="","",IF(AND($AZ$17>$AZ$9),"",DATE(YEAR(BL26),MONTH(BL26)+1,DAY(BL26))))),"") -> 2026-06-01 | BM27: DA Arrear 55% to 58% | BO27: DA Arrear 55% to 58% | BQ27: DA Arrear 55% to 58%
AU28: L-21 | AX28: Fixation arear | BD28: =IF(BC28="","",BC28) ->  | BK28: 2026-07-01 | BL28: =IFERROR(IF('Master Data'!$C$11="","",IF('Master Data'!$C$17="","",IF(AND($AZ$17>$AZ$9),"",DATE(YEAR(BL27),MONTH(BL27)+1,DAY(BL27))))),"") -> 2026-07-01 | BM28: Fixation arear | BO28: Fixation arear | BQ28: Fixation arear
C29: =UPPER(IF('Master Data'!C4="","",'Master Data'!C4)) -> HEERALAL JAT | S29: =IF(AND('Master Data'!E6=""),"",CONCATENATE("( ",UPPER('Master Data'!E6), " )",)) -> ( USHA PALIYA ) | AU29: L-22 | AX29: =IF(BM29="","",BM29) -> PL Surrender Arrear | BC29: =IF('Master Data'!$C$14=$AP$6,"",IF(AND(BA25=""),"",IF(OR('Master Data'!C13=AW12),ROUND(2%*BA25,0),IF(OR('Master Data'!C13=AW16,'Master Data'!C13=AW17,'Master Data'!C13=AW18,'Master Data'!C13=AW19),ROUND(3%*BA25,0),"")))) -> 947 | BD29: 947 | BI29: =BD29 -> 947 | BK29: 2026-08-01 | BL29: =IFERROR(IF('Master Data'!$C$11="","",IF('Master Data'!$C$17="","",IF(AND($AZ$17>$AZ$9),"",DATE(YEAR(BL28),MONTH(BL28)+1,DAY(BL28))))),"") -> 2026-08-01 | BM29: PL Surrender Arrear | BO29: PL Surrender Arrear | BQ29: PL Surrender Arrear
C30: Signature of Employee | S30: Signature of DDO | AU30: L-23 | AX30: =IF(BM30="","",BM30) -> ACP/MACP Arrear | BK30: 2026-09-01 | BL30: =IFERROR(IF('Master Data'!$C$11="","",IF('Master Data'!$C$17="","",IF(AND($AZ$17>$AZ$9),"",DATE(YEAR(BL29),MONTH(BL29)+1,DAY(BL29))))),"") -> 2026-09-01 | BM30: ACP/MACP Arrear | BO30: ACP/MACP Arrear
AU31: L-24
BX33: =SUM(BX24:BX32) -> 0
AX41: =IFERROR(IF(D23="","",IF(AND(D23=AX34),VLOOKUP(D23,om,4,0),IF(AND('[1]Master Data'!$I$28=$AP$6),'[1]Master Data'!$E$36,VLOOKUP(D23,om,4,0)))),"") -> 

Sheet COMPUTATION
A1: =IF('Master Data'!C3="","",CONCATENATE("Office of the Principal"," , ",'Master Data'!C3)) -> Office of the Principal , Mahatma Gandhi Government School (English Medium) Bar, (Beawar)
C2: आयकर गणना प्रपत्र वर्ष - | F2: 2025-2026 | H2: ( कर निर्धारण वर्ष - | J2: 2026-2027) | L2: New Tax Regime
A3: 1 | B3: नाम कर्मचारी :- | D3: =IF('Master Data'!C4="","",UPPER('Master Data'!C4)) -> HEERALAL JAT | I3: पद :- | J3: =IF('Master Data'!E4="","",UPPER('Master Data'!E4)) -> SR. TEACHER | M3: PAN : | N3: =IF('Master Data'!C7="","",UPPER('Master Data'!C7)) -> ABCDE5555H
A4: 2 | B4: आय : वर्ष 2025-26 में प्राप्त कुल आय ( कर योग्य मूल्यों सहित ) | N4: रु. | O4: =IF('GA55'!M27="","",'GA55'!M27) -> 1311720
A5: 3 | B5: गृह किराया धारा 10 (13-A) के अंतर्गत व धारा 10(14) के अंतर्गत भत्ते तथा अन्य भत्ते जो कर मुक्त है I | N5: रु. | O5: =IF($L$2="Old Tax Regime",SUM('Extra Ded. '!E6+'Extra Ded. '!K7+'GA55'!G27),0) -> 0
A6: 4 | B6: शेष ( 2-3) | N6: रु. | O6: =SUM(O4-O5) -> 1311720
A7: 5 | B7: (i) मनोरंजन भत्ता धारा 16 (ii) के अंतर्गत ( अधिकतम सीमा रू 5000 ) | K7: =IF($L$2="Old Tax Regime",'Extra Ded. '!E8,0) -> 0
B8: (ii) व्यवसाय कर धारा 16 (iii) के अंतर्गत ( अधिकतम सीमा रू 2500 ) | K8: =IF($L$2="Old Tax Regime",'Extra Ded. '!E9,0) -> 0
B9: (Iii) पारिवारिक पेंशन की मानक कटोती धारा 57 के अन्तगर्त ( अधिकतम सीमा रू 25000 ) | K9: ='Extra Ded. '!K11 -> 0
B10: =IF($L$2="Old Tax Regime",CONCATENATE(" (iii) स्टेण्डर्ड डिडेक्शन (Standard Deduction)"," ","50,000 (अधिकतम)"),CONCATENATE(" (iii) स्टेण्डर्ड डिडेक्शन (Standard Deduction)"," ","75,000 (अधिकतम)")) -> (iii) स्टेण्डर्ड डिडेक्शन (Standard Deduction) 75,000 (अधिकतम) | K10: =IF($L$2="Old Tax Regime",50000,75000) -> 75000 | N10: रु. | O10: =SUM(K7:M10) -> 75000
A11: 6 | B11: शेष ( 4-5) | N11: रु. | O11: =SUM(O6-O10) -> 1236720
A12: 7 | B12: गृह सम्पति से आय : (1) स्वयं के उपभोग में शून्य :- | I12: (2) प्राप्त किराया रु . | K12: ='Extra Ded. '!E10 -> 0
B13: (ब) घटाइये | D13: किराये का 30% | F13: गृह ऋण पर ब्याज | I13: गृह कर | K13: योग 7 (ब)
D14: =IF($L$2="Old Tax Regime",ROUND(K12*0.3,0),0) -> 0 | F14: =IF($L$2="Old Tax Regime",IF('Extra Ded. '!E13<200000,'Extra Ded. '!E13,200000),0) -> 0 | I14: =IF($L$2="Old Tax Regime",'Extra Ded. '!E11,0) -> 0 | K14: =D14+F14+I14 -> 0
B15: शेष -/+ (7 (अ) एवं योग 7 (ब) का ) :- | N15: रु. | O15: =K12-K14 -> 0
A16: 8 | B16: बचत खाते पर ब्याज : | E16: ='Extra Ded. '!K22 -> 0 | G16: अन्य स्रोत से आय : | I16: ='Extra Ded. '!E24 -> 0 | J16: कुल शेष - / + (6 एवं 7) :- | N16: रु. | O16: =O11+O15 -> 1236720
A17: 9 | B17: एफडी व अन्य आय पर प्राप्त ब्याज राशि | E17: ='Extra Ded. '!K25 -> 0 | G17: Bonds से प्राप्त ब्याज | I17: ='Extra Ded. '!E23 -> 0 | J17: योग (8 + 9) | N17: रु. | O17: =E16+E17+I16+I17 -> 0
A18: 10 | B18: सकल आय | N18: रु. | O18: =O16+O17 -> 1236720
A19: 11 | B19: घटाए कटोतियाँ :- धारा US 80C, 80CCC,80CCD (1)
B20: (A) अधिकतम सीमा 1,50,000/- (धारा 80CCE), धारा 80CCD(2), तथा धारा 80CCD(1B) के अतिरिक्त
B21: (i) | C21: राज्य बीमा (SI) | F21: रु. | G21: =IF($L$2="Old Tax Regime",'GA55'!N27,0) -> 0 | H21: (xi) | I21: पेंशन योजना में योगदान ECPF धारा 80ccd(1) | L21: रु. | M21: 0
B22: (ii) | C22: L.I.C. | F22: रु. | G22: =IF($L$2="Old Tax Regime",'GA55'!P27,0) -> 0 | H22: (xii) | I22: पेंशन प्लान हेतु योगदान (धारा 80ccc) | L22: रु. | M22: 0
B23: (iii) | C23: राष्ट्रीय बचत पत्र (NSC) | F23: रु. | G23: =IF($L$2="Old Tax Regime",'Extra Ded. '!E18,0) -> 0 | H23: (xiii) | I23: राष्ट्रीय बचत पत्र पर अदत ब्याज | L23: रु. | M23: =IF($L$2="Old Tax Regime",'Extra Ded. '!E19,0) -> 0
B24: (iv) | C24: लोक भविष्य निधि (PPF) | F24: रु. | G24: =IF($L$2="Old Tax Regime",'Extra Ded. '!E20,0) -> 0 | H24: (xiv) | I24: टियुशन फ़ीस | L24: रु. | M24: =IF($L$2="Old Tax Regime",'Extra Ded. '!E16,0) -> 0
B25: (v) | C25: राष्ट्रीय बचत पत्र स्कीम (NSS) | F25: रु. | G25: =IF($L$2="Old Tax Regime",'Extra Ded. '!E21,0) -> 0 | H25: (xv) | I25: इक्विटी लिंक सेविंग स्कीम | L25: रु. | M25: =IF($L$2="Old Tax Regime",'Extra Ded. '!K6,0) -> 0
B26: (vi) | C26: सामान्य प्रावधायी निधि GPF) / GPF - 2004 | F26: रु. | G26: =IF($L$2="Old Tax Regime",'GA55'!O27,0) -> 0 | H26: (xvi) | I26: स्थगत वार्षिकी (Defferred Annuty) | L26: रु. | M26: =IF($L$2="Old Tax Regime",'Extra Ded. '!K8,0) -> 0
B27: (vii) | C27: सामूहिक बीमा प्रीमियम (G.Ins.) | F27: रु. | G27: =IF($L$2="Old Tax Regime",'GA55'!Y27,0) -> 0 | H27: (xvii) | I27: पी.एल.आई . (PLI) | L27: रु. | M27: =IF($L$2="Old Tax Regime",'Extra Ded. '!E15,0) -> 0
B28: (viii) | C28: यू एल आई पी / वार्षिक प्लान | F28: रु. | G28: =IF($L$2="Old Tax Regime",'Extra Ded. '!E17,0) -> 0 | H28: (xviii) | I28: म्यूच्यूअल फण्ड व अन्य राशि जो धारा 80 C के अंतर्गत छुट | L28: रु. | M28: =IF($L$2="Old Tax Regime",'Extra Ded. '!K13,0) -> 0
B29: (ix) | C29: गृह ऋण किस्त (HBA Premium) | F29: रु. | G29: =IF($L$2="Old Tax Regime",'Extra Ded. '!E12,0) -> 0 | H29: (xix) | I29: सुकन्या समृद्धि योजना में जमा राशि | L29: रु. | M29: =IF($L$2="Old Tax Regime",'Extra Ded. '!E22,0) -> 0
B30: (x) | C30: जीवन बीमा (Extra LIC) | F30: रु. | G30: =IF($L$2="Old Tax Regime",'Extra Ded. '!E14,0) -> 0 | H30: (xx) | I30: अन्य व फिक्स डिपोजिट (5 वर्ष हेतु ) | L30: रु. | M30: =IF($L$2="Old Tax Regime",'Extra Ded. '!K10,0) -> 0
B31: (xxi) | C31: उपरोक्त के अलावा अन्य कटोती (Other Ded.) | F31: रु. | G31: =IF($L$2="Old Tax Regime",'Extra Ded. '!K12,0) -> 0 | H31: योग ( i से xxi ) | L31: रु. | M31: =SUM(G21:G31)+SUM(M21:M30) -> 0
B32: अधिकतम कटोती राशि 1.50 लाख तक :- | N32: रु. | O32: =IF($L$2="Old Tax Regime",IF(M31<150001,ROUND(M31,0),150000),0) -> 0
B33: (B) घटाइये धारा 80CCD(2) नियोक्ता द्वारा पेंशन अंशदान की राशि (अधिकतम वेतन का 10%) पृथक से छुट | N33: रु. | O33: 0
B34: (B) घटाइये - धारा 80CCD (1B) नवीन पेंशन योजना में अतिरिक्त अंशदान (अधिकतम 50,000 रु. ) | N34: रु. | O34: =IF($L$2="Old Tax Regime",'Extra Ded. '!K14,0) -> 0
B35: योग 11(A+B) | N35: रु. | O35: =IF($L$2="Old Tax Regime",SUM(O32:O34),0) -> 0
A36: 12 | B36: अन्य कटोतियाँ
B37: 1. धारा 80 D चिकित्सा बीमा प्रीमियम (स्वयं पति पत्नि व बच्चों के लिए रु. 25,000 माता - पिता के लिए रु. 25,000 , सीनियर सिटीजन रु. 50,000 ) | N37: रु. | O37: =IF($L$2="Old Tax Regime",'Extra Ded. '!K15,0) -> 0
B38: 2. धारा 80DD विकलांग आश्रितों के चिकित्सा उपचार (अधिकतम 75,000 तथा 80% या अधिक विकलांगता ( 1,25,000) | N38: रु. | O38: =IF($L$2="Old Tax Regime",'Extra Ded. '!K16,0) -> 0
B39: 3. धारा 80DDB विशिष्ट रोगों के उपचार हेतु छुट (अधिकतम रु. 40,000, सीनियर सिटीजन हेतु रु. 1,00,000) | N39: रु. | O39: =IF($L$2="Old Tax Regime",'Extra Ded. '!K17,0) -> 0
B40: 4. धारा 80E उच्च शिक्षा हेतु लिए गए ऋण का ब्याज | N40: रु. | O40: =IF($L$2="Old Tax Regime",'Extra Ded. '!K18,0) -> 0
B41: 5. धारा 80G धर्मार्थ संस्थाओ आदि को दिए दान ( क श्रेणी में 100 प्रतिशत एव ख श्रेणी में 50 प्रतिशत) (केंद्र एव राज्य सरकार के फण्ड में ) | N41: रु. | O41: =IF($L$2="Old Tax Regime",'Extra Ded. '!K19,0) -> 0
B42: 6. धारा 80U स्थाई रूप से शारीरिक असमर्थता की दशा में (अधिकतम 75,000 तथा अधिनियम 1995 के अनुसार 1,25,000) | N42: रु. | O42: =IF($L$2="Old Tax Regime",'Extra Ded. '!K21,0) -> 0
B43: 7. धारा 80 TTA बचत खाते पर अधिकतम ब्याज पर 10,000 194(IA), एवं धारा 80 TTB ( वरिष्ठ नागरिकों के लिए ब्याज पर छुट 50000 तक ) | N43: रु. | O43: =IF($L$2="Old Tax Regime",IF('Extra Ded. '!K22<10000,'Extra Ded. '!K22,10000),0) -> 0
B44: 8. धारा 80 GGA अनुमोदित वैज्ञानिक, सामाजिक, ग्रामीण विकास आदि हेतु दिया गया दान | N44: रु. | O44: =IF($L$2="Old Tax Regime",'Extra Ded. '!K23,0) -> 0
B45: 9. US 80EEA (Home Loan Interest) & Others | N45: रु. | O45: =IF($L$2="Old Tax Regime",'Extra Ded. '!E25,0) -> 0
B46: 10. US 80EEB Deduction in respect of purchase of electric vehicle. | N46: रु.
B47: कुल योग 12 ( 1 से 10 तक ) | N47: रु. | O47: =SUM(O37:O46) -> 0
A48: 13 | B48: कुल कटोती ( 11 + 12) | N48: रु. | O48: =O35+O47 -> 0
A49: 14 | B49: कर योग्य आय ( 10 - 13 ) | N49: रु. | O49: =(O18-O48) -> 1236720
A50: 15 | B50: कुल आय की राशि को सम्पूर्ण करना ( दस के गुणांक में ) धारा 288A | N50: रु. | O50: =ROUND(O49,-1) -> 1236720
A51: 16 | B51: आयकर की गणना उपर्युक्त कॉलम 15 के आधार पर | X51: old | AB51: New
B52: पुरानी आयकर स्लैब | J52: नयी आयकर स्लैब | X52: 0 | Y52: 0 | Z52: 0 | AA52: =X52 -> 0 | AB52: 0 | AC52: 0 | AD52: 0 | AE52: =AB52 -> 0
B53: Up to Rs. 2,50,000 | I53: 0% | J53: Up to Rs. 4,00,000 | M53: 0% | N53: रु. | O53: 0 | X53: =ROUND(IF(O50<=250000,0,IF(O50>=500000,12500,IF(O50<=500000,0+(O50-250000)*0.05))),0) -> 12500 | Y53: =ROUND(IF(O50<=300000,0,IF(O50>=500000,10000,IF(O50<=500000,(O50-300000)*0.05))),0) -> 10000 | Z53: 0 | AA53: =X53 -> 12500 | AB53: =ROUND(IF(O50<400001,0,IF(O50>800001,20000,((O50-400000)*0.05))),0) -> 20000 | AC53: =ROUND(IF(O50<400001,0,IF(O50>800001,20000,((O50-400000)*0.05))),0) -> 20000 | AD53: =ROUND(IF(O50<400001,0,IF(O50>800001,20000,((O50-400000)*0.05))),0) -> 20000 | AE53: =AB53 -> 20000
B54: 2,50,001 to 5,00,000 | I54: 5% | J54: 4,00,001 to 8,00,000 | M54: 5% | N54: रु. | O54: =IF($L$2="Old Tax Regime",AA53,AE53) -> 20000 | X54: =ROUND(IF(O50<=500000,0,IF(O50>=1000000,100000,IF(O50<=1000000,(O50-500000)*0.2,"0"))),0) -> 100000 | Y54: =ROUND(IF(O50<=500000,0,IF(O50>=1000000,100000,IF(O50<=1000000,(O50-500000)*0.2,"0"))),0) -> 100000 | Z54: =ROUND(IF(O50<=500000,0,IF(O50>=1000000,100000,IF(O50<=1000000,(O50-500000)*0.2,"0"))),0) -> 100000 | AA54: 100000 | AB54: =ROUND(IF(O50<800001,0,IF(O50>1200001,40000,((O50-800000)*0.1))),0) -> 40000 | AC54: =ROUND(IF(O50<800001,0,IF(O50>1200001,40000,((O50-800000)*0.1))),0) -> 40000 | AD54: =ROUND(IF(O50<800001,0,IF(O50>1200001,40000,((O50-800000)*0.1))),0) -> 40000 | AE54: 40000
B55: 5,00,001 to 10,00,000 | I55: 20% | J55: 8,00,001 to 12,00,000 | M55: 10% | N55: रु. | O55: =IF($L$2="Old Tax Regime",AA54,AE54) -> 40000 | X55: =ROUND(IF(O50>1000000,(O50-1000000)*0.3,"0"),0) -> 71016 | Y55: =ROUND(IF(O50>1000000,(O50-1000000)*0.3,"0"),0) -> 71016 | Z55: =ROUND(IF(O50>1000000,(O50-1000000)*0.3,"0"),0) -> 71016 | AA55: 71016 | AB55: =ROUND(IF(O50<1200001,0,IF(O50>1600001,60000,((O50-1200000)*0.15))),0) -> 5508 | AC55: =ROUND(IF(O50<1200001,0,IF(O50>1600001,60000,((O50-1200000)*0.15))),0) -> 5508 | AD55: =ROUND(IF(O50<1200001,0,IF(O50>1600001,60000,((O50-1200000)*0.15))),0) -> 5508 | AE55: 5508
B56: Above 10,00,000 | I56: 30% | J56: 12,00,001 to 16,00,000 | M56: 15% | N56: रु. | O56: 5508 | P56: मार्जिनल रिलीफ बेनिफिट के लिए टैक्सेबल नेट अमाउंट को राउंड राशि में करने हेतु नीचे बॉक्स में सलेक्ट करें | AA56: 0 | AB56: =ROUND(IF(O50<1600001,0,IF(O50>2000001,80000,((O50-1600000)*0.2))),0) -> 0 | AC56: =ROUND(IF(O50<1600001,0,IF(O50>2000001,80000,((O50-1600000)*0.2))),0) -> 0 | AD56: =ROUND(IF(O50<1600001,0,IF(O50>2000001,80000,((O50-1600000)*0.2))),0) -> 0 | AE56: 0
J57: 16,00,001 to 20,00,000 | M57: 20% | N57: रु. | O57: 0 | AA57: 0 | AB57: =ROUND(IF(O50<2000001,0,IF(O50>2400001,100000,((O50-2000000)*0.25))),0) -> 0 | AC57: =ROUND(IF(O50<2000001,0,IF(O50>2400001,100000,((O50-2000000)*0.25))),0) -> 0 | AD57: =ROUND(IF(O50<2000001,0,IF(O50>2400001,100000,((O50-2000000)*0.25))),0) -> 0 | AE57: 0
J58: 20,00,001 to 24,00,000 | M58: 25% | N58: रु. | O58: 0 | AB58: =ROUND(IF(O50<2400001,0,(O50-2400000)*0.3),0) -> 0 | AC58: =ROUND(IF(O50<2400001,0,(O50-2400000)*0.3),0) -> 0 | AD58: =ROUND(IF(O50<2400001,0,(O50-2400000)*0.3),0) -> 0 | AE58: 0
J60: Above 24,00,000 | M60: 30% | N60: =IF($L$2="Old Tax Regime"," ","रु.") -> रु. | O60: =IF($L$2="Old Tax Regime",AA58,AE58) -> 0 | X60: =SUM(X52:X55) -> 183516 | Y60: =SUM(Y52:Y55) -> 181016 | Z60: =SUM(Z52:Z55) -> 171016 | AA60: =IF('[2]Master Data'!$E$24="Under 60",X60,IF('[2]Master Data'!$E$24="Above 60",Y60,Z60)) -> 183516 | AB60: =SUM(AB52:AB59) -> 65508 | AC60: =SUM(AC52:AC59) -> 65508 | AD60: 65508 | AE60: =SUM(AE52:AE59) -> 65508
B61: (1) योग आयकर | N61: रु. | O61: =SUM(O53:O60) -> 65508 | AH61: =ROUND(IF(O50<250001,0,IF(O50>500000,12500,((O50-250000)*0.05))),0)+ROUND(IF(O50<500001,0,IF(O50>750000,25000,((O50-500000)*0.1))),0)+ROUND(IF(O50<750001,0,IF(O50>1000000,37500,((O50-750000)*0.15))),0)+ROUND(IF(O50<1000001,0,IF(O50>1250000,50000,((O50-1000000)*0.2))),0)+ROUND(IF(O50<1250001,0,IF(O50>1500000,62500,((O50-1250000)*0.25))),0)+ROUND(IF(O50<1500001,0,(O50-1500000)*0.3),0) -> 122344
B62: (2) छुट धारा 87(A) (पुरानी स्लैब में 5 लाख की कर योग्य आय पर छुट अधिकतम रु. 12500/- तक तथा नई आयकर स्लैब में 12 लाख तक की कर योग्य आय पर 60000/- तक छुट ) | I62: =IF($L$2="Old Tax Regime",IF(O50>500000,0,IF(O61<12501,O61,12500)),AD72) -> 0 | J62: Marginal relief benefit under section 115BAC(1) | M62: =IF($L$2="Old Tax Regime",0,AD70) -> 28788 | N62: रु. | O62: =IF($L$2="Old Tax Regime",I62,SUM(I62+M62)) -> 28788 | Q62: Net Taxable Amount | X62: =ROUND(IF(O50<=250000,0,IF(O50<=500000,(O50-250000)*0.05,IF(O50<=1000000,12500+(O50-500000)*0.2,IF(O50>1000000,112500+(O50-1000000)*0.3,"0")))),0) -> 183516 | Y62: =ROUND(IF(O50<=300000,0,IF(O50<=500000,(O50-300000)*0.05,IF(O50<=1000000,10000+(O50-500000)*0.2,IF(O50>1000000,110000+(O50-1000000)*0.3,"0")))),0) -> 181016 | Z62: =ROUND(IF(O50<=250000,0,IF(O50<=500000,(O50-250000)*0.05,IF(O50<=1000000,0+(O50-500000)*0.2,IF(O50>1000000,100000+(O50-1000000)*0.3,"0")))),0) -> 171016
B63: (3) शेष आयकर (1-2) | N63: रु. | O63: =O61-O62 -> 36720 | Y63: =IF(T66>350000,0,IF(T66<2501,T66,2500)) -> 0
B64: 4) | C64: शिक्षा एवं चिकित्सा उपकर 4% (आयकर पर ) | N64: रु. | O64: =ROUND((O63*0.04),0) -> 1469 | AA64: round | AD64: net
B65: कुल आयकर (3-4) | N65: रु. | O65: =SUM(O63:O64) -> 38189 | Z65: =O50 -> 1236720 | AA65: =IF(Z65>1200000,Z65-1200000,0) -> 36720 | AC65: =O49 -> 1236720 | AD65: =IF(AC65>1200000,AC65-1200000,0) -> 36720
A66: 17 | B66: घटाइये :- राहत धारा 89 के तहत | N66: रु. | O66: ='Extra Ded. '!K24 -> 0 | Z66: =O61 -> 65508 | AA66: =IF(Z65>1200000,Z66-0,0) -> 65508 | AC66: =O61 -> 65508 | AD66: =IF(AC65>1200000,AC66-0,0) -> 65508
A67: 18 | B67: कुल शेष आयकर | N67: रु. | O67: =O65-O66 -> 38189 | Z67: =O64 -> 1469 | AA67: =IF(AA66>AA65,AA66-AA65,0) -> 28788 | AC67: =O64 -> 1469 | AD67: =IF(AD66>AD65,AD66-AD65,0) -> 28788
A68: 19 | B68: आयकर कटौती का विवरण | E68: सितम्बर 2025 तक कुल राशि | H68: अक्टूम्बर 25 से दिसम्बर 25 तक कुल राशि | J68: जनवरी 2026 राशि | K68: फरवरी 2026 राशि | M68: टी.डी.एस. की राशि | O68: कुलयोग कॉलम 19 | Z68: =IF(Q62=Z71,AF69,AE69) -> FALSE
E69: =SUM('GA55'!BX12:BX18) -> 14000 | H69: =SUM('GA55'!BX19:BX21) -> 6000 | J69: ='GA55'!BX22 -> 2000 | K69: ='GA55'!BX23 -> 2000 | M69: ='GA55'!BX33 -> 0 | O69: =SUM(E69,H69,J69,K69,M69) -> 24000 | Z69: =O65 -> 38189 | AA69: =Z66-AA67 -> 36720 | AD69: =IF(Q62=Z71,AF69,AE69) -> FALSE | AE69: FALSE | AF69: TRUE
A70: =IF(O67>O69,"Income Tax Payable","Income Tax Refundable") -> Income Tax Payable | N70: रु. | O70: =IF(O67>O69,SUM(O67-O69),SUM(O69-O67)) -> 14189 | AD70: =IF(AD69=AF69,AA67,AD67) -> 28788
B71: नोट :- नई कर व्यवस्था में मानक कटोती 75,000/- व नियोक्ता के अंशदान के अतिरिक्त अन्य कोई छूट देय नहीं है I | Z71: Round Taxable Amount
L72: हस्ताक्षर कार्मिक | Z72: Net Taxable Amount | AD72: =IF(AD69=AF69,IF(O50>1200004,0,IF(O61<60001,O61,60000)),AD73) -> 0
AD73: =IF(AND(O49<1200005,M62=0),IF(O61<60001,O61,60000),0) -> 0

Sheet Form No. 16
B1: FORM NO. 16
B2: [(See Rule 31(1)(a)]
B3: PART-A
B4: Certificate under section 203 of the income-tax act, 1961 for Tax deducted at source on Salary.
B5: Name and address of the Employer | G5: Name and adress of the Employee
B6: =IF('Master Data'!E6="","",UPPER('Master Data'!E6)) -> USHA PALIYA | G6: =IF('Master Data'!C4="","",UPPER('Master Data'!C4)) -> HEERALAL JAT
G7: =IF('Master Data'!C6="","",UPPER('Master Data'!C6)) -> MGGS BAR
B8: PAN of the Deductor | E8: TAN of the Deductor | G8: PAN of the Employee | J8: Employee Ref No.
G9: =IF('Master Data'!C7="","",UPPER('Master Data'!C7)) -> ABCDE5555H | J9: =IF('Master Data'!E7="","",UPPER('Master Data'!E7)) -> 51XXXXXXXXX96
B10: CIT (TDS) | G10: Assess. Year | I10: Peroid with the Employer
B11: Adress | C11: The Commissioner of Income Tax, Pali | G11: 2026-27 | I11: From | K11: To
B12: City | C12: PALI | E12: PIN Code | F12: 306401 | I12: 01-4-2025 | K12: 31-03-2026
B13: Summary of amount paid/credited and tax deducted at source thereon in respect of the employee
B14: Quarters | C14: Receipt Numbers of original quarterly statements of TDS under sub-secion (3) of section 200 | F14: Amount paid/ credited | G14: Amount of tax deducted (Rs.) | J14: Amount of tax deposited/ remitted (Rs.) | R14: SHEET PASSWORD
B15: 1st | G15: =SUM('GA55'!BX12:BX14) -> Rs. 6,000 | J15: =G15+F15 -> Rs. 6,000 | R15: IT#M$2025
B16: 2nd | G16: =SUM('GA55'!BX15:BX17) -> Rs. 6,000 | J16: =G16+F16 -> Rs. 6,000
B17: 3rd | G17: =SUM('GA55'!BX18:BX20) -> Rs. 6,000 | J17: Rs. 6,000
B18: 4th | G18: =SUM('GA55'!BX21:BX23)+SUM('GA55'!BX33) -> Rs. 6,000 | J18: Rs. 6,000
B19: TOTAL (Rs.) | F19: =SUM(F15:F18) -> Rs. 0 | G19: =SUM(G15:G18) -> Rs. 24,000 | J19: =SUM(J15:J18) -> Rs. 24,000
B20: I. Details of tax deducted and deposited in the Central Government account through book adjustment
B21: (The Deductor to provide payment-wise details of tax deducted and deposited with respect to the deductee)
B22: S.N. | C22: Tax Deposited in respect of the deductee (Rs) | E22: Book identification number (BIN)
E23: Receipt numbers of form No. 24G | F23: DDO serial number in Form No. 24G | G23: Date of transfer voucher (dd/mm/yyyy) | J23: Status of matching with Form No. 24G
B24: 1 | C24: ='GA55'!BX12 -> Rs. 2,000 | J24: =IF(E24>"0","Yes","-") -> -
B25: 2 | C25: ='GA55'!BX13 -> Rs. 2,000 | J25: =IF(E25>"0","Yes","-") -> -
B26: 3 | C26: ='GA55'!BX14 -> Rs. 2,000 | J26: -
B27: 4 | C27: ='GA55'!BX15 -> Rs. 2,000 | J27: -
B28: 5 | C28: ='GA55'!BX16 -> Rs. 2,000 | J28: -
B29: 6 | C29: ='GA55'!BX17 -> Rs. 2,000 | J29: -
B30: 7 | C30: ='GA55'!BX18 -> Rs. 2,000 | J30: -
B31: 8 | C31: ='GA55'!BX19 -> Rs. 2,000 | J31: -
B32: 9 | C32: ='GA55'!BX20 -> Rs. 2,000 | J32: -
B33: 10 | C33: ='GA55'!BX21 -> Rs. 2,000 | J33: -
B34: 11 | C34: ='GA55'!BX22 -> Rs. 2,000 | J34: -
B35: 12 | C35: ='GA55'!BX23 -> Rs. 2,000 | J35: -
B36: 13 | C36: ='GA55'!BX33 -> Rs. 0 | J36: -
B37: Total | C37: =SUM(C24:D36) -> Rs. 24,000
B38: II. Details of Tax deducted and deposited in Central Government Account through Challan.
B39: (The deducter to provide payment-wise details of tax deducted and deposited with respect to the deductee)
B40: S.N. | C40: Tax Deposited in respect on of the deductee (Rs) | E40: Challan identification number (CIN)
E41: BSR code of the Bank Branch | G41: Date on which tax deposited (dd/mm/yyyy) | I41: Challan Serial Number | K41: Status of matching with OLTAS
B42: 1 | K42: =IF(C42>"0","Yes","-") -> -
B43: 2 | K43: =IF(C43>"0","Yes","-") -> -
B44: 3 | K44: -
B45: 4 | K45: -
B46: 5 | K46: -
B47: 6 | K47: -
B48: 7 | K48: -
B49: 8 | K49: -
B50: 9 | K50: -
B51: 10 | K51: -
B52: 11 | K52: -
B53: 12 | K53: -
B54: Total | C54: =SUM(C42:D53) -> 0
B55: :: 2 ::
B56: Verification
B57: I | C57: =B6&"," -> USHA PALIYA, | F57: Son/Daughter of | K57: working in the
B58: capacity of | D58: PRINCIPAL | G58: (designation) do hereby certify that a sum of
B59: Rs. - | C59: =J19 -> 24000 | D59: =IF(OR(LEN(FLOOR(C59,1))=13,FLOOR(C59,1)<=0),"Out of range",PROPER(SUBSTITUTE(CONCATENATE(CHOOSE(MID(TEXT(INT(C59),REPT(0,12)),1,1)+1,"","one hundred ","two hundred ","three hundred ","four hundred ","five hundred ","six hundred ","seven hundred ","eight hundred ","nine hundred "),CHOOSE(MID(TEXT(INT(C59),REPT(0,12)),2,1)+1,"",CHOOSE(MID(TEXT(INT(C59),REPT(0,12)),3,1)+1,"ten","eleven","twelve","thirteen","fourteen","fifteen","sixteen","seventeen","eighteen","nineteen"),"twenty","thirty","forty","fifty","sixty","seventy","eighty","ninety"),IF(VALUE(MID(TEXT(INT(C59),REPT(0,12)),2,1))>1,CHOOSE(MID(TEXT(INT(C59),REPT(0,12)),3,1)+1,"","-one","-two","-three","-four","-five","-six","-seven","-eight","-nine"),IF(VALUE(MID(TEXT(INT(C59),REPT(0,12)),2,1))=0,CHOOSE(MID(TEXT(INT(C59),REPT(0,12)),3,1)+1,"","one","two","three","four","five","six","seven","eight","nine"),"")),IF(C59>=10^9," billion ",""),CHOOSE(MID(TEXT(INT(C59),REPT(0,12)),4,1)+1,"","one hundred ","two hundred ","three hundred ","four hundred ","five hundred ","six hundred ","seven hundred ","eight hundred ","nine hundred "),CHOOSE(MID(TEXT(INT(C59),REPT(0,12)),5,1)+1,"",CHOOSE(MID(TEXT(INT(C59),REPT(0,12)),6,1)+1,"ten","eleven","twelve","thirteen","fourteen","fifteen","sixteen","seventeen","eighteen","nineteen"),"twenty","thirty","forty","fifty","sixty","seventy","eighty","ninety"),IF(VALUE(MID(TEXT(INT(C59),REPT(0,12)),5,1))>1,CHOOSE(MID(TEXT(INT(C59),REPT(0,12)),6,1)+1,"","-one","-two","-three","-four","-five","-six","-seven","-eight","-nine"),IF(VALUE(MID(TEXT(INT(C59),REPT(0,12)),5,1))=0,CHOOSE(MID(TEXT(INT(C59),REPT(0,12)),6,1)+1,"","one","two","three","four","five","six","seven","eight","nine"),"")),IF(VALUE(MID(TEXT(INT(C59),REPT(0,12)),4,3))>0," million ",""),CHOOSE(MID(TEXT(INT(C59),REPT(0,12)),7,1)+1,"","one hundred ","two hundred ","three hundred ","four hundred ","five hundred ","six hundred ","seven hundred ","eight hundred ","nine hundred "),CHOOSE(MID(TEXT(INT(C59),REPT(0,12)),8,1)+1,"",CHOOSE(MID(TEXT(INT(C59),REPT(0,12)),9,1)+1,"ten","eleven","twelve","thirteen","fourteen","fifteen","sixteen","seventeen","eighteen","nineteen"),"twenty","thirty","forty","fifty","sixty","seventy","eighty","ninety"),IF(VALUE(MID(TEXT(INT(C59),REPT(0,12)),8,1))>1,CHOOSE(MID(TEXT(INT(C59),REPT(0,12)),9,1)+1,"","-one","-two","-three","-four","-five","-six","-seven","-eight","-nine"),IF(VALUE(MID(TEXT(INT(C59),REPT(0,12)),8,1))=0,CHOOSE(MID(TEXT(INT(C59),REPT(0,12)),9,1)+1,"","one","two","three","four","five","six","seven","eight","nine"),"")),IF(VALUE(MID(TEXT(INT(C59),REPT(0,12)),7,3))," thousand ",""),CHOOSE(MID(TEXT(INT(C59),REPT(0,12)),10,1)+1,"","one hundred ","two hundred ","three hundred ","four hundred ","five hundred ","six hundred ","seven hundred ","eight hundred ","nine hundred "),CHOOSE(MID(TEXT(INT(C59),REPT(0,12)),11,1)+1,"",CHOOSE(MID(TEXT(INT(C59),REPT(0,12)),12,1)+1,"ten","eleven","twelve","thirteen","fourteen","fifteen","sixteen","seventeen","eighteen","nineteen"),"twenty","thirty","forty","fifty","sixty","seventy","eighty","ninety"),IF(VALUE(MID(TEXT(INT(C59),REPT(0,12)),11,1))>1,CHOOSE(MID(TEXT(INT(C59),REPT(0,12)),12,1)+1,"","-one","-two","-three","-four","-five","-six","-seven","-eight","-nine"),IF(VALUE(MID(TEXT(INT(C59),REPT(0,12)),11,1))=0,CHOOSE(MID(TEXT(INT(C59),REPT(0,12)),12,1)+1,"","one","two","three","four","five","six","seven","eight","nine"),"")))," "," ")&IF(FLOOR(C59,1)>1," Rupees"," Rupees"))&IF(ISERROR(FIND(".",C59,1)),""," and "&PROPER(IF(LEN(LEFT(TRIM(MID(SUBSTITUTE('[3]16 NO.'!$B$62,".",REPT(" ",255)),255,200)),2))=1,CHOOSE(1*LEFT(TRIM(MID(SUBSTITUTE('[3]16 NO.'!$B$62,".",REPT(" ",255)),255,200)),2),"ten","twenty","thirty","forty","fifty","sixty","seventy","eighty","ninety")&" Paise","")&CONCATENATE(CHOOSE(MID(TEXT(INT(LEFT(TRIM(MID(SUBSTITUTE('[3]16 NO.'!$B$62,".",REPT(" ",255)),255,200)),2)),REPT(0,12)),11,1)+1,"",CHOOSE(MID(TEXT(INT(LEFT(TRIM(MID(SUBSTITUTE('[3]16 NO.'!$B$62,".",REPT(" ",255)),255,200)),2)),REPT(0,12)),12,1)+1,"ten","eleven","twelve","thirteen","fourteen","fifteen","sixteen","seventeen","eighteen","nineteen"),"twenty","thirty","forty","fifty","sixty","seventy","eighty","ninety"),IF(VALUE(MID(TEXT(INT(LEFT(TRIM(MID(SUBSTITUTE('[3]16 NO.'!$B$62,".",REPT(" ",255)),255,200)),2)),REPT(0,12)),11,1))>1,CHOOSE(MID(TEXT(INT(LEFT(TRIM(MID(SUBSTITUTE('[3]16 NO.'!$B$62,".",REPT(" ",255)),255,200)),2)),REPT(0,12)),12,1)+1,"","-one","-two","-three","-four","-five","-six","-seven","-eight","-nine")&" Paise",IF(LEFT(TRIM(MID(SUBSTITUTE('[3]16 NO.'!$B$62,".",REPT(" ",255)),255,200)),2)="01","one Paise",IF(LEFT(TRIM(MID(SUBSTITUTE('[3]16 NO.'!$B$62,".",REPT(" ",255)),255,200)),1)="0",CHOOSE(MID(TEXT(INT(LEFT(TRIM(MID(SUBSTITUTE('[3]16 NO.'!$B$62,".",REPT(" ",255)),255,200)),2)),REPT(0,12)),12,1)+1,"","one","two","three","four","five","six","seven","eight","nine")&" Paise",""))))))) -> Twenty-Four Thousand Rupees | I59: (in words) has been deducted
B60: and deposited to the credit of the Central Govt.. I further certify that the information given above is true, complete and correct
B61: and is based on the books of account, documents, TDS statement, TDS deposited and other available records.
B62: Place | D62: =G7 -> MGGS BAR
B63: Date | D63: =TODAY() -> 2025-11-14 | F63: Signature of person responsible for deduction of tax
B64: Designation | D64: =D58 -> PRINCIPAL | F64: Full name : | G64: =B6 -> USHA PALIYA
B65: PART- B (Annexure)
B66: DETAILS OF SALARY PAID AND ANY OTHER INCOME AND TAX DEDUCTED
B67: 1. Gross salary
B68: (a) Salary as per provisions contained in section 17(1) | G68: =COMPUTATION!O4 -> Rs. 1,311,720.00
B69: (b) Value of perquisites u/s 17(2) (as per Form No. 12BA, wherever applicable)
B70: (c) Profits in lieu of salary under section 17(3) (as per Form No. 12BA, wherever applicable) | G70: 0
B71: (d) Total (a+b+c) | I71: =G68+G69+G70 -> Rs. 1,311,720.00
B72: 2. Less: Allowance to the extent exempt u/s 10 House Rent Allowance
B73: Allowance
B74: House Rent Allow. US10 (13 A) | E74: =COMPUTATION!O5 -> 0 | F74: =E74 -> 0
B75: US10 (14) | F75: 0 | G75: =F74+F75 -> 0
B76: 3. Balance (1 - 2) | I76: =I71-G75 -> Rs. 1,311,720.00
B77: 4. Deductions: U/s 16
B78: (a) | D78: Standard Deduction (u/s 16 (ia) | G78: =COMPUTATION!K10 -> Rs. 75,000.00
B79: (b) | D79: Entertainment allowance | G79: =COMPUTATION!K7 -> 0
B80: (c) | D80: Tax on employment | G80: =COMPUTATION!K8 -> 0
B81: 5. Aggregate of 4 (a) and (b) | I81: =G79+G80+G78 -> Rs. 75,000.00
B82: Income chargeable under the head "salaries" (3-5) | K82: =I76-I81 -> Rs. 1,236,720.00
B83: 6. Income From House Property (a + b)
B84: 30% of Rent | D84: Interest on Home Loan | F84: house Tax
B85: =COMPUTATION!D14 -> 0 | D85: =COMPUTATION!F14 -> 0 | F85: =COMPUTATION!I14 -> 0 | G85: =SUM(B85+D85+F85) -> 0
B86: (a) Received House Rent | D86: =COMPUTATION!K12 -> 0 | F86: Total (a-b) +- | G86: =SUM(D86-G85) -> 0 | K86: =K82+G86 -> Rs. 1,236,720.00
B87: 7. Add: Any other income reported by employee
B88: FD व अन्य स्रोत से प्राप्त ब्याज तथा Bond से प्राप्त ब्याज | F88: =COMPUTATION!I17 -> 0
B89: अन्य स्रोत से आय : | F89: =COMPUTATION!I16 -> 0
B90: Saving Bank A/C interest | F90: =COMPUTATION!E16 -> 0 | G90: =F88+F89+F90 -> 0 | I90: =F88+F89+F90 -> 0
B91: 8. Gross total income (6+7) | K91: =K86+I90 -> Rs. 1,236,720.00
B92: 9. Deductions under Chapter VI A
B93: (A) Section 80C, 80CCC and 80CCD
B94: (a) Section 80C | I94: Gross Amount | K94: Deductible Amount
B95: A | C95: 1 | D95: (A) | E95: =COMPUTATION!C26 -> सामान्य प्रावधायी निधि GPF) / GPF - 2004 | G95: =COMPUTATION!G26 -> 0
C96: 2 | E96: State Insurance | G96: =COMPUTATION!G21 -> 0
C97: 3 | E97: Gr. Acc. Insurance | G97: =COMPUTATION!G27 -> 0
C98: 4 | E98: LIC + ULIP + PLI | G98: =COMPUTATION!G22+COMPUTATION!G30+COMPUTATION!G28+COMPUTATION!M27 -> 0
C99: 5 | E99: PPF | G99: =COMPUTATION!G24 -> 0
C100: 6 | E100: Home Loan Installment (Capital) | G100: =COMPUTATION!G29 -> 0
C101: 7 | E101: Equity link saving schame + Defferred Annuty | G101: =COMPUTATION!M25+COMPUTATION!M26 -> 0
C102: 8 | E102: Pension Plan (US80ccc+US 80CCD)(1) | G102: =COMPUTATION!M21+COMPUTATION!M22 -> 0
C103: 9 | E103: Tution Fee | G103: =COMPUTATION!M24 -> 0
C104: 10 | E104: NSC + Interest on NSC | G104: =COMPUTATION!G25+COMPUTATION!M23 -> 0
C105: 11 | E105: Sukanya Samridhi A/C | G105: =COMPUTATION!M29 -> 0
C106: 12 | E106: Fixed Deposit above 5 years | G106: =COMPUTATION!M30 -> 0
C107: 13 | E107: Mutual Fund | G107: =COMPUTATION!M28 -> 0 | I107: =SUM(G95:H108) -> 0 | K107: =IF(I107<=150000, I107, 150000) -> 0
C108: उपरोक्त के अलावा अन्य कटोती 80 C के अंतर्गत (Other Ded.) | G108: =COMPUTATION!G31 -> 0 | I108: Total Deducation : | K108: =SUM(K107+G108) -> 0
I109: ………………… 3
B110: :: 3 ::
B111: (B) Other Sections (e.g. 80E, 80G etc.) under Chapter VIA | G111: Gross Amount | I111: Qualifying amount | K111: Deductible Amount
B112: 1 | C112: U/S 80D | G112: =COMPUTATION!O37 -> 0 | I112: =G112 -> 0
B113: 2 | C113: U/S 80DD | G113: =COMPUTATION!O38 -> 0 | I113: =G113 -> 0
B114: 3 | C114: U/S 80DDB | G114: =COMPUTATION!O39 -> 0 | I114: 0
B115: 4 | C115: U/S 80E | G115: =COMPUTATION!O40 -> 0 | I115: 0
B116: 5 | C116: U/S 80G | G116: =COMPUTATION!O41 -> 0 | I116: 0
B117: 6 | C117: U/S 80GGA | G117: =COMPUTATION!O44 -> 0 | I117: 0
B118: 7 | C118: U/S 80 EE & US 80EEA & Others | G118: =COMPUTATION!O45 -> 0 | I118: 0
B119: 8 | C119: U/S 80U | G119: =COMPUTATION!O42 -> 0 | I119: 0
B120: 9 | C120: US 80TTA [Exempt Saving Bank Int. Max. RS. 10,000/-] | G120: =COMPUTATION!O43 -> 0 | I120: =G120 -> 0 | K120: =ROUND(SUM(I112:J120),0) -> 0
B121: 10. Aggregate of deductible amount under chapter VIA | K121: =ROUND((K108+K120),0) -> 0
B122: 11. Total income (8-10) | E122: (Roundup Figures of Rs 10) | K122: =ROUND((K91-K121),-1) -> Rs. 1,236,720.00
B123: 12. Tax on total income | K123: =COMPUTATION!O61 -> Rs. 65,508.00
B124: 13. Rebate U/s 87 A (Taxable Income below Rs. 5,00,000/- in Old Regime , below Rs. 12,00,000/- in New Regime) & Marginal relief benefit | K124: =COMPUTATION!O62 -> Rs. 28,788.00
B125: 14. Tax payable (12-13) | K125: =K123-K124 -> Rs. 36,720.00
B126: 15. Education & Health cess @ 4% (on tax computed at S.No. 12) | K126: =ROUND((K125*0.04),0) -> Rs. 1,469.00
B127: 16. Tax payable (14+15) [Round off U/s 288 B] | K127: =K125+K126 -> Rs. 38,189.00
B128: 17. Less:- Relief under section 89 (Attach Form 10E) | K128: =COMPUTATION!O66 -> 0
B129: 18. Tax payable (14-15) | K129: =K127-K128 -> Rs. 38,189.00
B130: 19. Tax deducted at source u/s 192 (1) | K130: =COMPUTATION!O69 -> Rs. 24,000.00
B131: =IF(K129>K130,"Income Tax Payable",IF(K129<K130,"Income Tax Refundable","Income Tax Payble/Refundable")) -> Income Tax Payable | K131: =IF(K129>K130,K129-K130,K130-K129) -> Rs. 14,189.00
B132: Verification
B133: I | C133: =B6&"," -> USHA PALIYA, | F133: Son/Daughter of | G133: =IF(G57="","",G57) ->  | K133: working in the
B134: capacity of | D134: =D58 -> PRINCIPAL | G134: (designation) do hereby certify that a sum of
B135: Rs. | C135: =K130 -> 24000 | D135: =D59 -> Twenty-Four Thousand Rupees | I135: (in words) has beeen deducted and
B136: deposited to the credit of the Central Government. I further certify that the information given above is true, complete and correct and is based on the books of account, documents, TDS statement, TDS deposited and other available records.
B137: Place | D137: =D62 -> MGGS BAR
B138: Date | D138: =TODAY() -> 2025-11-14 | F138: Signature of person responsible for deduction of tax
B139: Designation | D139: =D134 -> PRINCIPAL | F139: Full name : | G139: =B6 -> USHA PALIYA
